Workbook

Sheet League News
B2: Team Standings | I2: Scoring This Week | M2: Team Fees | P2: Box Scores Week 13
A3: Prince of Wales Conference
B4: W | C4: L | D4: T | E4: Pts | F4: CP | H4: BPF | I4: BPA | J4: Streak | L4: Moves | M4: Paid | N4: Owed | P4: Grumpy Old Men | Q4: 51 | R4: 18 | S4: 12 | T4: 81
A5: Riketorians | B5: =Riketorians!B57 -> 7 | C5: =Riketorians!C57 -> 5 | D5: =Riketorians!D57 -> 1 | E5: =Riketorians!E57 -> 15 | F5: =Riketorians!F57 -> 845 | H5: =Riketorians!G57 -> 769 | I5: =Riketorians!H57 -> 723 | J5: =Riketorians!I57 -> Lost 1 | L5: 20 | M5: 0 | N5: 100 | P5: Riketorians | Q5: 46 | R5: 15 | S5: 14 | T5: 75
A6: Grumpy Old Men | B6: ='Grumpy Old Men'!B57 -> 7 | C6: ='Grumpy Old Men'!C57 -> 5 | D6: ='Grumpy Old Men'!D57 -> 1 | E6: ='Grumpy Old Men'!E57 -> 15 | F6: ='Grumpy Old Men'!F57 -> 833 | H6: ='Grumpy Old Men'!G57 -> 746 | I6: ='Grumpy Old Men'!H57 -> 691 | J6: ='Just Chillin'!I57 -> Lost 1 | L6: 15 | M6: 0 | N6: 126
A7: Damn Yankees | B7: ='Damn Yankees'!B57 -> 6 | C7: ='Damn Yankees'!C57 -> 5 | D7: ='Damn Yankees'!D57 -> 2 | E7: ='Damn Yankees'!E57 -> 14 | F7: ='Damn Yankees'!F57 -> 841 | H7: ='Damn Yankees'!G57 -> 714 | I7: ='Damn Yankees'!H57 -> 720 | J7: ='Damn Yankees'!I57 -> Tied 1 | L7: 7 | M7: 0 | N7: 139 | P7: Fantasy Hockey Club | Q7: 35 | R7: 10 | S7: 1 | T7: 46
A8: Team LIRHL | B8: ='Team LIRHL'!B57 -> 5 | C8: ='Team LIRHL'!C57 -> 7 | D8: ='Team LIRHL'!D57 -> 1 | E8: ='Team LIRHL'!E57 -> 11 | F8: ='Team LIRHL'!F57 -> 797 | H8: ='Team LIRHL'!G57 -> 706 | I8: ='Team LIRHL'!H57 -> 788 | J8: ='Team LIRHL'!I57 -> Tied 1 | L8: 20 | M8: 0 | N8: 100 | P8: Slappers | Q8: 34 | R8: 18 | S8: 8 | T8: 60
A9: Fantasy Hockey Club | B9: ='Fantasy Hockey Club'!B57 -> 4 | C9: ='Fantasy Hockey Club'!C57 -> 9 | D9: ='Fantasy Hockey Club'!D57 -> 0 | E9: ='Fantasy Hockey Club'!E57 -> 8 | F9: ='Fantasy Hockey Club'!F57 -> 798 | H9: ='Fantasy Hockey Club'!G57 -> 715 | I9: ='Fantasy Hockey Club'!H57 -> 766 | J9: ='Fantasy Hockey Club'!I57 -> Lost 7 | L9: 1 | M9: 130 | N9: 0
P10: Team LIRHL | Q10: 35 | R10: 6 | S10: 15 | T10: 56
A11: Campbell Conference | P11: Damn Yankees | Q11: 29 | R11: 15 | S11: 12 | T11: 56
B12: W | C12: L | D12: T | E12: Pts | F12: CP | H12: BPF | I12: BPA | J12: Streak | L12: Moves | M12: Paid | N12: Owed
A13: Shawnee Tribe | B13: ='Shawnee Tribe'!B57 -> 8 | C13: ='Shawnee Tribe'!C57 -> 4 | D13: ='Shawnee Tribe'!D57 -> 1 | E13: ='Shawnee Tribe'!E57 -> 17 | F13: ='Shawnee Tribe'!F57 -> 857 | H13: ='Shawnee Tribe'!G57 -> 780 | I13: ='Shawnee Tribe'!H57 -> 746 | J13: ='Shawnee Tribe'!I57 -> Won 8 | L13: 7 | M13: 0 | N13: 124 | P13: District 5 | Q13: 41 | R13: 15 | S13: 9 | T13: 65
A14: District 5 | B14: ='District 5'!B57 -> 7 | C14: ='District 5'!C57 -> 5 | D14: ='District 5'!D57 -> 1 | E14: ='District 5'!E57 -> 15 | F14: ='District 5'!F57 -> 877 | H14: ='District 5'!G57 -> 775 | I14: ='District 5'!H57 -> 683 | J14: ='District 5'!I57 -> Lost 1 | L14: 18 | M14: 0 | N14: 111 | P14: Shawnee Tribe | Q14: 36 | R14: 24 | S14: 9 | T14: 69
A15: Just Chillin | B15: ='Just Chillin'!B57 -> 7 | C15: ='Just Chillin'!C57 -> 5 | D15: ='Just Chillin'!D57 -> 1 | E15: ='Just Chillin'!E57 -> 15 | F15: ='Just Chillin'!F57 -> 790 | H15: ='Just Chillin'!G57 -> 719 | I15: ='Just Chillin'!H57 -> 663 | J15: ='Just Chillin'!I57 -> Lost 1 | L15: 10 | M15: 101 | N15: 20
A16: Highlanders | B16: =Highlanders!B57 -> 5 | C16: =Highlanders!C57 -> 8 | D16: =Highlanders!D57 -> 0 | E16: =Highlanders!E57 -> 10 | F16: =Highlanders!F57 -> 796 | H16: =Highlanders!G57 -> 721 | I16: =Highlanders!H57 -> 783 | J16: =Highlanders!I57 -> Won 1 | L16: 1 | M16: 100 | N16: 33 | P16: Just Chillin | Q16: 38 | R16: 10 | S16: 3 | T16: 51
A17: Slappers | B17: =Slappers!B57 -> 5 | C17: =Slappers!C57 -> 8 | D17: =Slappers!D57 -> 0 | E17: =Slappers!E57 -> 10 | F17: =Slappers!F57 -> 737 | H17: =Slappers!G57 -> 664 | I17: =Slappers!H57 -> 746 | J17: =Slappers!I57 -> Won 1 | L17: 6 | M17: 0 | N17: 117 | P17: Highlanders | Q17: 36 | R17: 14 | S17: 6 | T17: 56
K19: Totals | M19: =SUM(M5:M17) -> 331 | N19: =SUM(N5:N17) -> 870 | P19: League Fees | Q19: 100
P20: Total Prizes | Q20: =M19+N19-Q19 -> 1101
A21: Offensive Leaders | G21: Defensive Leaders | O21: Goaltender Leaders
A22: ='Total Calc'!A2 -> Nathan MacKinnon | C22: ='Total Calc'!B2 -> (GOM) | E22: ='Total Calc'!C2 -> 92 | G22: ='Total Calc'!E2 -> Cale Makar | J22: ='Total Calc'!F2 -> (DI5) | L22: ='Total Calc'!G2 -> 55 | O22: ='Total Calc'!I2 -> Scott Wedgewood | Q22: ='Total Calc'!J2 -> (HGL) | S22: ='Total Calc'!K2 -> 120
A23: ='Total Calc'!A3 -> Connor McDavid | C23: ='Total Calc'!B3 -> (SHW) | E23: ='Total Calc'!C3 -> 83 | G23: ='Total Calc'!E3 -> Darren Raddysh | J23: ='Total Calc'!F3 -> (SHW) | L23: ='Total Calc'!G3 -> 47 | O23: ='Total Calc'!I3 -> Logan Thompson | Q23: ='Total Calc'!J3 -> (FHC) | S23: ='Total Calc'!K3 -> 117
A24: ='Total Calc'!A4 -> Macklin Celebrini | C24: ='Total Calc'!B4 -> (SHW) | E24: ='Total Calc'!C4 -> 77 | G24: ='Total Calc'!E4 -> Evan Bouchard | J24: ='Total Calc'!F4 -> (SHW) | L24: ='Total Calc'!G4 -> 46 | O24: ='Total Calc'!I4 -> Jake Oettinger | Q24: ='Total Calc'!J4 -> (SLP) | S24: ='Total Calc'!K4 -> 109
A25: ='Total Calc'!A5 -> Leon Draisaitl | C25: ='Total Calc'!B5 -> (FHC) | E25: ='Total Calc'!C5 -> 75 | G25: ='Total Calc'!E5 -> Jakob Chychrun | J25: ='Total Calc'!F5 -> (FHC) | L25: ='Total Calc'!G5 -> 45 | O25: ='Total Calc'!I5 -> Igor Shesterkin | Q25: ='Total Calc'!J5 -> (GOM) | S25: ='Total Calc'!K5 -> 106
A26: ='Total Calc'!A6 -> Nikita Kucherov | C26: ='Total Calc'!B6 -> (LIR) | E26: ='Total Calc'!C6 -> 73 | G26: ='Total Calc'!E6 -> Lane Hutson | J26: ='Total Calc'!F6 -> (SHW) | L26: ='Total Calc'!G6 -> 43 | O26: ='Total Calc'!I6 -> Andrei Vasilevskiy | Q26: ='Total Calc'!J6 -> (DYK) | S26: ='Total Calc'!K6 -> 105
A28: This Weeks Offensive Leaders | G28: This Weeks Defensive Leaders | O28: This Weeks Goaltending Leader
A29: ='Weekly Calc'!A2 -> Nikita Kucherov | C29: ='Weekly Calc'!B2 -> (LIR) | E29: ='Weekly Calc'!C2 -> 14 | G29: ='Weekly Calc'!E2 -> Darren Raddysh | J29: ='Weekly Calc'!F2 -> (SHW) | L29: ='Weekly Calc'!G2 -> 14 | O29: ='Weekly Calc'!I2 -> Jeremy Swayman | Q29: ='Weekly Calc'!J2 -> (LIR) | S29: ='Weekly Calc'!K2 -> 15
A30: ='Weekly Calc'!A3 -> Brock Nelson | C30: ='Weekly Calc'!B3 -> (RIK) | E30: ='Weekly Calc'!C3 -> 13 | G30: ='Weekly Calc'!E3 -> Matthew Schaefer | J30: ='Weekly Calc'!F3 -> (GOM) | L30: ='Weekly Calc'!G3 -> 8 | O30: ='Weekly Calc'!I3 -> Dustin Wolf | Q30: ='Weekly Calc'!J3 -> (RIK) | S30: ='Weekly Calc'!K3 -> 14
A31: ='Weekly Calc'!A4 -> Sebastian Aho | C31: ='Weekly Calc'!B4 -> (FHC) | E31: ='Weekly Calc'!C4 -> 12 | G31: ='Weekly Calc'!E4 -> Kris Letang | J31: ='Weekly Calc'!F4 -> (RIK) | L31: ='Weekly Calc'!G4 -> 6 | O31: ='Weekly Calc'!I4 -> Mackenzie Blackwood | Q31: ='Weekly Calc'!J4 -> (DYK) | S31: ='Weekly Calc'!K4 -> 12
A32: ='Weekly Calc'!A5 -> Nathan MacKinnon | C32: ='Weekly Calc'!B5 -> (GOM) | E32: ='Weekly Calc'!C5 -> 12 | G32: ='Weekly Calc'!E5 -> Mikhail Sergachev | J32: ='Weekly Calc'!F5 -> (DI5) | L32: ='Weekly Calc'!G5 -> 5 | O32: ='Weekly Calc'!I5 -> Igor Shesterkin | Q32: ='Weekly Calc'!J5 -> (GOM) | S32: ='Weekly Calc'!K5 -> 12
A33: ='Weekly Calc'!A6 -> Steven Stamkos | C33: ='Weekly Calc'!B6 -> (DI5) | E33: ='Weekly Calc'!C6 -> 10 | G33: ='Weekly Calc'!E6 -> Lane Hutson | J33: ='Weekly Calc'!F6 -> (SHW) | L33: ='Weekly Calc'!G6 -> 5 | O33: ='Weekly Calc'!I6 -> Andrei Vasilevskiy | Q33: ='Weekly Calc'!J6 -> (DYK) | S33: ='Weekly Calc'!K6 -> 10
A35: Transactions
A36: Fantasy Hockey Club: Release Schmid sign Brandon Bussi | G36: Damn Yankees: Release Tuch activate Hagel
A37: Slappers: Release Kyrou sign Justin Sourdif | G37: Slappers: Release Mercer sign Juraj Slafkovský
A38: Highlanders: Release Rittich activate Sorokin | G38: Slappers: Release Orlov sign Pavel Mintyukov
A39: Damn Yankees: IR Blackwood sign Dan Vladar | G39: Slappers: Release Provorov sign Denton Mateychuk
A40: Just Chillin: IR Protas activate Roslovic | G40: Slappers: Release Knight sign Jet Greaves
A41: Shawnee Tribe: IR Miller activate Petterson | G41: Slappers: IR Cooley sign Dmitri Voronkov
A42: Slappers: Release Gritsyuk sign Igor Chernyshov
A43: Highlanders: Release Durzi activate Fox

Sheet More Stats
B1: Team Offense | F1: Team Defense | J1: Team Goalie
A2: Team LIRHL | C2: ='Team LIRHL'!R34 -> 504 | E2: Shawnee Tribe | G2: ='Shawnee Tribe'!R35 -> 226 | I2: Damn Yankees | K2: ='Damn Yankees'!R38 -> 243
A3: Riketorians | C3: =Riketorians!R34 -> 503 | E3: District 5 | G3: ='District 5'!R35 -> 199 | I3: Slappers | K3: =Slappers!R38 -> 195
A4: District 5 | C4: ='District 5'!R34 -> 499 | E4: Just Chillin | G4: ='Just Chillin'!R35 -> 179 | I4: District 5 | K4: ='District 5'!R38 -> 179
A5: Shawnee Tribe | C5: ='Shawnee Tribe'!R34 -> 487 | E5: Fantasy Hockey Club | G5: ='Fantasy Hockey Club'!R35 -> 176 | I5: Riketorians | K5: =Riketorians!R38 -> 176
A6: Grumpy Old Men | C6: ='Grumpy Old Men'!R34 -> 485 | E6: Grumpy Old Men | G6: ='Grumpy Old Men'!R35 -> 173 | I6: Grumpy Old Men | K6: ='Grumpy Old Men'!R38 -> 175
A7: Just Chillin | C7: ='Just Chillin'!R34 -> 475 | E7: Riketorians | G7: =Riketorians!R35 -> 166 | I7: Fantasy Hockey Club | K7: ='Fantasy Hockey Club'!R38 -> 172
A8: Damn Yankees | C8: ='Damn Yankees'!R34 -> 474 | E8: Slappers | G8: =Slappers!R35 -> 156 | I8: Team LIRHL | K8: ='Team LIRHL'!R38 -> 171
A9: Highlanders | C9: =Highlanders!R34 -> 474 | E9: Highlanders | G9: =Highlanders!R35 -> 154 | I9: Highlanders | K9: =Highlanders!R38 -> 168
A10: Fantasy Hockey Club | C10: ='Fantasy Hockey Club'!R34 -> 450 | E10: Damn Yankees | G10: ='Damn Yankees'!R35 -> 124 | I10: Shawnee Tribe | K10: ='Shawnee Tribe'!R38 -> 144
A11: Slappers | C11: =Slappers!R34 -> 386 | E11: Team LIRHL | G11: ='Team LIRHL'!R35 -> 122 | I11: Just Chillin | K11: ='Just Chillin'!R38 -> 136
B13: Offensive Goals | F13: Defensive Goals | J13: Team Goals
A14: District 5 | C14: ='District 5'!K34 -> 183 | E14: Shawnee Tribe | G14: ='Shawnee Tribe'!K35 -> 49 | I14: District 5 | K14: ='District 5'!K36 -> 227
A15: Riketorians | C15: =Riketorians!K34 -> 171 | E15: Just Chillin | G15: ='Just Chillin'!K35 -> 45 | I15: Just Chillin | K15: ='Just Chillin'!K36 -> 204
A16: Grumpy Old Men | C16: ='Grumpy Old Men'!K34 -> 163 | E16: District 5 | G16: ='District 5'!K35 -> 44 | I16: Riketorians | K16: =Riketorians!K36 -> 203
A17: Highlanders | C17: =Highlanders!K34 -> 159 | E17: Grumpy Old Men | G17: ='Grumpy Old Men'!K35 -> 40 | I17: Grumpy Old Men | K17: ='Grumpy Old Men'!K36 -> 203
A18: Just Chillin | C18: ='Just Chillin'!K34 -> 159 | E18: Slappers | G18: =Slappers!K35 -> 37 | I18: Shawnee Tribe | K18: ='Shawnee Tribe'!K36 -> 192
A19: Damn Yankees | C19: ='Damn Yankees'!K34 -> 159 | E19: Fantasy Hockey Club | G19: ='Fantasy Hockey Club'!K35 -> 36 | I19: Fantasy Hockey Club | K19: ='Fantasy Hockey Club'!K36 -> 186
A20: Team LIRHL | C20: ='Team LIRHL'!K34 -> 158 | E20: Riketorians | G20: =Riketorians!K35 -> 32 | I20: Highlanders | K20: =Highlanders!K36 -> 184
A21: Fantasy Hockey Club | C21: ='Fantasy Hockey Club'!K34 -> 150 | E21: Team LIRHL | G21: ='Team LIRHL'!K35 -> 25 | I21: Team LIRHL | K21: ='Team LIRHL'!K36 -> 183
A22: Shawnee Tribe | C22: ='Shawnee Tribe'!K34 -> 143 | E22: Highlanders | G22: =Highlanders!K35 -> 25 | I22: Damn Yankees | K22: ='Damn Yankees'!K36 -> 173
A23: Slappers | C23: =Slappers!K34 -> 133 | E23: Damn Yankees | G23: ='Damn Yankees'!K35 -> 14 | I23: Slappers | K23: =Slappers!K36 -> 170
B25: Offensive Assists | F25: Defensive Assists | J25: Team Assists
A26: Shawnee Tribe | C26: ='Shawnee Tribe'!L34 -> 259 | E26: District 5 | G26: ='District 5'!L35 -> 131 | I26: Shawnee Tribe | K26: ='Shawnee Tribe'!L36 -> 389
A27: Team LIRHL | C27: ='Team LIRHL'!L34 -> 244 | E27: Shawnee Tribe | G27: ='Shawnee Tribe'!L35 -> 130 | I27: Just Chillin | K27: ='Just Chillin'!L36 -> 349
A28: Riketorians | C28: =Riketorians!L34 -> 232 | E28: Just Chillin | G28: ='Just Chillin'!L35 -> 123 | I28: Riketorians | K28: =Riketorians!L36 -> 339
A29: Just Chillin | C29: ='Just Chillin'!L34 -> 226 | E29: Fantasy Hockey Club | G29: ='Fantasy Hockey Club'!L35 -> 114 | I29: District 5 | K29: ='District 5'!L36 -> 332
A30: Damn Yankees | C30: ='Damn Yankees'!L34 -> 220 | E30: Highlanders | G30: =Highlanders!L35 -> 110 | I30: Damn Yankees | K30: ='Damn Yankees'!L36 -> 324
A31: Grumpy Old Men | C31: ='Grumpy Old Men'!L34 -> 212 | E31: Grumpy Old Men | G31: ='Grumpy Old Men'!L35 -> 109 | I31: Grumpy Old Men | K31: ='Grumpy Old Men'!L36 -> 321
A32: Highlanders | C32: =Highlanders!L34 -> 210 | E32: Riketorians | G32: =Riketorians!L35 -> 107 | I32: Highlanders | K32: =Highlanders!L36 -> 320
A33: Fantasy Hockey Club | C33: ='Fantasy Hockey Club'!L34 -> 206 | E33: Damn Yankees | G33: ='Damn Yankees'!L35 -> 104 | I33: Team LIRHL | K33: ='Team LIRHL'!L36 -> 320
A34: District 5 | C34: ='District 5'!L34 -> 201 | E34: Slappers | G34: =Slappers!L35 -> 96 | I34: Fantasy Hockey Club | K34: ='Fantasy Hockey Club'!L36 -> 320
A35: Slappers | C35: =Slappers!L34 -> 171 | E35: Team LIRHL | G35: ='Team LIRHL'!L35 -> 76 | I35: Slappers | K35: =Slappers!L36 -> 267
B37: Offensive PP Goals | F37: Defensive PP Goals | J37: Team PP Goals
A38: Fantasy Hockey Club | C38: ='Fantasy Hockey Club'!M34 -> 53 | E38: Shawnee Tribe | G38: ='Shawnee Tribe'!M35 -> 20 | I38: Fantasy Hockey Club | K38: ='Fantasy Hockey Club'!M36 -> 63
A39: Grumpy Old Men | C39: ='Grumpy Old Men'!M34 -> 48 | E39: Fantasy Hockey Club | G39: ='Fantasy Hockey Club'!M35 -> 10 | I39: Grumpy Old Men | K39: ='Grumpy Old Men'!M36 -> 58
A40: District 5 | C40: ='District 5'!M34 -> 47 | E40: Grumpy Old Men | G40: ='Grumpy Old Men'!M35 -> 10 | I40: District 5 | K40: ='District 5'!M36 -> 57
A41: Just Chillin | C41: ='Just Chillin'!M34 -> 46 | E41: District 5 | G41: ='District 5'!M35 -> 10 | I41: Shawnee Tribe | K41: ='Shawnee Tribe'!M36 -> 53
A42: Riketorians | C42: =Riketorians!M34 -> 43 | E42: Riketorians | G42: =Riketorians!M35 -> 8 | I42: Riketorians | K42: =Riketorians!M36 -> 51
A43: Highlanders | C43: =Highlanders!M34 -> 41 | E43: Slappers | G43: =Slappers!M35 -> 7 | I43: Just Chillin | K43: ='Just Chillin'!M36 -> 49
A44: Team LIRHL | C44: ='Team LIRHL'!M34 -> 39 | E44: Damn Yankees | G44: ='Damn Yankees'!M35 -> 6 | I44: Highlanders | K44: =Highlanders!M36 -> 44
A45: Damn Yankees | C45: ='Damn Yankees'!M34 -> 35 | E45: Team LIRHL | G45: ='Team LIRHL'!M35 -> 5 | I45: Team LIRHL | K45: ='Team LIRHL'!M36 -> 44
A46: Shawnee Tribe | C46: ='Shawnee Tribe'!M34 -> 33 | E46: Highlanders | G46: =Highlanders!M35 -> 3 | I46: Damn Yankees | K46: ='Damn Yankees'!M36 -> 41
A47: Slappers | C47: =Slappers!M34 -> 31 | E47: Just Chillin | G47: ='Just Chillin'!M35 -> 3 | I47: Slappers | K47: =Slappers!M36 -> 38
B49: Boxscore Points For | F49: Boxscore Points Against | J49: Boxscore Points Differential
A50: Shawnee Tribe | C50: ='Shawnee Tribe'!G57 -> 780 | E50: Just Chillin | G50: ='Just Chillin'!H57 -> 663 | I50: District 5 | K50: ='District 5'!G57-'District 5'!H57 -> 92
A51: District 5 | C51: ='District 5'!G57 -> 775 | E51: District 5 | G51: ='District 5'!H57 -> 683 | I51: Just Chillin | K51: ='Just Chillin'!G57-'Just Chillin'!H57 -> 56
A52: Riketorians | C52: =Riketorians!G57 -> 769 | E52: Grumpy Old Men | G52: ='Grumpy Old Men'!H57 -> 691 | I52: Grumpy Old Men | K52: ='Grumpy Old Men'!G57-'Grumpy Old Men'!H57 -> 55
A53: Grumpy Old Men | C53: ='Grumpy Old Men'!G57 -> 746 | E53: Damn Yankees | G53: ='Damn Yankees'!H57 -> 720 | I53: Riketorians | K53: =Riketorians!G57-Riketorians!H57 -> 46
A54: Highlanders | C54: =Highlanders!G57 -> 721 | E54: Riketorians | G54: =Riketorians!H57 -> 723 | I54: Shawnee Tribe | K54: ='Shawnee Tribe'!G57-'Shawnee Tribe'!H57 -> 34
A55: Just Chillin | C55: ='Just Chillin'!G57 -> 719 | E55: Slappers | G55: =Slappers!H57 -> 746 | I55: Damn Yankees | K55: ='Damn Yankees'!G57-'Damn Yankees'!H57 -> -6
A56: Fantasy Hockey Club | C56: ='Fantasy Hockey Club'!G57 -> 715 | E56: Shawnee Tribe | G56: ='Shawnee Tribe'!H57 -> 746 | I56: Fantasy Hockey Club | K56: ='Fantasy Hockey Club'!G57-'Fantasy Hockey Club'!H57 -> -51
A57: Damn Yankees | C57: ='Damn Yankees'!G57 -> 714 | E57: Fantasy Hockey Club | G57: ='Fantasy Hockey Club'!H57 -> 766 | I57: Highlanders | K57: =Highlanders!G57-Highlanders!H57 -> -62
A58: Team LIRHL | C58: ='Team LIRHL'!G57 -> 706 | E58: Highlanders | G58: =Highlanders!H57 -> 783 | I58: Team LIRHL | K58: ='Team LIRHL'!G57-'Team LIRHL'!H57 -> -82
A59: Slappers | C59: =Slappers!G57 -> 664 | E59: Team LIRHL | G59: ='Team LIRHL'!H57 -> 788 | I59: Slappers | K59: =Slappers!G57-Slappers!H57 -> -82

Sheet Shawnee Tribe
A1: Team: Shawnee Tribe | C1: General Manager: John Kaziun
D3: Scoring This Week | N3: Players Overall Scoring
A4: Forwards | B4: Gls | C4: Ast | D4: PP | E4: SH | F4: GW | G4: OT | H4: PSG | I4: PTS | K4: Gls | L4: Ast | M4: PP | N4: SH | O4: GW | P4: OT | Q4: PSG | R4: PTS
A5: Artemi Panarin | B5: 2 | C5: 4 | D5: 1 | E5: 0 | F5: 1 | G5: 0 | H5: 0 | I5: =(B5+C5+D5+(2*E5)+(2*F5)+G5+(4*H5)) -> 9 | K5: 16 | L5: 28 | M5: 1 | N5: 0 | O5: 3 | P5: 0 | Q5: 1 | R5: =(K5+L5+M5+(2*N5)+(2*O5)+P5+(4*Q5)) -> 55
A6: Macklin Celebrini | B6: 2 | C6: 4 | D6: 0 | E6: 0 | F6: 0 | G6: 0 | H6: 0 | I6: 6 | K6: 22 | L6: 41 | M6: 4 | N6: 0 | O6: 4 | P6: 2 | Q6: 0 | R6: 77
A7: Ivan Demidov | B7: 1 | C7: 4 | D7: 0 | E7: 0 | F7: 0 | G7: 0 | H7: 0 | I7: 5 | K7: 10 | L7: 25 | M7: 2 | N7: 0 | O7: 2 | P7: 0 | Q7: 0 | R7: 41
A8: Connor McDavid | B8: 1 | C8: 3 | D8: 0 | E8: 0 | F8: 0 | G8: 0 | H8: 0 | I8: 4 | K8: 25 | L8: 47 | M8: 7 | N8: 1 | O8: 1 | P8: 0 | Q8: 0 | R8: 83
A9: Gabriel Landeskog | B9: 1 | C9: 2 | D9: 0 | E9: 0 | F9: 0 | G9: 0 | H9: 0 | I9: 3 | K9: 7 | L9: 15 | M9: 1 | N9: 0 | O9: 1 | P9: 0 | Q9: 0 | R9: 25
A10: Robert Thomas | B10: 1 | C10: 0 | D10: 0 | E10: 1 | F10: 0 | G10: 0 | H10: 0 | I10: 3 | K10: 10 | L10: 20 | M10: 3 | N10: 2 | O10: 0 | P10: 0 | Q10: 0 | R10: 37
A11: Matvei Michkov | B11: 0 | C11: 3 | D11: 0 | E11: 0 | F11: 0 | G11: 0 | H11: 0 | I11: 3 | K11: 9 | L11: 14 | M11: 1 | N11: 0 | O11: 0 | P11: 0 | Q11: 0 | R11: 24
A12: Mathew Barzal | B12: 0 | C12: 3 | D12: 0 | E12: 0 | F12: 0 | G12: 0 | H12: 0 | I12: 3 | K12: 10 | L12: 22 | M12: 1 | N12: 0 | O12: 1 | P12: 1 | Q12: 0 | R12: 36
A13: Rickard Rakell | B13: 1 | C13: 1 | D13: 0 | E13: 0 | F13: 0 | G13: 0 | H13: 0 | I13: 2 | K13: 5 | L13: 9 | M13: 2 | N13: 0 | O13: 0 | P13: 0 | Q13: 0 | R13: 16
A14: Cutter Gauthier | B14: 1 | C14: 1 | D14: 0 | E14: 0 | F14: 0 | G14: 0 | H14: 0 | I14: 2 | K14: 19 | L14: 19 | M14: 4 | N14: 0 | O14: 3 | P14: 1 | Q14: 0 | R14: 49
A15: J.T. Miller | B15: 0 | C15: 0 | D15: 0 | E15: 0 | F15: 0 | G15: 0 | H15: 0 | I15: 0 | K15: 10 | L15: 12 | M15: 3 | N15: 0 | O15: 3 | P15: 3 | Q15: 0 | R15: 34
A18: Defense | B18: Gls | C18: Ast | D18: PP | E18: SH | F18: GW | G18: OT | H18: PSG | I18: PTS | K18: Gls | L18: Ast | M18: PP | N18: SH | O18: GW | P18: OT | Q18: PSG | R18: PTS
A19: Darren Raddysh | B19: 4 | C19: 3 | D19: 2 | E19: 0 | F19: 2 | G19: 1 | H19: 0 | I19: =(B19+C19+D19+(2*E19)+(2*F19)+G19+(4*H19)) -> 14 | K19: 12 | L19: 22 | M19: 6 | N19: 0 | O19: 3 | P19: 1 | Q19: 0 | R19: =(K19+L19+M19+(2*N19)+(2*O19)+P19+(4*Q19)) -> 47
A20: Lane Hutson | B20: 1 | C20: 4 | D20: 0 | E20: 0 | F20: 0 | G20: 0 | H20: 0 | I20: 5 | K20: 6 | L20: 34 | M20: 1 | N20: 0 | O20: 1 | P20: 0 | Q20: 0 | R20: 43
A21: Evan Bouchard | B21: 1 | C21: 0 | D21: 1 | E21: 0 | F21: 0 | G21: 0 | H21: 0 | I21: 2 | K21: 8 | L21: 30 | M21: 5 | N21: 0 | O21: 1 | P21: 1 | Q21: 0 | R21: 46
A22: Travis Sanheim | B22: 1 | C22: 1 | D22: 0 | E22: 0 | F22: 0 | G22: 0 | H22: 0 | I22: 2 | K22: 4 | L22: 14 | M22: 1 | N22: 0 | O22: 1 | P22: 1 | Q22: 0 | R22: 22
A23: Vince Dunn | B23: 0 | C23: 1 | D23: 0 | E23: 0 | F23: 0 | G23: 0 | H23: 0 | I23: 1 | K23: 5 | L23: 15 | M23: 1 | N23: 0 | O23: 1 | P23: 1 | Q23: 0 | R23: 24
A24: Axel Sandin-Pellikka | B24: 0 | C24: 0 | D24: 0 | E24: 0 | F24: 0 | G24: 0 | H24: 0 | I24: 0 | K24: 4 | L24: 11 | M24: 0 | N24: 0 | O24: 0 | P24: 0 | Q24: 0 | R24: 15
A25: John Klingberg | B25: 0 | C25: 0 | D25: 0 | E25: 0 | F25: 0 | G25: 0 | H25: 0 | I25: 0 | K25: 9 | L25: 7 | M25: 4 | N25: 0 | O25: 2 | P25: 1 | Q25: 0 | R25: 25
A27: Goalie | B27: W | C27: OT | D27: SO | E27: Gls | F27: Ast | G27: GAA | H27: SP | I27: PTS | K27: W | L27: OT | M27: SO | N27: Gls | O27: Ast | P27: GAA | Q27: SP | R27: PTS
A28: Joey Daccord | B28: 1 | C28: 1 | D28: 0 | E28: 0 | F28: 1 | G28: 2.32 | H28: 0.896 | I28: =((3*B28)+C28+(3*D28)+(10*E28)+(3*F28)+G29+H29) -> 9 | K28: 11 | L28: 5 | M28: 2 | N28: 0 | O28: 3 | P28: 2.77 | Q28: 0.903 | R28: =((3*K28)+L28+(3*M28)+(10*N28)+(3*O28)+P29+Q29) -> 94
B29: 5 | C29: 129.08 | D29: 43 | E29: 48 | G29: 2 | H29: 0 | I29: =((3*B28)+C28+(3*D28)+(10*E28)+(3*F28)+G29+H29) -> 9 | P29: 17 | Q29: 24 | R29: =((2*K28)+L28+(3*M28)+(10*N28)+(3*O28)+P29+Q29) -> 83
A30: Karel Vejmelka | B30: 1 | C30: 0 | D30: 0 | E30: 0 | F30: 0 | G30: 3 | H30: 0.885 | I30: =((3*B30)+C30+(3*D30)+(10*E30)+(3*F30)+G31+H31) -> 3 | K30: 17 | L30: 2 | M30: 1 | N30: 0 | O30: 1 | P30: 2.72 | Q30: 0.895 | R30: =((3*K30)+L30+(3*M30)+(10*N30)+(3*O30)+P31+Q31) -> 87
B31: 6 | C31: 120 | D31: 46 | E31: 52 | G31: 0 | H31: 0 | I31: =((3*B30)+C30+(3*D30)+(10*E30)+(3*F30)+G31+H31) -> 3 | P31: 17 | Q31: 11 | R31: =((2*K30)+L30+(3*M30)+(10*N30)+(3*O30)+P31+Q31) -> 70
D32: All Playes Scoring This Week | N32: Cumulative Points
B33: Gls | C33: Ast | D33: PP | E33: SH | F33: GW | G33: OT | H33: PSG | K33: Gls | L33: Ast | M33: PP | N33: SH | O33: GW | P33: OT | Q33: PSG | R33: PTS
A34: Forwards | B34: =SUM(B5:B15) -> 10 | C34: =SUM(C5:C15) -> 25 | D34: 1 | E34: 1 | F34: 1 | G34: 0 | H34: 0 | K34: 143 | L34: 259 | M34: 33 | N34: 4 | O34: 17 | P34: 6 | Q34: 1 | R34: =(K34+L34+M34+(2*N34)+(2*O34)+P34+(4*Q34)) -> 487
A35: Defense | B35: =SUM(B19:B25) -> 7 | C35: =SUM(C19:C25) -> 9 | D35: 3 | E35: 0 | F35: 2 | G35: 1 | H35: 0 | K35: 49 | L35: 130 | M35: 20 | N35: 0 | O35: 11 | P35: 5 | Q35: 0 | R35: =(K35+L35+M35+(2*N35)+(2*O35)+P35+(4*Q35)) -> 226
A36: Total Scorers | B36: =SUM(B34:B35) -> 17 | C36: =SUM(C34:C35) -> 34 | D36: 4 | E36: 1 | F36: 3 | G36: 1 | H36: 0 | K36: =SUM(K34:K35) -> 192 | L36: 389 | M36: 53 | N36: 4 | O36: 28 | P36: 11 | Q36: 1 | R36: =(K36+L36+M36+(2*N36)+(2*O36)+P36+(4*Q36)) -> 713
B37: W | C37: OT | D37: SO | E37: Gls | F37: Ast | G37: GAA | H37: SP | K37: W | L37: OT | M37: SO | N37: Gls | O37: Ast | P37: GAA | Q37: SP | R37: PTS
A38: Goalie Totals | B38: =SUM(B28,B30) -> 2 | C38: =SUM(C28,C30) -> 1 | D38: =SUM(D28,D30) -> 0 | E38: =SUM(E28,E30) -> 0 | F38: =SUM(F28,F30) -> 1 | G38: =IF(C39=0,0,B39/(C39/60)) -> 2.649751084 | H38: =IF(E39=0,0,D39/E39) -> 0.89 | K38: 25 | L38: 5 | M38: 1 | N38: 0 | O38: 3 | P38: =IF(L39=0,0,K39/(L39/60)) -> 3.012121698 | Q38: =IF(N39=0,0,M39/N39) -> 0.8869426752 | R38: =((3*K38)+L38+(3*M38)+(10*N38)+(3*O38)+P39+Q39) -> 144
B39: =SUM(B29,B31) -> 11 | C39: =SUM(C29,C31) -> 249.08 | D39: =SUM(D29,D31) -> 89 | E39: =SUM(E29,E31) -> 100 | K39: 144 | L39: 2868.41 | M39: 1114 | N39: 1256 | P39: 26 | Q39: 26
K40: GA | L40: Time | M40: Saves | N40: Shots
B42: Injured Reserve | M42: This Weeks Totals
A43: Player | B43: P | C43: GP | D43: IR Weeks | E43: Pts | L43: Forwards | N43: =SUM(I5:I12) -> 36
A44: Will Smith | B44: F | C44: 0 | D44: 2 | E44: 39 | L44: Defense | N44: =SUM(I19:I23) -> 24
A45: Shea Theodore | B45: D | C45: 0 | D45: 2 | E45: 25 | L45: Goalie | N45: =I28 -> 9
B46: G
A47: Elias Pettersson | B47: F | C47: 4 | D47: 3 | E47: 29 | L47: Total Points | N47: =SUM(N43:N45) -> 69
A51: Warning, Elias Pettersson must be returned to lineup by start of Week 14
A56: Team Record | B56: W | C56: L | D56: T | E56: Pts | F56: CP | G56: BPF | H56: BFA | I56: Streak
A57: Shawnee Tribe | B57: 8 | C57: 4 | D57: 1 | E57: =2*B57+D57 -> 17 | F57: =R36+R38 -> 857 | G57: =SUM(B61,B65,B69,B73,B77,F61,F65,F69,F73,F77,J61,J65,J69,J73,J77,N61,N65,N69,N73,N77,R61,R65) -> 780 | H57: =SUM(B62,B66,B70,B74,B78,F62,F66,F70,F74,F78,J62,J66,J70,J74,J78,N62,N66,N70,N74,N78,R62,R66) -> 746 | I57: Won 8
A60: Game 1 | B60: Score | D60: Game 6 | F60: Score | H60: Game 11 | J60: Score | L60: Game 16 | N60: Score | P60: Game 21 | R60: Score
A61: Shawnee Tribe | B61: 33 | D61: Shawnee Tribe | F61: 58 | H61: Shawnee Tribe | J61: 77 | L61: Shawnee Tribe | N61: 0 | P61: Shawnee Tribe | R61: 0
A62: Highlanders | B62: 69 | D62: Riketorians | F62: 55 | H62: Fantasy Hockey Club | J62: 56 | L62: Riketorians | N62: 0 | P62: District 5 | R62: 0
A64: Game 2 | B64: Score | D64: Game 7 | F64: Score | H64: Game 12 | J64: Score | L64: Game 17 | N64: Score | P64: Game 22 | R64: Score
A65: Shawnee Tribe | B65: 33 | D65: Shawnee Tribe | F65: 75 | H65: Shawnee Tribe | J65: 54 | L65: Shawnee Tribe | N65: 0 | P65: Shawnee Tribe | R65: 0
A66: District 5 | B66: 62 | D66: Fantasy Hockey Club | F66: 46 | H66: Highlanders | J66: 42 | L66: Slappers | N66: 0 | P66: Highlanders | R66: 0
A68: Game 3 | B68: Score | D68: Game 8 | F68: Score | H68: Game 13 | J68: Score | L68: Game 18 | N68: Score
A69: Shawnee Tribe | B69: 66 | D69: Shawnee Tribe | F69: 59 | H69: Shawnee Tribe | J69: 69 | L69: Shawnee Tribe | N69: 0
A70: Slappers | B70: 73 | D70: Slappers | F70: 56 | H70: District 5 | J70: 65 | L70: Just Chillin | N70: 0
A72: Game 4 | B72: Score | D72: Game 9 | F72: Score | H72: Game 14 | J72: Score | L72: Game 19 | N72: Score
A73: Shawnee Tribe | B73: 48 | D73: Shawnee Tribe | F73: 68 | H73: Shawnee Tribe | J73: 0 | L73: Shawnee Tribe | N73: 0
A74: Just Chillin | B74: 66 | D74: Damn Yankees | F74: 46 | H74: Just Chillin | J74: 0 | L74: Team LIRHL | N74: 0
A76: Game 5 | B76: Score | D76: Game 10 | F76: Score | H76: Game 15 | J76: Score | L76: Game 20 | N76: Score
A77: Shawnee Tribe | B77: 52 | D77: Shawnee Tribe | F77: 88 | H77: Shawnee Tribe | J77: 0 | L77: Shawnee Tribe | N77: 0
A78: Grumpy Old Men | B78: 52 | D78: Team LIRHL | F78: 58 | H78: Grumpy Old Men | J78: 0 | L78: Damn Yankees | N78: 0

Sheet Fantasy Hockey Club
A1: Team: Fantasy Hockey Club | D1: General Manager: Barrett Pagan
D3: Scoring This Week | N3: Players Overall Scoring
A4: Forwards | B4: Gls | C4: Ast | D4: PP | E4: SH | F4: GW | G4: OT | H4: PSG | I4: PTS | K4: Gls | L4: Ast | M4: PP | N4: SH | O4: GW | P4: OT | Q4: PSG | R4: PTS
A5: Sebastian Aho | B5: 4 | C5: 5 | D5: 1 | E5: 1 | F5: 0 | G5: 0 | H5: 0 | I5: =(B5+C5+D5+(2*E5)+(2*F5)+G5+(4*H5)) -> 12 | K5: 17 | L5: 25 | M5: 4 | N5: 1 | O5: 2 | P5: 1 | Q5: 0 | R5: =(K5+L5+M5+(2*N5)+(2*O5)+P5+(4*Q5)) -> 53
A6: Cole Caufield | B6: 2 | C6: 2 | D6: 0 | E6: 0 | F6: 0 | G6: 0 | H6: 0 | I6: 4 | K6: 20 | L6: 20 | M6: 4 | N6: 0 | O6: 5 | P6: 3 | Q6: 0 | R6: 57
A7: Elias Lindholm | B7: 2 | C7: 1 | D7: 1 | E7: 0 | F7: 0 | G7: 0 | H7: 0 | I7: 4 | K7: 7 | L7: 19 | M7: 5 | N7: 0 | O7: 1 | P7: 0 | Q7: 0 | R7: 33
A8: Pavel Dorofeyev | B8: 1 | C8: 3 | D8: 0 | E8: 0 | F8: 0 | G8: 0 | H8: 0 | I8: 4 | K8: 16 | L8: 13 | M8: 10 | N8: 0 | O8: 1 | P8: 0 | Q8: 0 | R8: 41
A9: Marcus Johansson | B9: 1 | C9: 3 | D9: 0 | E9: 0 | F9: 0 | G9: 0 | H9: 0 | I9: 4 | K9: 12 | L9: 20 | M9: 3 | N9: 0 | O9: 4 | P9: 1 | Q9: 0 | R9: 44
A10: Artturi Lehkonen | B10: 0 | C10: 3 | D10: 0 | E10: 0 | F10: 0 | G10: 0 | H10: 0 | I10: 3 | K10: 14 | L10: 19 | M10: 1 | N10: 0 | O10: 0 | P10: 0 | Q10: 0 | R10: 34
A11: Anthony Cirelli | B11: 1 | C11: 1 | D11: 0 | E11: 0 | F11: 0 | G11: 0 | H11: 0 | I11: 2 | K11: 11 | L11: 13 | M11: 2 | N11: 0 | O11: 2 | P11: 1 | Q11: 0 | R11: 31
A12: Kiefer Sherwood | B12: 1 | C12: 0 | D12: 1 | E12: 0 | F12: 0 | G12: 0 | H12: 0 | I12: 2 | K12: 17 | L12: 4 | M12: 6 | N12: 1 | O12: 2 | P12: 1 | Q12: 0 | R12: 34
A13: Leon Draisaitl | B13: 0 | C13: 1 | D13: 0 | E13: 0 | F13: 0 | G13: 0 | H13: 0 | I13: 1 | K13: 20 | L13: 37 | M13: 11 | N13: 1 | O13: 2 | P13: 1 | Q13: 0 | R13: 75
A14: Dylan Cozens | B14: 0 | C14: 1 | D14: 0 | E14: 0 | F14: 0 | G14: 0 | H14: 0 | I14: 1 | K14: 11 | L14: 19 | M14: 6 | N14: 0 | O14: 0 | P14: 0 | Q14: 0 | R14: 36
A15: Pavel Zacha | B15: 0 | C15: 0 | D15: 0 | E15: 0 | F15: 0 | G15: 0 | H15: 0 | I15: 0 | K15: 10 | L15: 16 | M15: 4 | N15: 0 | O15: 1 | P15: 1 | Q15: 0 | R15: 33
A18: Defense | B18: Gls | C18: Ast | D18: PP | E18: SH | F18: GW | G18: OT | H18: PSG | I18: PTS | K18: Gls | L18: Ast | M18: PP | N18: SH | O18: GW | P18: OT | Q18: PSG | R18: PTS
A19: KAndre Miller | B19: 0 | C19: 3 | D19: 0 | E19: 0 | F19: 0 | G19: 0 | H19: 0 | I19: =(B19+C19+D19+(2*E19)+(2*F19)+G19+(4*H19)) -> 3 | K19: 2 | L19: 14 | M19: 1 | N19: 0 | O19: 0 | P19: 0 | Q19: 0 | R19: =(K19+L19+M19+(2*N19)+(2*O19)+P19+(4*Q19)) -> 17
A20: Oliver Ekman-Larsson | B20: 1 | C20: 1 | D20: 0 | E20: 0 | F20: 0 | G20: 0 | H20: 0 | I20: 2 | K20: 7 | L20: 18 | M20: 0 | N20: 0 | O20: 0 | P20: 0 | Q20: 0 | R20: 25
A21: Vladislav Gavrikov | B21: 1 | C21: 0 | D21: 1 | E21: 0 | F21: 0 | G21: 0 | H21: 0 | I21: 2 | K21: 7 | L21: 8 | M21: 1 | N21: 0 | O21: 1 | P21: 1 | Q21: 0 | R21: 19
A22: Jakob Chychrun | B22: 0 | C22: 2 | D22: 0 | E22: 0 | F22: 0 | G22: 0 | H22: 0 | I22: 2 | K22: 15 | L22: 16 | M22: 4 | N22: 0 | O22: 4 | P22: 2 | Q22: 0 | R22: 45
A23: Brandt Clarke | B23: 0 | C23: 1 | D23: 0 | E23: 0 | F23: 0 | G23: 0 | H23: 0 | I23: 1 | K23: 5 | L23: 14 | M23: 1 | N23: 0 | O23: 2 | P23: 0 | Q23: 0 | R23: 24
A24: Shayne Gostisbehere | B24: 0 | C24: 0 | D24: 0 | E24: 0 | F24: 0 | G24: 0 | H24: 0 | I24: 0 | K24: 4 | L24: 25 | M24: 2 | N24: 0 | O24: 1 | P24: 0 | Q24: 0 | R24: 33
A25: Rasmus Dahlin | B25: 0 | C25: 0 | D25: 0 | E25: 0 | F25: 0 | G25: 0 | H25: 0 | I25: 0 | K25: 4 | L25: 24 | M25: 2 | N25: 0 | O25: 0 | P25: 0 | Q25: 0 | R25: 30
A27: Goalie | B27: W | C27: OT | D27: SO | E27: Gls | F27: Ast | G27: GAA | H27: SP | I27: PTS | K27: W | L27: OT | M27: SO | N27: Gls | O27: Ast | P27: GAA | Q27: SP | R27: PTS
A28: Logan Thompson | B28: 0 | C28: 1 | D28: 0 | E28: 0 | F28: 0 | G28: 3.31 | H28: 0.892 | I28: =((3*B28)+C28+(3*D28)+(10*E28)+(3*F28)+G29+H29) -> 1 | K28: 15 | L28: 4 | M28: 2 | N28: 0 | O28: 1 | P28: 2.37 | Q28: 0.915 | R28: =((3*K28)+L28+(3*M28)+(10*N28)+(3*O28)+P29+Q29) -> 117
B29: 10 | C29: 181.5 | D29: 83 | E29: 93 | G29: 0 | H29: 0 | I29: =((3*B28)+C28+(3*D28)+(10*E28)+(3*F28)+G29+H29) -> 1 | P29: 26 | Q29: 33 | R29: =((2*K28)+L28+(3*M28)+(10*N28)+(3*O28)+P29+Q29) -> 102
A30: Akira Schmid | B30: 0 | C30: 0 | D30: 0 | E30: 0 | F30: 0 | G30: 2.73 | H30: 0.882 | I30: =((3*B30)+C30+(3*D30)+(10*E30)+(3*F30)+G31+H31) -> 1 | K30: 11 | L30: 4 | M30: 2 | N30: 0 | O30: 0 | P30: 2.5 | Q30: 0.895 | R30: =((3*K30)+L30+(3*M30)+(10*N30)+(3*O30)+P31+Q31) -> 75
B31: 4 | C31: 87.94 | D31: 30 | E31: 34 | G31: 1 | H31: 0 | I31: =((3*B30)+C30+(3*D30)+(10*E30)+(3*F30)+G31+H31) -> 1 | P31: 20 | Q31: 12 | R31: =((2*K30)+L30+(3*M30)+(10*N30)+(3*O30)+P31+Q31) -> 64
D32: All Playes Scoring This Week | N32: Cumulative Points
B33: Gls | C33: Ast | D33: PP | E33: SH | F33: GW | G33: OT | H33: PSG | K33: Gls | L33: Ast | M33: PP | N33: SH | O33: GW | P33: OT | Q33: PSG | R33: PTS
A34: Forwards | B34: =SUM(B5:B15) -> 12 | C34: =SUM(C5:C15) -> 20 | D34: 3 | E34: 1 | F34: 0 | G34: 0 | H34: 0 | K34: 150 | L34: 206 | M34: 53 | N34: 3 | O34: 15 | P34: 5 | Q34: 0 | R34: =(K34+L34+M34+(2*N34)+(2*O34)+P34+(4*Q34)) -> 450
A35: Defense | B35: =SUM(B19:B25) -> 2 | C35: =SUM(C19:C25) -> 7 | D35: 1 | E35: 0 | F35: 0 | G35: 0 | H35: 0 | K35: 36 | L35: 114 | M35: 10 | N35: 0 | O35: 7 | P35: 2 | Q35: 0 | R35: =(K35+L35+M35+(2*N35)+(2*O35)+P35+(4*Q35)) -> 176
A36: Total Scorers | B36: =SUM(B34:B35) -> 14 | C36: =SUM(C34:C35) -> 27 | D36: 4 | E36: 1 | F36: 0 | G36: 0 | H36: 0 | K36: =SUM(K34:K35) -> 186 | L36: 320 | M36: 63 | N36: 3 | O36: 22 | P36: 7 | Q36: 0 | R36: =(K36+L36+M36+(2*N36)+(2*O36)+P36+(4*Q36)) -> 626
B37: W | C37: OT | D37: SO | E37: Gls | F37: Ast | G37: GAA | H37: SP | K37: W | L37: OT | M37: SO | N37: Gls | O37: Ast | P37: GAA | Q37: SP | R37: PTS
A38: Goalie Totals | B38: =SUM(B28,B30) -> 0 | C38: =SUM(C28,C30) -> 1 | D38: =SUM(D28,D30) -> 0 | E38: =SUM(E28,E30) -> 0 | F38: =SUM(F28,F30) -> 0 | G38: =IF(C39=0,0,B39/(C39/60)) -> 3.117577197 | H38: =IF(E39=0,0,D39/E39) -> 0.8897637795 | K38: 21 | L38: 6 | M38: 3 | N38: 0 | O38: 1 | P38: =IF(L39=0,0,K39/(L39/60)) -> 2.570464647 | Q38: =IF(N39=0,0,M39/N39) -> 0.9055861526 | R38: =((3*K38)+L38+(3*M38)+(10*N38)+(3*O38)+P39+Q39) -> 172
B39: =SUM(B29,B31) -> 14 | C39: =SUM(C29,C31) -> 269.44 | D39: =SUM(D29,D31) -> 113 | E39: =SUM(E29,E31) -> 127 | K39: 120 | L39: 2801.05 | M39: 1151 | N39: 1271 | P39: 43 | Q39: 48
K40: GA | L40: Time | M40: Saves | N40: Shots
B42: Injured Reserve | M42: This Weeks Totals
A43: Player | B43: P | C43: GP | D43: IR Weeks | E43: Pts | L43: Forwards | N43: =SUM(I5:I12) -> 35
A44: Bo Horvat | B44: F | C44: 3 | D44: 3 | E44: 47 | L44: Defense | N44: =SUM(I19:I23) -> 10
B45: D | L45: Goalie | N45: =I28 -> 1
A46: Adin Hill | B46: G | C46: 0 | D46: 10 | E46: 9
A47: Evgeni Malkin | B47: F | C47: 0 | D47: 3 | E47: 33 | L47: Total Points | N47: =SUM(N43:N45) -> 46
A56: Team Record | B56: W | C56: L | D56: T | E56: Pts | F56: CP | G56: BPF | H56: BFA | I56: Streak
A57: Fantasy Hockey Club | B57: 4 | C57: 9 | D57: 0 | E57: =2*B57+D57 -> 8 | F57: =R36+R38 -> 798 | G57: =SUM(B61,B65,B69,B73,B77,F61,F65,F69,F73,F77,J61,J65,J69,J73,J77,N61,N65,N69,N73,N77,R61,R65) -> 715 | H57: =SUM(B62,B66,B70,B74,B78,F62,F66,F70,F74,F78,J62,J66,J70,J74,J78,N62,N66,N70,N74,N78,R62,R66) -> 766 | I57: Lost 7
A60: Game 1 | B60: Score | D60: Game 6 | F60: Score | H60: Game 11 | J60: Score | L60: Game 16 | N60: Score | P60: Game 21 | R60: Score
A61: Fantasy Hockey Club | B61: 52 | D61: Fantasy Hockey Club | F61: 60 | H61: Fantasy Hockey Club | J61: 56 | L61: Fantasy Hockey Club | N61: 0 | P61: Fantasy Hockey Club | R61: 0
A62: Grumpy Old Men | B62: 59 | D62: Just Chillin | F62: 44 | H62: Shawnee Tribe | J62: 77 | L62: District 5 | N62: 0 | P62: Slappers | R62: 0
A64: Game 2 | B64: Score | D64: Game 7 | F64: Score | H64: Game 12 | J64: Score | L64: Game 17 | N64: Score | P64: Game 22 | R64: Score
A65: Fantasy Hockey Club | B65: 70 | D65: Fantasy Hockey Club | F65: 46 | H65: Fantasy Hockey Club | J65: 46 | L65: Fantasy Hockey Club | N65: 0 | P65: Fantasy Hockey Club | R65: 0
A66: Riketorians | B66: 39 | D66: Shawnee Tribe | F66: 75 | H66: Damn Yankees | J66: 50 | L66: Riketorians | N66: 0 | P66: Grumpy Old Men | R66: 0
A68: Game 3 | B68: Score | D68: Game 8 | F68: Score | H68: Game 13 | J68: Score | L68: Game 18 | N68: Score
A69: Fantasy Hockey Club | B69: 63 | D69: Fantasy Hockey Club | F69: 62 | H69: Fantasy Hockey Club | J69: 46 | L69: Fantasy Hockey Club | N69: 0
A70: Damn Yankees | B70: 49 | D70: Team LIRHL | F70: 67 | H70: Slappers | J70: 60 | L70: Team LIRHL | N70: 0
A72: Game 4 | B72: Score | D72: Game 9 | F72: Score | H72: Game 14 | J72: Score | L72: Game 19 | N72: Score
A73: Fantasy Hockey Club | B73: 55 | D73: Fantasy Hockey Club | F73: 57 | H73: Fantasy Hockey Club | J73: 0 | L73: Fantasy Hockey Club | N73: 0
A74: Highlanders | B74: 52 | D74: Riketorians | F74: 79 | H74: Grumpy Old Men | J74: 0 | L74: Just Chillin | N74: 0
A76: Game 5 | B76: Score | D76: Game 10 | F76: Score | H76: Game 15 | J76: Score | L76: Game 20 | N76: Score
A77: Fantasy Hockey Club | B77: 44 | D77: Fantasy Hockey Club | F77: 58 | H77: Fantasy Hockey Club | J77: 0 | L77: Fantasy Hockey Club | N77: 0
A78: Team LIRHL | B78: 54 | D78: District 5 | F78: 61 | H78: Damn Yankees | J78: 0 | L78: Highlanders | N78: 0

Sheet Grumpy Old Men
A1: Team: Grumpy Old Men | D1: General Manager: Tom Romano
D3: Scoring This Week | N3: Players Overall Scoring
A4: Forwards | B4: Gls | C4: Ast | D4: PP | E4: SH | F4: GW | G4: OT | H4: PSG | I4: PTS | K4: Gls | L4: Ast | M4: PP | N4: SH | O4: GW | P4: OT | Q4: PSG | R4: PTS
A5: Nathan MacKinnon | B5: 4 | C5: 6 | D5: 0 | E5: 0 | F5: 1 | G5: 0 | H5: 0 | I5: =(B5+C5+D5+(2*E5)+(2*F5)+G5+(4*H5)) -> 12 | K5: 35 | L5: 39 | M5: 7 | N5: 0 | O5: 5 | P5: 1 | Q5: 0 | R5: =(K5+L5+M5+(2*N5)+(2*O5)+P5+(4*Q5)) -> 92
A6: Mika Zibanejad | B6: 3 | C6: 3 | D6: 1 | E6: 1 | F6: 0 | G6: 0 | H6: 0 | I6: 9 | K6: 15 | L6: 20 | M6: 8 | N6: 2 | O6: 2 | P6: 0 | Q6: 0 | R6: 51
A7: Nikolaj Ehlers | B7: 2 | C7: 4 | D7: 2 | E7: 0 | F7: 0 | G7: 0 | H7: 0 | I7: 8 | K7: 10 | L7: 20 | M7: 4 | N7: 0 | O7: 3 | P7: 1 | Q7: 0 | R7: 41
A8: Joel Eriksson Ek | B8: 2 | C8: 3 | D8: 1 | E8: 0 | F8: 0 | G8: 0 | H8: 0 | I8: 6 | K8: 11 | L8: 21 | M8: 3 | N8: 0 | O8: 2 | P8: 0 | Q8: 0 | R8: 39
A9: Clayton Keller | B9: 1 | C9: 3 | D9: 1 | E9: 0 | F9: 0 | G9: 0 | H9: 0 | I9: 5 | K9: 13 | L9: 23 | M9: 1 | N9: 0 | O9: 3 | P9: 2 | Q9: 0 | R9: 45
A10: Mark Stone | B10: 3 | C10: 0 | D10: 1 | E10: 0 | F10: 0 | G10: 0 | H10: 0 | I10: 4 | K10: 11 | L10: 21 | M10: 5 | N10: 0 | O10: 1 | P10: 1 | Q10: 0 | R10: 40
A11: Matt Coronato | B11: 0 | C11: 4 | D11: 0 | E11: 0 | F11: 0 | G11: 0 | H11: 0 | I11: 4 | K11: 11 | L11: 13 | M11: 5 | N11: 0 | O11: 2 | P11: 0 | Q11: 0 | R11: 33
A12: Jason Robertson | B12: 1 | C12: 2 | D12: 0 | E12: 0 | F12: 0 | G12: 0 | H12: 0 | I12: 3 | K12: 24 | L12: 24 | M12: 9 | N12: 0 | O12: 3 | P12: 0 | Q12: 0 | R12: 63
A13: Sam Bennett | B13: 0 | C13: 3 | D13: 0 | E13: 0 | F13: 0 | G13: 0 | H13: 0 | I13: 3 | K13: 13 | L13: 17 | M13: 1 | N13: 0 | O13: 4 | P13: 1 | Q13: 0 | R13: 40
A14: Emil Heineman | B14: 1 | C14: 1 | D14: 0 | E14: 0 | F14: 0 | G14: 0 | H14: 0 | I14: 2 | K14: 13 | L14: 7 | M14: 2 | N14: 0 | O14: 0 | P14: 0 | Q14: 0 | R14: 22
A15: Chris Kreider | B15: 0 | C15: 0 | D15: 0 | E15: 0 | F15: 0 | G15: 0 | H15: 0 | I15: 0 | K15: 13 | L15: 9 | M15: 6 | N15: 0 | O15: 1 | P15: 0 | Q15: 0 | R15: 30
A18: Defense | B18: Gls | C18: Ast | D18: PP | E18: SH | F18: GW | G18: OT | H18: PSG | I18: PTS | K18: Gls | L18: Ast | M18: PP | N18: SH | O18: GW | P18: OT | Q18: PSG | R18: PTS
A19: Matthew Schaefer | B19: 3 | C19: 1 | D19: 1 | E19: 0 | F19: 1 | G19: 1 | H19: 0 | I19: =(B19+C19+D19+(2*E19)+(2*F19)+G19+(4*H19)) -> 8 | K19: 12 | L19: 16 | M19: 6 | N19: 0 | O19: 3 | P19: 2 | Q19: 0 | R19: =(K19+L19+M19+(2*N19)+(2*O19)+P19+(4*Q19)) -> 42
A20: Thomas Chabot | B20: 2 | C20: 1 | D20: 1 | E20: 0 | F20: 0 | G20: 0 | H20: 0 | I20: 4 | K20: 4 | L20: 11 | M20: 2 | N20: 0 | O20: 0 | P20: 0 | Q20: 0 | R20: 17
A21: MacKenzie Weegar | B21: 0 | C21: 3 | D21: 0 | E21: 0 | F21: 0 | G21: 0 | H21: 0 | I21: 3 | K21: 3 | L21: 12 | M21: 0 | N21: 0 | O21: 0 | P21: 0 | Q21: 0 | R21: 15
A22: Josh Morrissey | B22: 0 | C22: 2 | D22: 0 | E22: 0 | F22: 0 | G22: 0 | H22: 0 | I22: 2 | K22: 6 | L22: 26 | M22: 1 | N22: 0 | O22: 0 | P22: 0 | Q22: 0 | R22: 33
A23: Miro Heiskanen | B23: 0 | C23: 1 | D23: 0 | E23: 0 | F23: 0 | G23: 0 | H23: 0 | I23: 1 | K23: 7 | L23: 28 | M23: 1 | N23: 1 | O23: 2 | P23: 0 | Q23: 0 | R23: 42
A24: Darnell Nurse | B24: 0 | C24: 1 | D24: 0 | E24: 0 | F24: 0 | G24: 0 | H24: 0 | I24: 1 | K24: 6 | L24: 9 | M24: 0 | N24: 0 | O24: 0 | P24: 0 | Q24: 0 | R24: 15
A25: Artem Zub | B25: 0 | C25: 0 | D25: 0 | E25: 0 | F25: 0 | G25: 0 | H25: 0 | I25: 0 | K25: 3 | L25: 9 | M25: 0 | N25: 0 | O25: 0 | P25: 0 | Q25: 0 | R25: 12
A27: Goalie | B27: W | C27: OT | D27: SO | E27: Gls | F27: Ast | G27: GAA | H27: SP | I27: PTS | K27: W | L27: OT | M27: SO | N27: Gls | O27: Ast | P27: GAA | Q27: SP | R27: PTS
A28: Igor Shesterkin | B28: 1 | C28: 1 | D28: 0 | E28: 0 | F28: 0 | G28: 1.92 | H28: 0.944 | I28: =((3*B28)+C28+(3*D28)+(10*E28)+(3*F28)+G29+H29) -> 12 | K28: 17 | L28: 4 | M28: 1 | N28: 0 | O28: 0 | P28: 2.47 | Q28: 0.912 | R28: =((3*K28)+L28+(3*M28)+(10*N28)+(3*O28)+P29+Q29) -> 106
B29: 4 | C29: 124.78 | D29: 68 | E29: 72 | G29: 3 | H29: 5 | I29: =((3*B28)+C28+(3*D28)+(10*E28)+(3*F28)+G29+H29) -> 12 | P29: 20 | Q29: 28 | R29: =((2*K28)+L28+(3*M28)+(10*N28)+(3*O28)+P29+Q29) -> 89
A30: Joseph Woll | B30: 1 | C30: 1 | D30: 1 | E30: 0 | F30: 0 | G30: 3.21 | H30: 0.893 | I30: =((3*B30)+C30+(3*D30)+(10*E30)+(3*F30)+G31+H31) -> 7 | K30: 8 | L30: 2 | M30: 1 | N30: 0 | O30: 0 | P30: 2.82 | Q30: 0.912 | R30: =((3*K30)+L30+(3*M30)+(10*N30)+(3*O30)+P31+Q31) -> 51
B31: 8 | C31: 149.58 | D31: 67 | E31: 75 | G31: 0 | H31: 0 | I31: =((3*B30)+C30+(3*D30)+(10*E30)+(3*F30)+G31+H31) -> 7 | P31: 8 | Q31: 14 | R31: =((2*K30)+L30+(3*M30)+(10*N30)+(3*O30)+P31+Q31) -> 43
D32: All Playes Scoring This Week | N32: Cumulative Points
B33: Gls | C33: Ast | D33: PP | E33: SH | F33: GW | G33: OT | H33: PSG | K33: Gls | L33: Ast | M33: PP | N33: SH | O33: GW | P33: OT | Q33: PSG | R33: PTS
A34: Forwards | B34: =SUM(B5:B15) -> 17 | C34: =SUM(C5:C15) -> 29 | D34: 6 | E34: 1 | F34: 1 | G34: 0 | H34: 0 | K34: 163 | L34: 212 | M34: 48 | N34: 2 | O34: 26 | P34: 6 | Q34: 0 | R34: =(K34+L34+M34+(2*N34)+(2*O34)+P34+(4*Q34)) -> 485
A35: Defense | B35: =SUM(B19:B25) -> 5 | C35: =SUM(C19:C25) -> 9 | D35: 2 | E35: 0 | F35: 1 | G35: 1 | H35: 0 | K35: 40 | L35: 109 | M35: 10 | N35: 1 | O35: 5 | P35: 2 | Q35: 0 | R35: =(K35+L35+M35+(2*N35)+(2*O35)+P35+(4*Q35)) -> 173
A36: Total Scorers | B36: =SUM(B34:B35) -> 22 | C36: =SUM(C34:C35) -> 38 | D36: 8 | E36: 1 | F36: 2 | G36: 1 | H36: 0 | K36: =SUM(K34:K35) -> 203 | L36: 321 | M36: 58 | N36: 3 | O36: 31 | P36: 8 | Q36: 0 | R36: =(K36+L36+M36+(2*N36)+(2*O36)+P36+(4*Q36)) -> 658
B37: W | C37: OT | D37: SO | E37: Gls | F37: Ast | G37: GAA | H37: SP | K37: W | L37: OT | M37: SO | N37: Gls | O37: Ast | P37: GAA | Q37: SP | R37: PTS
A38: Goalie Totals | B38: =SUM(B28,B30) -> 2 | C38: =SUM(C28,C30) -> 2 | D38: =SUM(D28,D30) -> 1 | E38: =SUM(E28,E30) -> 0 | F38: =SUM(F28,F30) -> 0 | G38: =IF(C39=0,0,B39/(C39/60)) -> 2.624289255 | H38: =IF(E39=0,0,D39/E39) -> 0.9183673469 | K38: 30 | L38: 6 | M38: 2 | N38: 0 | O38: 0 | P38: =IF(L39=0,0,K39/(L39/60)) -> 2.72311379 | Q38: =IF(N39=0,0,M39/N39) -> 0.9064254523 | R38: =((3*K38)+L38+(3*M38)+(10*N38)+(3*O38)+P39+Q39) -> 175
B39: =SUM(B29,B31) -> 12 | C39: =SUM(C29,C31) -> 274.36 | D39: =SUM(D29,D31) -> 135 | E39: =SUM(E29,E31) -> 147 | K39: 150 | L39: 3305.04 | M39: 1453 | N39: 1603 | P39: 30 | Q39: 43
K40: GA | L40: Time | M40: Saves | N40: Shots
B42: Injured Reserve | M42: This Weeks Totals
A43: Player | B43: P | C43: GP | D43: IR Weeks | E43: Pts | L43: Forwards | N43: =SUM(I5:I12) -> 51
A44: Aleksander Barkov | B44: F | C44: 0 | D44: 12 | E44: 0 | L44: Defense | N44: =SUM(I19:I23) -> 18
B45: D | L45: Goalie | N45: =I28 -> 12
A46: Anthony Stolarz | B46: G | C46: 0 | D46: 6 | E46: 24
B47: Flex | L47: Total Points | N47: =SUM(N43:N45) -> 81
A56: Team Record | B56: W | C56: L | D56: T | E56: Pts | F56: CP | G56: BPF | H56: BFA | I56: Streak
A57: Grumpy Old Men | B57: 7 | C57: 5 | D57: 1 | E57: =2*B57+D57 -> 15 | F57: =R36+R38 -> 833 | G57: =SUM(B61,B65,B69,B73,B77,F61,F65,F69,F73,F77,J61,J65,J69,J73,J77,N61,N65,N69,N73,N77,R61,R65) -> 746 | H57: =SUM(B62,B66,B70,B74,B78,F62,F66,F70,F74,F78,J62,J66,J70,J74,J78,N62,N66,N70,N74,N78,R62,R66) -> 691 | I57: Won 1
A60: Game 1 | B60: Score | D60: Game 6 | F60: Score | H60: Game 11 | J60: Score | L60: Game 16 | N60: Score | P60: Game 21 | R60: Score
A61: Grumpy Old Men | B61: 59 | D61: Grumpy Old Men | F61: 84 | H61: Grumpy Old Men | J61: 51 | L61: Grumpy Old Men | N61: 0 | P61: Grumpy Old Men | R61: 0
A62: Fantasy Hockey Club | B62: 52 | D62: Highlanders | F62: 47 | H62: Just Chillin | J62: 47 | L62: Slappers | N62: 0 | P62: Riketorians | R62: 0
A64: Game 2 | B64: Score | D64: Game 7 | F64: Score | H64: Game 12 | J64: Score | L64: Game 17 | N64: Score | P64: Game 22 | R64: Score
A65: Grumpy Old Men | B65: 53 | D65: Grumpy Old Men | F65: 44 | H65: Grumpy Old Men | J65: 38 | L65: Grumpy Old Men | N65: 0 | P65: Grumpy Old Men | R65: 0
A66: Team LIRHL | B66: 44 | D66: Just Chillin | F66: 54 | H66: District 5 | J66: 60 | L66: Team LIRHL | N66: 0 | P66: Fantasy Hockey Club | R66: 0
A68: Game 3 | B68: Score | D68: Game 8 | F68: Score | H68: Game 13 | J68: Score | L68: Game 18 | N68: Score
A69: Grumpy Old Men | B69: 45 | D69: Grumpy Old Men | F69: 55 | H69: Grumpy Old Men | J69: 81 | L69: Grumpy Old Men | N69: 0
A70: Riketorians | B70: 62 | D70: Damn Yankees | F70: 56 | H70: Riketorians | J70: 75 | L70: Damn Yankees | N70: 0
A72: Game 4 | B72: Score | D72: Game 9 | F72: Score | H72: Game 14 | J72: Score | L72: Game 19 | N72: Score
A73: Grumpy Old Men | B73: 49 | D73: Grumpy Old Men | F73: 69 | H73: Grumpy Old Men | J73: 0 | L73: Grumpy Old Men | N73: 0
A74: Damn Yankees | B74: 61 | D74: Team LIRHL | F74: 35 | H74: Fantasy Hockey Club | J74: 0 | L74: Highlanders | N74: 0
A76: Game 5 | B76: Score | D76: Game 10 | F76: Score | H76: Game 15 | J76: Score | L76: Game 20 | N76: Score
A77: Grumpy Old Men | B77: 52 | D77: Grumpy Old Men | F77: 66 | H77: Grumpy Old Men | J77: 0 | L77: Grumpy Old Men | N77: 0
A78: Shawnee Tribe | B78: 52 | D78: Slappers | F78: 46 | H78: Shawnee Tribe | J78: 0 | L78: District 5 | N78: 0

Sheet Highlanders
A1: Team: Highlanders | C1: General Manager: Anthony J. Porfido
D3: Scoring This Week | N3: Players Overall Scoring
A4: Forwards | B4: Gls | C4: Ast | D4: PP | E4: SH | F4: GW | G4: OT | H4: PSG | I4: PTS | K4: Gls | L4: Ast | M4: PP | N4: SH | O4: GW | P4: OT | Q4: PSG | R4: PTS
A5: Brayden Point | B5: 4 | C5: 2 | D5: 1 | E5: 0 | F5: 0 | G5: 0 | H5: 0 | I5: =(B5+C5+D5+(2*E5)+(2*F5)+G5+(4*H5)) -> 7 | K5: 10 | L5: 16 | M5: 2 | N5: 0 | O5: 0 | P5: 0 | Q5: 0 | R5: =(K5+L5+M5+(2*N5)+(2*O5)+P5+(4*Q5)) -> 28
A6: Nick Suzuki | B6: 3 | C6: 0 | D6: 1 | E6: 0 | F6: 1 | G6: 1 | H6: 0 | I6: 7 | K6: 14 | L6: 31 | M6: 8 | N6: 0 | O6: 1 | P6: 1 | Q6: 0 | R6: 56
A7: Kirill Marchenko | B7: 3 | C7: 1 | D7: 0 | E7: 0 | F7: 1 | G7: 0 | H7: 0 | I7: 6 | K7: 14 | L7: 17 | M7: 3 | N7: 1 | O7: 3 | P7: 0 | Q7: 0 | R7: 42
A8: Jackson Blake | B8: 1 | C8: 0 | D8: 1 | E8: 0 | F8: 1 | G8: 1 | H8: 0 | I8: 5 | K8: 12 | L8: 12 | M8: 2 | N8: 0 | O8: 2 | P8: 1 | Q8: 0 | R8: 31
A9: Kirill Kaprizov | B9: 1 | C9: 2 | D9: 1 | E9: 0 | F9: 0 | G9: 0 | H9: 0 | I9: 4 | K9: 24 | L9: 25 | M9: 9 | N9: 0 | O9: 2 | P9: 2 | Q9: 0 | R9: 64
A10: JJ Peterka | B10: 1 | C10: 1 | D10: 1 | E10: 0 | F10: 0 | G10: 0 | H10: 0 | I10: 3 | K10: 15 | L10: 14 | M10: 2 | N10: 0 | O10: 2 | P10: 0 | Q10: 0 | R10: 35
A11: Trevor Zegras | B11: 0 | C11: 2 | D11: 0 | E11: 0 | F11: 0 | G11: 0 | H11: 0 | I11: 2 | K11: 15 | L11: 24 | M11: 5 | N11: 0 | O11: 2 | P11: 0 | Q11: 0 | R11: 48
A12: Adam Fantilli | B12: 0 | C12: 2 | D12: 0 | E12: 0 | F12: 0 | G12: 0 | H12: 0 | I12: 2 | K12: 12 | L12: 13 | M12: 3 | N12: 0 | O12: 2 | P12: 2 | Q12: 0 | R12: 34
A13: Mitch Marner | B13: 0 | C13: 1 | D13: 0 | E13: 0 | F13: 0 | G13: 0 | H13: 0 | I13: 1 | K13: 9 | L13: 31 | M13: 2 | N13: 0 | O13: 0 | P13: 0 | Q13: 0 | R13: 42
A14: Morgan Geekie | B14: 0 | C14: 1 | D14: 0 | E14: 0 | F14: 0 | G14: 0 | H14: 0 | I14: 1 | K14: 25 | L14: 16 | M14: 7 | N14: 0 | O14: 4 | P14: 1 | Q14: 0 | R14: 57
A15: Leo Carlsson | B15: 0 | C15: 1 | D15: 0 | E15: 0 | F15: 0 | G15: 0 | H15: 0 | I15: 1 | K15: 17 | L15: 25 | M15: 3 | N15: 2 | O15: 3 | P15: 1 | Q15: 0 | R15: 56
A18: Defense | B18: Gls | C18: Ast | D18: PP | E18: SH | F18: GW | G18: OT | H18: PSG | I18: PTS | K18: Gls | L18: Ast | M18: PP | N18: SH | O18: GW | P18: OT | Q18: PSG | R18: PTS
A19: Aaron Ekblad | B19: 1 | C19: 1 | D19: 0 | E19: 0 | F19: 1 | G19: 0 | H19: 0 | I19: =(B19+C19+D19+(2*E19)+(2*F19)+G19+(4*H19)) -> 4 | K19: 2 | L19: 13 | M19: 1 | N19: 0 | O19: 2 | P19: 0 | Q19: 0 | R19: =(K19+L19+M19+(2*N19)+(2*O19)+P19+(4*Q19)) -> 20
A20: Luke Hughes | B20: 1 | C20: 1 | D20: 0 | E20: 0 | F20: 1 | G20: 0 | H20: 0 | I20: 4 | K20: 4 | L20: 17 | M20: 0 | N20: 0 | O20: 1 | P20: 0 | Q20: 0 | R20: 23
A21: Sean Durzi | B21: 0 | C21: 3 | D21: 0 | E21: 0 | F21: 0 | G21: 0 | H21: 0 | I21: 3 | K21: 1 | L21: 10 | M21: 0 | N21: 0 | O21: 0 | P21: 0 | Q21: 0 | R21: 11
A22: Charlie McAvoy | B22: 0 | C22: 2 | D22: 0 | E22: 0 | F22: 0 | G22: 0 | H22: 0 | I22: 2 | K22: 1 | L22: 20 | M22: 0 | N22: 0 | O22: 0 | P22: 0 | Q22: 0 | R22: 21
A23: Jackson LaCombe | B23: 0 | C23: 1 | D23: 0 | E23: 0 | F23: 0 | G23: 0 | H23: 0 | I23: 1 | K23: 6 | L23: 17 | M23: 1 | N23: 1 | O23: 0 | P23: 0 | Q23: 0 | R23: 26
A24: Drew Doughty | B24: 0 | C24: 0 | D24: 0 | E24: 0 | F24: 0 | G24: 0 | H24: 0 | I24: 0 | K24: 3 | L24: 10 | M24: 0 | N24: 0 | O24: 0 | P24: 0 | Q24: 0 | R24: 13
A25: Thomas Harley | B25: 0 | C25: 0 | D25: 0 | E25: 0 | F25: 0 | G25: 0 | H25: 0 | I25: 0 | K25: 2 | L25: 12 | M25: 0 | N25: 0 | O25: 1 | P25: 0 | Q25: 0 | R25: 16
A27: Goalie | B27: W | C27: OT | D27: SO | E27: Gls | F27: Ast | G27: GAA | H27: SP | I27: PTS | K27: W | L27: OT | M27: SO | N27: Gls | O27: Ast | P27: GAA | Q27: SP | R27: PTS
A28: David Rittich | B28: 2 | C28: 0 | D28: 0 | E28: 0 | F28: 0 | G28: 3.33 | H28: 0.852 | I28: =((3*B28)+C28+(3*D28)+(10*E28)+(3*F28)+G29+H29) -> 6 | K28: 11 | L28: 2 | M28: 2 | N28: 0 | O28: 0 | P28: 2.48 | Q28: 0.907 | R28: =((3*K28)+L28+(3*M28)+(10*N28)+(3*O28)+P29+Q29) -> 93
B29: 13 | C29: 234 | D29: 75 | E29: 88 | G29: 0 | H29: 0 | I29: =((3*B28)+C28+(3*D28)+(10*E28)+(3*F28)+G29+H29) -> 6 | P29: 23 | Q29: 29 | R29: =((2*K28)+L28+(3*M28)+(10*N28)+(3*O28)+P29+Q29) -> 82
A30: Scott Wedgewood | B30: 1 | C30: 0 | D30: 0 | E30: 0 | F30: 0 | G30: 3 | H30: 0.893 | I30: =((3*B30)+C30+(3*D30)+(10*E30)+(3*F30)+G31+H31) -> 3 | K30: 18 | L30: 4 | M30: 2 | N30: 0 | O30: 1 | P30: 2.17 | Q30: 0.918 | R30: =((3*K30)+L30+(3*M30)+(10*N30)+(3*O30)+P31+Q31) -> 120
B31: 3 | C31: 60 | D31: 25 | E31: 28 | G31: 0 | H31: 0 | I31: =((3*B30)+C30+(3*D30)+(10*E30)+(3*F30)+G31+H31) -> 3 | P31: 26 | Q31: 27 | R31: =((2*K30)+L30+(3*M30)+(10*N30)+(3*O30)+P31+Q31) -> 102
D32: All Playes Scoring This Week | N32: Cumulative Points
B33: Gls | C33: Ast | D33: PP | E33: SH | F33: GW | G33: OT | H33: PSG | K33: Gls | L33: Ast | M33: PP | N33: SH | O33: GW | P33: OT | Q33: PSG | R33: PTS
A34: Forwards | B34: =SUM(B5:B15) -> 13 | C34: =SUM(C5:C15) -> 13 | D34: 5 | E34: 0 | F34: 3 | G34: 2 | H34: 0 | K34: 159 | L34: 210 | M34: 41 | N34: 6 | O34: 22 | P34: 8 | Q34: 0 | R34: =(K34+L34+M34+(2*N34)+(2*O34)+P34+(4*Q34)) -> 474
A35: Defense | B35: =SUM(B19:B25) -> 2 | C35: =SUM(C19:C25) -> 8 | D35: 0 | E35: 0 | F35: 2 | G35: 0 | H35: 0 | K35: 25 | L35: 110 | M35: 3 | N35: 1 | O35: 7 | P35: 0 | Q35: 0 | R35: =(K35+L35+M35+(2*N35)+(2*O35)+P35+(4*Q35)) -> 154
A36: Total Scorers | B36: =SUM(B34:B35) -> 15 | C36: =SUM(C34:C35) -> 21 | D36: 5 | E36: 0 | F36: 5 | G36: 2 | H36: 0 | K36: =SUM(K34:K35) -> 184 | L36: 320 | M36: 44 | N36: 7 | O36: 29 | P36: 8 | Q36: 0 | R36: =(K36+L36+M36+(2*N36)+(2*O36)+P36+(4*Q36)) -> 628
B37: W | C37: OT | D37: SO | E37: Gls | F37: Ast | G37: GAA | H37: SP | K37: W | L37: OT | M37: SO | N37: Gls | O37: Ast | P37: GAA | Q37: SP | R37: PTS
A38: Goalie Totals | B38: =SUM(B28,B30) -> 3 | C38: =SUM(C28,C30) -> 0 | D38: =SUM(D28,D30) -> 0 | E38: =SUM(E28,E30) -> 0 | F38: =SUM(F28,F30) -> 0 | G38: =IF(C39=0,0,B39/(C39/60)) -> 3.265306122 | H38: =IF(E39=0,0,D39/E39) -> 0.8620689655 | K38: 28 | L38: 4 | M38: 4 | N38: 0 | O38: 0 | P38: =IF(L39=0,0,K39/(L39/60)) -> 2.660647424 | Q38: =IF(N39=0,0,M39/N39) -> 0.9036231884 | R38: =((3*K38)+L38+(3*M38)+(10*N38)+(3*O38)+P39+Q39) -> 168
B39: =SUM(B29,B31) -> 16 | C39: =SUM(C29,C31) -> 294 | D39: =SUM(D29,D31) -> 100 | E39: =SUM(E29,E31) -> 116 | K39: 133 | L39: 2999.27 | M39: 1247 | N39: 1380 | P39: 30 | Q39: 38
K40: GA | L40: Time | M40: Saves | N40: Shots
B42: Injured Reserve | M42: This Weeks Totals
A43: Player | B43: P | C43: GP | D43: IR Weeks | E43: Pts | L43: Forwards | N43: =SUM(I5:I12) -> 36
A44: Matthew Tkachuk | B44: F | C44: 0 | D44: 13 | E44: 0 | L44: Defense | N44: =SUM(I19:I23) -> 14
A45: Adam Fox | B45: D | C45: 2 | D45: 4 | E45: 32 | L45: Goalie | N45: =I28 -> 6
A46: Ilya Sorokin | B46: G | C46: 0 | D46: 1 | E46: 82
A47: Seth Jarvis | B47: Flex | C47: 0 | D47: 2 | E47: 44 | L47: Total Points | N47: =SUM(N43:N45) -> 56
A49: Warning, Adam Fox must be returned to lineup by start of Week 15
A56: Team Record | B56: W | C56: L | D56: T | E56: Pts | F56: CP | G56: BPF | H56: BFA | I56: Streak
A57: Highlanders | B57: 5 | C57: 8 | D57: 0 | E57: =2*B57+D57 -> 10 | F57: =R36+R38 -> 796 | G57: =SUM(B61,B65,B69,B73,B77,F61,F65,F69,F73,F77,J61,J65,J69,J73,J77,N61,N65,N69,N73,N77,R61,R65) -> 721 | H57: =SUM(B62,B66,B70,B74,B78,F62,F66,F70,F74,F78,J62,J66,J70,J74,J78,N62,N66,N70,N74,N78,R62,R66) -> 783 | I57: Won 1
A60: Game 1 | B60: Score | D60: Game 6 | F60: Score | H60: Game 11 | J60: Score | L60: Game 16 | N60: Score | P60: Game 21 | R60: Score
A61: Highlanders | B61: 69 | D61: Highlanders | F61: 47 | H61: Highlanders | J61: 64 | L61: Highlanders | N61: 0 | P61: Highlanders | R61: 0
A62: Shawnee Tribe | B62: 33 | D62: Grumpy Old Men | F62: 84 | H62: Team LIRHL | J62: 79 | L62: Damn Yankees | N62: 0 | P62: Just Chillin | R62: 0
A64: Game 2 | B64: Score | D64: Game 7 | F64: Score | H64: Game 12 | J64: Score | L64: Game 17 | N64: Score | P64: Game 22 | R64: Score
A65: Highlanders | B65: 49 | D65: Highlanders | F65: 58 | H65: Highlanders | J65: 42 | L65: Highlanders | N65: 0 | P65: Highlanders | R65: 0
A66: Just Chillin | B66: 67 | D66: Damn Yankees | F66: 75 | H66: Shawnee Tribe | J66: 54 | L66: District 5 | N66: 0 | P66: Shawnee Tribe | R66: 0
A68: Game 3 | B68: Score | D68: Game 8 | F68: Score | H68: Game 13 | J68: Score | L68: Game 18 | N68: Score
A69: Highlanders | B69: 45 | D69: Highlanders | F69: 65 | H69: Highlanders | J69: 56 | L69: Highlanders | N69: 0
A70: District 5 | B70: 48 | D70: District 5 | F70: 61 | H70: Just Chillin | J70: 51 | L70: Riketorians | N70: 0
A72: Game 4 | B72: Score | D72: Game 9 | F72: Score | H72: Game 14 | J72: Score | L72: Game 19 | N72: Score
A73: Highlanders | B73: 52 | D73: Highlanders | F73: 66 | H73: Highlanders | J73: 0 | L73: Highlanders | N73: 0
A74: Fantasy Hockey Club | B74: 55 | D74: Slappers | F74: 50 | H74: Team LIRHL | J74: 0 | L74: Grumpy Old Men | N74: 0
A76: Game 5 | B76: Score | D76: Game 10 | F76: Score | H76: Game 15 | J76: Score | L76: Game 20 | N76: Score
A77: Highlanders | B77: 59 | D77: Highlanders | F77: 49 | H77: Highlanders | J77: 0 | L77: Highlanders | N77: 0
A78: Slappers | B78: 50 | D78: Riketorians | F78: 76 | H78: Slappers | J78: 0 | L78: Fantasy Hockey Club | N78: 0

Sheet Team LIRHL
A1: Team: Team LIRHL | D1: General Manager: Vacant
D3: Scoring This Week | N3: Players Overall Scoring
A4: Forwards | B4: Gls | C4: Ast | D4: PP | E4: SH | F4: GW | G4: OT | H4: PSG | I4: PTS | K4: Gls | L4: Ast | M4: PP | N4: SH | O4: GW | P4: OT | Q4: PSG | R4: PTS
A5: Nikita Kucherov | B5: 5 | C5: 7 | D5: 2 | E5: 0 | F5: 0 | G5: 0 | H5: 0 | I5: =(B5+C5+D5+(2*E5)+(2*F5)+G5+(4*H5)) -> 14 | K5: 20 | L5: 39 | M5: 5 | N5: 0 | O5: 4 | P5: 1 | Q5: 0 | R5: =(K5+L5+M5+(2*N5)+(2*O5)+P5+(4*Q5)) -> 73
A6: Kevin Fiala | B6: 1 | C6: 3 | D6: 1 | E6: 0 | F6: 0 | G6: 0 | H6: 0 | I6: 5 | K6: 14 | L6: 14 | M6: 4 | N6: 0 | O6: 2 | P6: 0 | Q6: 0 | R6: 36
A7: Nico Hischier | B7: 2 | C7: 0 | D7: 2 | E7: 0 | F7: 0 | G7: 0 | H7: 0 | I7: 4 | K7: 12 | L7: 20 | M7: 4 | N7: 0 | O7: 1 | P7: 0 | Q7: 0 | R7: 38
A8: Dylan Larkin | B8: 1 | C8: 1 | D8: 1 | E8: 0 | F8: 0 | G8: 0 | H8: 0 | I8: 3 | K8: 21 | L8: 17 | M8: 6 | N8: 0 | O8: 5 | P8: 2 | Q8: 0 | R8: 56
A9: Tim Stützle | B9: 0 | C9: 3 | D9: 0 | E9: 0 | F9: 0 | G9: 0 | H9: 0 | I9: 3 | K9: 19 | L9: 24 | M9: 6 | N9: 1 | O9: 3 | P9: 1 | Q9: 0 | R9: 58
A10: Mikko Rantanen | B10: 1 | C10: 1 | D10: 0 | E10: 0 | F10: 0 | G10: 0 | H10: 0 | I10: 2 | K10: 16 | L10: 40 | M10: 4 | N10: 0 | O10: 1 | P10: 0 | Q10: 0 | R10: 62
A11: Adrian Kempe | B11: 1 | C11: 1 | D11: 0 | E11: 0 | F11: 0 | G11: 0 | H11: 0 | I11: 2 | K11: 14 | L11: 19 | M11: 1 | N11: 0 | O11: 5 | P11: 3 | Q11: 0 | R11: 47
A12: Filip Forsberg | B12: 0 | C12: 2 | D12: 0 | E12: 0 | F12: 0 | G12: 0 | H12: 0 | I12: 2 | K12: 16 | L12: 15 | M12: 1 | N12: 0 | O12: 1 | P12: 0 | Q12: 0 | R12: 34
A13: Brady Tkachuk | B13: 0 | C13: 2 | D13: 0 | E13: 0 | F13: 0 | G13: 0 | H13: 0 | I13: 2 | K13: 6 | L13: 13 | M13: 1 | N13: 0 | O13: 2 | P13: 1 | Q13: 0 | R13: 25
A14: Nazem Kadri | B14: 0 | C14: 1 | D14: 0 | E14: 0 | F14: 0 | G14: 0 | H14: 0 | I14: 1 | K14: 8 | L14: 24 | M14: 2 | N14: 0 | O14: 1 | P14: 0 | Q14: 0 | R14: 36
A15: Roope Hintz | B15: 0 | C15: 0 | D15: 0 | E15: 0 | F15: 0 | G15: 0 | H15: 0 | I15: 0 | K15: 12 | L15: 19 | M15: 5 | N15: 0 | O15: 1 | P15: 1 | Q15: 0 | R15: 39
A18: Defense | B18: Gls | C18: Ast | D18: PP | E18: SH | F18: GW | G18: OT | H18: PSG | I18: PTS | K18: Gls | L18: Ast | M18: PP | N18: SH | O18: GW | P18: OT | Q18: PSG | R18: PTS
A19: Alexander Nikishin | B19: 1 | C19: 2 | D19: 1 | E19: 0 | F19: 0 | G19: 0 | H19: 0 | I19: =(B19+C19+D19+(2*E19)+(2*F19)+G19+(4*H19)) -> 4 | K19: 5 | L19: 11 | M19: 1 | N19: 0 | O19: 0 | P19: 0 | Q19: 0 | R19: =(K19+L19+M19+(2*N19)+(2*O19)+P19+(4*Q19)) -> 17
A20: Zeev Buium | B20: 0 | C20: 1 | D20: 0 | E20: 0 | F20: 0 | G20: 0 | H20: 0 | I20: 1 | K20: 4 | L20: 14 | M20: 3 | N20: 0 | O20: 1 | P20: 0 | Q20: 0 | R20: 23
A21: Brent Burns | B21: 0 | C21: 1 | D21: 0 | E21: 0 | F21: 0 | G21: 0 | H21: 0 | I21: 1 | K21: 5 | L21: 15 | M21: 0 | N21: 0 | O21: 3 | P21: 0 | Q21: 0 | R21: 26
A22: Jacob Trouba | B22: 0 | C22: 0 | D22: 0 | E22: 0 | F22: 0 | G22: 0 | H22: 0 | I22: 0 | K22: 6 | L22: 11 | M22: 0 | N22: 0 | O22: 1 | P22: 1 | Q22: 0 | R22: 20
A23: Elias Pettersson D | B23: 0 | C23: 0 | D23: 0 | E23: 0 | F23: 0 | G23: 0 | H23: 0 | I23: 0 | K23: 1 | L23: 5 | M23: 0 | N23: 0 | O23: 0 | P23: 0 | Q23: 0 | R23: 6
A24: Gustav Forsling | B24: 0 | C24: 0 | D24: 0 | E24: 0 | F24: 0 | G24: 0 | H24: 0 | I24: 0 | K24: 1 | L24: 13 | M24: 0 | N24: 0 | O24: 0 | P24: 0 | Q24: 0 | R24: 14
A25: Jake Walman | B25: 0 | C25: 0 | D25: 0 | E25: 0 | F25: 0 | G25: 0 | H25: 0 | I25: 0 | K25: 3 | L25: 7 | M25: 1 | N25: 1 | O25: 1 | P25: 1 | Q25: 0 | R25: 16
A27: Goalie | B27: W | C27: OT | D27: SO | E27: Gls | F27: Ast | G27: GAA | H27: SP | I27: PTS | K27: W | L27: OT | M27: SO | N27: Gls | O27: Ast | P27: GAA | Q27: SP | R27: PTS
A28: Jeremy Swayman | B28: 2 | C28: 1 | D28: 0 | E28: 0 | F28: 0 | G28: 1.94 | H28: 0.944 | I28: =((3*B28)+C28+(3*D28)+(10*E28)+(3*F28)+G29+H29) -> 15 | K28: 16 | L28: 2 | M28: 0 | N28: 0 | O28: 0 | P28: 2.8 | Q28: 0.906 | R28: =((3*K28)+L28+(3*M28)+(10*N28)+(3*O28)+P29+Q29) -> 92
B29: 6 | C29: 185.33 | D29: 84 | E29: 89 | G29: 3 | H29: 5 | I29: =((3*B28)+C28+(3*D28)+(10*E28)+(3*F28)+G29+H29) -> 15 | P29: 17 | Q29: 25 | R29: =((2*K28)+L28+(3*M28)+(10*N28)+(3*O28)+P29+Q29) -> 76
A30: Linus Ullmark | B30: 0 | C30: 0 | D30: 0 | E30: 0 | F30: 0 | G30: 0 | H30: 0 | I30: =((3*B30)+C30+(3*D30)+(10*E30)+(3*F30)+G31+H31) -> 0 | K30: 14 | L30: 5 | M30: 1 | N30: 0 | O30: 0 | P30: 2.95 | Q30: 0.881 | R30: =((3*K30)+L30+(3*M30)+(10*N30)+(3*O30)+P31+Q31) -> 79
B31: 0 | C31: 0 | D31: 0 | E31: 0 | G31: 0 | H31: 0 | I31: =((3*B30)+C30+(3*D30)+(10*E30)+(3*F30)+G31+H31) -> 0 | P31: 16 | Q31: 13 | R31: =((2*K30)+L30+(3*M30)+(10*N30)+(3*O30)+P31+Q31) -> 65
D32: All Playes Scoring This Week | N32: Cumulative Points
B33: Gls | C33: Ast | D33: PP | E33: SH | F33: GW | G33: OT | H33: PSG | K33: Gls | L33: Ast | M33: PP | N33: SH | O33: GW | P33: OT | Q33: PSG | R33: PTS
A34: Forwards | B34: =SUM(B5:B15) -> 11 | C34: =SUM(C5:C15) -> 21 | D34: 6 | E34: 0 | F34: 0 | G34: 0 | H34: 0 | K34: 158 | L34: 244 | M34: 39 | N34: 1 | O34: 26 | P34: 9 | Q34: 0 | R34: =(K34+L34+M34+(2*N34)+(2*O34)+P34+(4*Q34)) -> 504
A35: Defense | B35: =SUM(B19:B25) -> 1 | C35: =SUM(C19:C25) -> 4 | D35: 1 | E35: 0 | F35: 0 | G35: 0 | H35: 0 | K35: 25 | L35: 76 | M35: 5 | N35: 1 | O35: 6 | P35: 2 | Q35: 0 | R35: =(K35+L35+M35+(2*N35)+(2*O35)+P35+(4*Q35)) -> 122
A36: Total Scorers | B36: =SUM(B34:B35) -> 12 | C36: =SUM(C34:C35) -> 25 | D36: 7 | E36: 0 | F36: 0 | G36: 0 | H36: 0 | K36: =SUM(K34:K35) -> 183 | L36: 320 | M36: 44 | N36: 2 | O36: 32 | P36: 11 | Q36: 0 | R36: =(K36+L36+M36+(2*N36)+(2*O36)+P36+(4*Q36)) -> 626
B37: W | C37: OT | D37: SO | E37: Gls | F37: Ast | G37: GAA | H37: SP | K37: W | L37: OT | M37: SO | N37: Gls | O37: Ast | P37: GAA | Q37: SP | R37: PTS
A38: Goalie Totals | B38: =SUM(B28,B30) -> 2 | C38: =SUM(C28,C30) -> 1 | D38: =SUM(D28,D30) -> 0 | E38: =SUM(E28,E30) -> 0 | F38: =SUM(F28,F30) -> 0 | G38: =IF(C39=0,0,B39/(C39/60)) -> 1.94248098 | H38: =IF(E39=0,0,D39/E39) -> 0.9438202247 | K38: 30 | L38: 7 | M38: 1 | N38: 0 | O38: 0 | P38: =IF(L39=0,0,K39/(L39/60)) -> 2.876250222 | Q38: =IF(N39=0,0,M39/N39) -> 0.8944954128 | R38: =((3*K38)+L38+(3*M38)+(10*N38)+(3*O38)+P39+Q39) -> 171
B39: =SUM(B29,B31) -> 6 | C39: =SUM(C29,C31) -> 185.33 | D39: =SUM(D29,D31) -> 84 | E39: =SUM(E29,E31) -> 89 | K39: 162 | L39: 3379.4 | M39: 1365 | N39: 1526 | P39: 33 | Q39: 38
K40: GA | L40: Time | M40: Saves | N40: Shots
B42: Injured Reserve | M42: This Weeks Totals
A43: Player | B43: P | C43: GP | D43: IR Weeks | E43: Pts | L43: Forwards | N43: =SUM(I5:I12) -> 35
B44: F | L44: Defense | N44: =SUM(I19:I23) -> 6
B45: D | L45: Goalie | N45: =I28 -> 15
B46: G
B47: Flex | L47: Total Points | N47: =SUM(N43:N45) -> 56
A56: Team Record | B56: W | C56: L | D56: T | E56: Pts | F56: CP | G56: BPF | H56: BFA | I56: Streak
A57: Team LIRHL | B57: 5 | C57: 7 | D57: 1 | E57: =2*B57+D57 -> 11 | F57: =R36+R38 -> 797 | G57: =SUM(B61,B65,B69,B73,B77,F61,F65,F69,F73,F77,J61,J65,J69,J73,J77,N61,N65,N69,N73,N77,R61,R65) -> 706 | H57: =SUM(B62,B66,B70,B74,B78,F62,F66,F70,F74,F78,J62,J66,J70,J74,J78,N62,N66,N70,N74,N78,R62,R66) -> 788 | I57: Tied 1
A60: Game 1 | B60: Score | D60: Game 6 | F60: Score | H60: Game 11 | J60: Score | L60: Game 16 | N60: Score | P60: Game 21 | R60: Score
A61: Team LIRHL | B61: 47 | D61: Team LIRHL | F61: 55 | H61: Team LIRHL | J61: 79 | L61: Team LIRHL | N61: 0 | P61: Team LIRHL | R61: 0
A62: Damn Yankees | B62: 41 | D62: Slappers | F62: 63 | H62: Highlanders | J62: 64 | L62: Just Chillin | N62: 0 | P62: Damn Yankees | R62: 0
A64: Game 2 | B64: Score | D64: Game 7 | F64: Score | H64: Game 12 | J64: Score | L64: Game 17 | N64: Score | P64: Game 22 | R64: Score
A65: Team LIRHL | B65: 44 | D65: Team LIRHL | F65: 49 | H65: Team LIRHL | J65: 37 | L65: Team LIRHL | N65: 0 | P65: Team LIRHL | R65: 0
A66: Grumpy Old Men | B66: 53 | D66: District 5 | F66: 80 | H66: Riketorians | J66: 40 | L66: Grumpy Old Men | N66: 0 | P66: District 5 | R66: 0
A68: Game 3 | B68: Score | D68: Game 8 | F68: Score | H68: Game 13 | J68: Score | L68: Game 18 | N68: Score
A69: Team LIRHL | B69: 66 | D69: Team LIRHL | F69: 67 | H69: Team LIRHL | J69: 56 | L69: Team LIRHL | N69: 0
A70: Just Chillin | B70: 56 | D70: Fantasy Hockey Club | F70: 62 | H70: Damn Yankees | J70: 56 | L70: Fantasy Hockey Club | N70: 0
A72: Game 4 | B72: Score | D72: Game 9 | F72: Score | H72: Game 14 | J72: Score | L72: Game 19 | N72: Score
A73: Team LIRHL | B73: 59 | D73: Team LIRHL | F73: 35 | H73: Team LIRHL | J73: 0 | L73: Team LIRHL | N73: 0
A74: Riketorians | B74: 72 | D74: Grumpy Old Men | F74: 69 | H74: Highlanders | J74: 0 | L74: Shawnee Tribe | N74: 0
A76: Game 5 | B76: Score | D76: Game 10 | F76: Score | H76: Game 15 | J76: Score | L76: Game 20 | N76: Score
A77: Team LIRHL | B77: 54 | D77: Team LIRHL | F77: 58 | H77: Team LIRHL | J77: 0 | L77: Team LIRHL | N77: 0
A78: Fantasy Hockey Club | B78: 44 | D78: Shawnee Tribe | F78: 88 | H78: Riketorians | J78: 0 | L78: Slappers | N78: 0

Sheet District 5
A1: Team: District 5 | D1: General Manager: Sean Wachter
D3: Scoring This Week | N3: Players Overall Scoring
A4: Forwards | B4: Gls | C4: Ast | D4: PP | E4: SH | F4: GW | G4: OT | H4: PSG | I4: PTS | K4: Gls | L4: Ast | M4: PP | N4: SH | O4: GW | P4: OT | Q4: PSG | R4: PTS
A5: Steven Stamkos | B5: 3 | C5: 3 | D5: 2 | E5: 0 | F5: 1 | G5: 0 | H5: 0 | I5: =(B5+C5+D5+(2*E5)+(2*F5)+G5+(4*H5)) -> 10 | K5: 18 | L5: 10 | M5: 4 | N5: 0 | O5: 7 | P5: 3 | Q5: 0 | R5: =(K5+L5+M5+(2*N5)+(2*O5)+P5+(4*Q5)) -> 49
A6: Sam Reinhart | B6: 4 | C6: 1 | D6: 2 | E6: 0 | F6: 0 | G6: 0 | H6: 0 | I6: 7 | K6: 23 | L6: 21 | M6: 8 | N6: 3 | O6: 5 | P6: 0 | Q6: 0 | R6: 68
A7: Brad Marchand | B7: 2 | C7: 2 | D7: 1 | E7: 0 | F7: 0 | G7: 0 | H7: 0 | I7: 5 | K7: 23 | L7: 23 | M7: 5 | N7: 0 | O7: 2 | P7: 0 | Q7: 0 | R7: 55
A8: Owen Tippett | B8: 2 | C8: 1 | D8: 0 | E8: 1 | F8: 0 | G8: 0 | H8: 0 | I8: 5 | K8: 13 | L8: 12 | M8: 1 | N8: 1 | O8: 0 | P8: 0 | Q8: 0 | R8: 28
A9: Matthew Knies | B9: 2 | C9: 1 | D9: 1 | E9: 0 | F9: 0 | G9: 0 | H9: 0 | I9: 4 | K9: 11 | L9: 25 | M9: 4 | N9: 0 | O9: 1 | P9: 0 | Q9: 0 | R9: 42
A10: Mason McTavish | B10: 1 | C10: 2 | D10: 1 | E10: 0 | F10: 0 | G10: 0 | H10: 0 | I10: 4 | K10: 10 | L10: 16 | M10: 4 | N10: 0 | O10: 2 | P10: 0 | Q10: 0 | R10: 34
A11: Matt Boldy | B11: 2 | C11: 1 | D11: 0 | E11: 0 | F11: 0 | G11: 0 | H11: 0 | I11: 3 | K11: 26 | L11: 22 | M11: 6 | N11: 2 | O11: 3 | P11: 1 | Q11: 0 | R11: 65
A12: Tage Thompson | B12: 2 | C12: 1 | D12: 0 | E12: 0 | F12: 0 | G12: 0 | H12: 0 | I12: 3 | K12: 20 | L12: 17 | M12: 3 | N12: 0 | O12: 1 | P12: 0 | Q12: 0 | R12: 42
A13: Josh Doan | B13: 2 | C13: 1 | D13: 0 | E13: 0 | F13: 0 | G13: 0 | H13: 0 | I13: 3 | K13: 12 | L13: 15 | M13: 4 | N13: 0 | O13: 1 | P13: 0 | Q13: 0 | R13: 33
A14: Tomas Hertl | B14: 0 | C14: 1 | D14: 0 | E14: 0 | F14: 0 | G14: 0 | H14: 0 | I14: 1 | K14: 15 | L14: 15 | M14: 7 | N14: 0 | O14: 2 | P14: 0 | Q14: 0 | R14: 41
A15: William Nylander | B15: 0 | C15: 0 | D15: 0 | E15: 0 | F15: 0 | G15: 0 | H15: 0 | I15: 0 | K15: 14 | L15: 27 | M15: 3 | N15: 0 | O15: 2 | P15: 2 | Q15: 0 | R15: 50
A18: Defense | B18: Gls | C18: Ast | D18: PP | E18: SH | F18: GW | G18: OT | H18: PSG | I18: PTS | K18: Gls | L18: Ast | M18: PP | N18: SH | O18: GW | P18: OT | Q18: PSG | R18: PTS
A19: Mikhail Sergachev | B19: 2 | C19: 2 | D19: 1 | E19: 0 | F19: 0 | G19: 0 | H19: 0 | I19: =(B19+C19+D19+(2*E19)+(2*F19)+G19+(4*H19)) -> 5 | K19: 6 | L19: 23 | M19: 3 | N19: 0 | O19: 0 | P19: 0 | Q19: 0 | R19: =(K19+L19+M19+(2*N19)+(2*O19)+P19+(4*Q19)) -> 32
A20: Cale Makar | B20: 1 | C20: 3 | D20: 0 | E20: 0 | F20: 0 | G20: 0 | H20: 0 | I20: 4 | K20: 12 | L20: 35 | M20: 2 | N20: 0 | O20: 3 | P20: 0 | Q20: 0 | R20: 55
A21: Rasmus Andersson | B21: 2 | C21: 0 | D21: 1 | E21: 0 | F21: 0 | G21: 0 | H21: 0 | I21: 3 | K21: 9 | L21: 18 | M21: 3 | N21: 0 | O21: 0 | P21: 0 | Q21: 0 | R21: 30
A22: Moritz Seider | B22: 1 | C22: 1 | D22: 0 | E22: 0 | F22: 0 | G22: 0 | H22: 0 | I22: 2 | K22: 7 | L22: 24 | M22: 1 | N22: 0 | O22: 1 | P22: 1 | Q22: 0 | R22: 35
A23: Jamie Drysdale | B23: 0 | C23: 1 | D23: 0 | E23: 0 | F23: 0 | G23: 0 | H23: 0 | I23: 1 | K23: 3 | L23: 15 | M23: 0 | N23: 0 | O23: 1 | P23: 0 | Q23: 0 | R23: 20
A24: Brandon Montour | B24: 0 | C24: 0 | D24: 0 | E24: 0 | F24: 0 | G24: 0 | H24: 0 | I24: 0 | K24: 6 | L24: 10 | M24: 1 | N24: 0 | O24: 1 | P24: 1 | Q24: 0 | R24: 20
A25: Sam Rinzel | B25: 0 | C25: 0 | D25: 0 | E25: 0 | F25: 0 | G25: 0 | H25: 0 | I25: 0 | K25: 1 | L25: 7 | M25: 0 | N25: 0 | O25: 0 | P25: 0 | Q25: 0 | R25: 8
A27: Goalie | B27: W | C27: OT | D27: SO | E27: Gls | F27: Ast | G27: GAA | H27: SP | I27: PTS | K27: W | L27: OT | M27: SO | N27: Gls | O27: Ast | P27: GAA | Q27: SP | R27: PTS
A28: Filip Gustavsson | B28: 2 | C28: 0 | D28: 0 | E28: 0 | F28: 0 | G28: 2.01 | H28: 0.909 | I28: =((3*B28)+C28+(3*D28)+(10*E28)+(3*F28)+G29+H29) -> 9 | K28: 14 | L28: 4 | M28: 3 | N28: 0 | O28: 0 | P28: 2.45 | Q28: 0.912 | R28: =((3*K28)+L28+(3*M28)+(10*N28)+(3*O28)+P29+Q29) -> 98
B29: 4 | C29: 119.61 | D29: 40 | E29: 44 | G29: 2 | H29: 1 | I29: =((3*B28)+C28+(3*D28)+(10*E28)+(3*F28)+G29+H29) -> 9 | P29: 22 | Q29: 21 | R29: =((2*K28)+L28+(3*M28)+(10*N28)+(3*O28)+P29+Q29) -> 84
A30: Juuse Saros | B30: 2 | C30: 0 | D30: 0 | E30: 0 | F30: 0 | G30: 3.04 | H30: 0.882 | I30: =((3*B30)+C30+(3*D30)+(10*E30)+(3*F30)+G31+H31) -> 6 | K30: 16 | L30: 3 | M30: 0 | N30: 0 | O30: 0 | P30: 2.93 | Q30: 0.896 | R30: =((3*K30)+L30+(3*M30)+(10*N30)+(3*O30)+P31+Q31) -> 81
B31: 9 | C31: 177.82 | D31: 67 | E31: 76 | G31: 0 | H31: 0 | I31: =((3*B30)+C30+(3*D30)+(10*E30)+(3*F30)+G31+H31) -> 6 | P31: 13 | Q31: 17 | R31: =((2*K30)+L30+(3*M30)+(10*N30)+(3*O30)+P31+Q31) -> 65
D32: All Playes Scoring This Week | N32: Cumulative Points
B33: Gls | C33: Ast | D33: PP | E33: SH | F33: GW | G33: OT | H33: PSG | K33: Gls | L33: Ast | M33: PP | N33: SH | O33: GW | P33: OT | Q33: PSG | R33: PTS
A34: Forwards | B34: =SUM(B5:B15) -> 20 | C34: =SUM(C5:C15) -> 14 | D34: 7 | E34: 1 | F34: 1 | G34: 0 | H34: 0 | K34: 183 | L34: 201 | M34: 47 | N34: 6 | O34: 25 | P34: 6 | Q34: 0 | R34: =(K34+L34+M34+(2*N34)+(2*O34)+P34+(4*Q34)) -> 499
A35: Defense | B35: =SUM(B19:B25) -> 6 | C35: =SUM(C19:C25) -> 7 | D35: 2 | E35: 0 | F35: 0 | G35: 0 | H35: 0 | K35: 44 | L35: 131 | M35: 10 | N35: 0 | O35: 6 | P35: 2 | Q35: 0 | R35: =(K35+L35+M35+(2*N35)+(2*O35)+P35+(4*Q35)) -> 199
A36: Total Scorers | B36: =SUM(B34:B35) -> 26 | C36: =SUM(C34:C35) -> 21 | D36: 9 | E36: 1 | F36: 1 | G36: 0 | H36: 0 | K36: =SUM(K34:K35) -> 227 | L36: 332 | M36: 57 | N36: 6 | O36: 31 | P36: 8 | Q36: 0 | R36: =(K36+L36+M36+(2*N36)+(2*O36)+P36+(4*Q36)) -> 698
B37: W | C37: OT | D37: SO | E37: Gls | F37: Ast | G37: GAA | H37: SP | K37: W | L37: OT | M37: SO | N37: Gls | O37: Ast | P37: GAA | Q37: SP | R37: PTS
A38: Goalie Totals | B38: =SUM(B28,B30) -> 4 | C38: =SUM(C28,C30) -> 0 | D38: =SUM(D28,D30) -> 0 | E38: =SUM(E28,E30) -> 0 | F38: =SUM(F28,F30) -> 0 | G38: =IF(C39=0,0,B39/(C39/60)) -> 2.62246579 | H38: =IF(E39=0,0,D39/E39) -> 0.8916666667 | K38: 30 | L38: 7 | M38: 3 | N38: 0 | O38: 0 | P38: =IF(L39=0,0,K39/(L39/60)) -> 2.713585434 | Q38: =IF(N39=0,0,M39/N39) -> 0.9034267913 | R38: =((3*K38)+L38+(3*M38)+(10*N38)+(3*O38)+P39+Q39) -> 179
B39: =SUM(B29,B31) -> 13 | C39: =SUM(C29,C31) -> 297.43 | D39: =SUM(D29,D31) -> 107 | E39: =SUM(E29,E31) -> 120 | K39: 155 | L39: 3427.2 | M39: 1450 | N39: 1605 | P39: 35 | Q39: 38
K40: GA | L40: Time | M40: Saves | N40: Shots
B42: Injured Reserve | M42: This Weeks Totals
A43: Player | B43: P | C43: GP | D43: IR Weeks | E43: Pts | L43: Forwards | N43: =SUM(I5:I12) -> 41
A44: Patrik Laine | B44: F | C44: 0 | D44: 11 | E44: 1 | L44: Defense | N44: =SUM(I19:I23) -> 15
B45: D | L45: Goalie | N45: =I28 -> 9
B46: G
B47: Flex | L47: Total Points | N47: =SUM(N43:N45) -> 65
A56: Team Record | B56: W | C56: L | D56: T | E56: Pts | F56: CP | G56: BPF | H56: BFA | I56: Streak
A57: District 5 | B57: 7 | C57: 5 | D57: 1 | E57: =2*B57+D57 -> 15 | F57: =R36+R38 -> 877 | G57: =SUM(B61,B65,B69,B73,B77,F61,F65,F69,F73,F77,J61,J65,J69,J73,J77,N61,N65,N69,N73,N77,R61,R65) -> 775 | H57: =SUM(B62,B66,B70,B74,B78,F62,F66,F70,F74,F78,J62,J66,J70,J74,J78,N62,N66,N70,N74,N78,R62,R66) -> 683 | I57: Lost 1
A60: Game 1 | B60: Score | D60: Game 6 | F60: Score | H60: Game 11 | J60: Score | L60: Game 16 | N60: Score | P60: Game 21 | R60: Score
A61: District 5 | B61: 42 | D61: District 5 | F61: 72 | H61: District 5 | J61: 80 | L61: District 5 | N61: 0 | P61: District 5 | R61: 0
A62: Riketorians | B62: 42 | D62: Damn Yankees | F62: 50 | H62: Riketorians | J62: 50 | L62: Fantasy Hockey Club | N62: 0 | P62: Shawnee Tribe | R62: 0
A64: Game 2 | B64: Score | D64: Game 7 | F64: Score | H64: Game 12 | J64: Score | L64: Game 17 | N64: Score | P64: Game 22 | R64: Score
A65: District 5 | B65: 62 | D65: District 5 | F65: 80 | H65: District 5 | J65: 60 | L65: District 5 | N65: 0 | P65: District 5 | R65: 0
A66: Shawnee Tribe | B66: 33 | D66: Team LIRHL | F66: 49 | H66: Grumpy Old Men | J66: 38 | L66: Highlanders | N66: 0 | P66: Team LIRHL | R66: 0
A68: Game 3 | B68: Score | D68: Game 8 | F68: Score | H68: Game 13 | J68: Score | L68: Game 18 | N68: Score
A69: District 5 | B69: 48 | D69: District 5 | F69: 61 | H69: District 5 | J69: 65 | L69: District 5 | N69: 0
A70: Highlanders | B70: 45 | D70: Highlanders | F70: 65 | H70: Shawnee Tribe | J70: 69 | L70: Slappers | N70: 0
A72: Game 4 | B72: Score | D72: Game 9 | F72: Score | H72: Game 14 | J72: Score | L72: Game 19 | N72: Score
A73: District 5 | B73: 51 | D73: District 5 | F73: 51 | H73: District 5 | J73: 0 | L73: District 5 | N73: 0
A74: Slappers | B74: 61 | D74: Just Chillin | F74: 62 | H74: Slappers | J74: 0 | L74: Damn Yankees | N74: 0
A76: Game 5 | B76: Score | D76: Game 10 | F76: Score | H76: Game 15 | J76: Score | L76: Game 20 | N76: Score
A77: District 5 | B77: 42 | D77: District 5 | F77: 61 | H77: District 5 | J77: 0 | L77: District 5 | N77: 0
A78: Just Chillin | B78: 61 | D78: Fantasy Hockey Club | F78: 58 | H78: Just Chillin | J78: 0 | L78: Grumpy Old Men | N78: 0

Sheet Riketorians
A1: Team: Riketorians | D1: General Manager: Jonathan Riker
D3: Scoring This Week | N3: Players Overall Scoring
A4: Forwards | B4: Gls | C4: Ast | D4: PP | E4: SH | F4: GW | G4: OT | H4: PSG | I4: PTS | K4: Gls | L4: Ast | M4: PP | N4: SH | O4: GW | P4: OT | Q4: PSG | R4: PTS
A5: Brock Nelson | B5: 4 | C5: 2 | D5: 3 | E5: 0 | F5: 2 | G5: 0 | H5: 0 | I5: =(B5+C5+D5+(2*E5)+(2*F5)+G5+(4*H5)) -> 13 | K5: 18 | L5: 14 | M5: 6 | N5: 0 | O5: 5 | P5: 0 | Q5: 0 | R5: =(K5+L5+M5+(2*N5)+(2*O5)+P5+(4*Q5)) -> 48
A6: Tom Wilson | B6: 5 | C6: 3 | D6: 1 | E6: 0 | F6: 0 | G6: 0 | H6: 0 | I6: 9 | K6: 22 | L6: 20 | M6: 7 | N6: 0 | O6: 2 | P6: 0 | Q6: 0 | R6: 53
A7: David Pastrnak | B7: 2 | C7: 3 | D7: 1 | E7: 0 | F7: 0 | G7: 0 | H7: 0 | I7: 6 | K7: 17 | L7: 29 | M7: 8 | N7: 0 | O7: 2 | P7: 0 | Q7: 0 | R7: 58
A8: Andrei Svechnikov | B8: 2 | C8: 2 | D8: 0 | E8: 0 | F8: 0 | G8: 0 | H8: 0 | I8: 4 | K8: 12 | L8: 19 | M8: 4 | N8: 0 | O8: 1 | P8: 0 | Q8: 0 | R8: 37
A9: Drake Batherson | B9: 1 | C9: 0 | D9: 1 | E9: 0 | F9: 1 | G9: 0 | H9: 0 | I9: 4 | K9: 16 | L9: 22 | M9: 6 | N9: 0 | O9: 3 | P9: 0 | Q9: 0 | R9: 50
A10: Vincent Trocheck | B10: 1 | C10: 3 | D10: 0 | E10: 0 | F10: 0 | G10: 0 | H10: 0 | I10: 4 | K10: 9 | L10: 15 | M10: 0 | N10: 0 | O10: 1 | P10: 0 | Q10: 0 | R10: 26
A11: Travis Konecny | B11: 2 | C11: 1 | D11: 0 | E11: 0 | F11: 0 | G11: 0 | H11: 0 | I11: 3 | K11: 13 | L11: 23 | M11: 1 | N11: 0 | O11: 1 | P11: 0 | Q11: 0 | R11: 39
A12: Kyle Connor | B12: 1 | C12: 2 | D12: 0 | E12: 0 | F12: 0 | G12: 0 | H12: 0 | I12: 3 | K12: 19 | L12: 29 | M12: 2 | N12: 2 | O12: 1 | P12: 1 | Q12: 1 | R12: 61
A13: Alex Ovechkin | B13: 0 | C13: 1 | D13: 0 | E13: 0 | F13: 0 | G13: 0 | H13: 0 | I13: 1 | K13: 15 | L13: 19 | M13: 2 | N13: 0 | O13: 3 | P13: 0 | Q13: 0 | R13: 42
A14: Carter Verhaeghe | B14: 0 | C14: 0 | D14: 0 | E14: 0 | F14: 0 | G14: 0 | H14: 0 | I14: 0 | K14: 11 | L14: 17 | M14: 2 | N14: 0 | O14: 2 | P14: 0 | Q14: 0 | R14: 34
A15: Connor Bedard | B15: 0 | C15: 0 | D15: 0 | E15: 0 | F15: 0 | G15: 0 | H15: 0 | I15: 0 | K15: 19 | L15: 25 | M15: 5 | N15: 0 | O15: 3 | P15: 0 | Q15: 0 | R15: 55
A18: Defense | B18: Gls | C18: Ast | D18: PP | E18: SH | F18: GW | G18: OT | H18: PSG | I18: PTS | K18: Gls | L18: Ast | M18: PP | N18: SH | O18: GW | P18: OT | Q18: PSG | R18: PTS
A19: Kris Letang | B19: 1 | C19: 2 | D19: 0 | E19: 0 | F19: 1 | G19: 1 | H19: 0 | I19: =(B19+C19+D19+(2*E19)+(2*F19)+G19+(4*H19)) -> 6 | K19: 3 | L19: 18 | M19: 1 | N19: 0 | O19: 2 | P19: 2 | Q19: 0 | R19: =(K19+L19+M19+(2*N19)+(2*O19)+P19+(4*Q19)) -> 28
A20: Erik Karlsson | B20: 0 | C20: 4 | D20: 0 | E20: 0 | F20: 0 | G20: 0 | H20: 0 | I20: 4 | K20: 3 | L20: 27 | M20: 2 | N20: 0 | O20: 0 | P20: 0 | Q20: 0 | R20: 32
A21: Jake Sanderson | B21: 1 | C21: 2 | D21: 0 | E21: 0 | F21: 0 | G21: 0 | H21: 0 | I21: 3 | K21: 8 | L21: 21 | M21: 2 | N21: 0 | O21: 1 | P21: 0 | Q21: 0 | R21: 33
A22: Justin Faulk | B22: 1 | C22: 0 | D22: 0 | E22: 0 | F22: 0 | G22: 0 | H22: 0 | I22: 1 | K22: 11 | L22: 10 | M22: 2 | N22: 0 | O22: 3 | P22: 0 | Q22: 0 | R22: 29
A23: Devon Toews | B23: 0 | C23: 1 | D23: 0 | E23: 0 | F23: 0 | G23: 0 | H23: 0 | I23: 1 | K23: 1 | L23: 12 | M23: 0 | N23: 0 | O23: 0 | P23: 0 | Q23: 0 | R23: 13
A24: Mike Matheson | B24: 0 | C24: 1 | D24: 0 | E24: 0 | F24: 0 | G24: 0 | H24: 0 | I24: 1 | K24: 4 | L24: 14 | M24: 0 | N24: 0 | O24: 1 | P24: 1 | Q24: 0 | R24: 21
A25: Neal Pionk | B25: 0 | C25: 1 | D25: 0 | E25: 0 | F25: 0 | G25: 0 | H25: 0 | I25: 1 | K25: 2 | L25: 5 | M25: 1 | N25: 0 | O25: 1 | P25: 0 | Q25: 0 | R25: 10
A27: Goalie | B27: W | C27: OT | D27: SO | E27: Gls | F27: Ast | G27: GAA | H27: SP | I27: PTS | K27: W | L27: OT | M27: SO | N27: Gls | O27: Ast | P27: GAA | Q27: SP | R27: PTS
A28: Dustin Wolf | B28: 2 | C28: 0 | D28: 0 | E28: 0 | F28: 0 | G28: 1.98 | H28: 0.943 | I28: =((3*B28)+C28+(3*D28)+(10*E28)+(3*F28)+G29+H29) -> 14 | K28: 14 | L28: 2 | M28: 2 | N28: 0 | O28: 0 | P28: 2.86 | Q28: 0.901 | R28: =((3*K28)+L28+(3*M28)+(10*N28)+(3*O28)+P29+Q29) -> 85
B29: 6 | C29: 181.5 | D29: 83 | E29: 88 | G29: 3 | H29: 5 | I29: =((3*B28)+C28+(3*D28)+(10*E28)+(3*F28)+G29+H29) -> 14 | P29: 16 | Q29: 19 | R29: =((2*K28)+L28+(3*M28)+(10*N28)+(3*O28)+P29+Q29) -> 71
A30: Sergei Bobrovsky | B30: 1 | C30: 0 | D30: 0 | E30: 0 | F30: 0 | G30: 3.56 | H30: 0.848 | I30: =((3*B30)+C30+(3*D30)+(10*E30)+(3*F30)+G31+H31) -> 3 | K30: 17 | L30: 1 | M30: 3 | N30: 0 | O30: 1 | P30: 2.84 | Q30: 0.885 | R30: =((3*K30)+L30+(3*M30)+(10*N30)+(3*O30)+P31+Q31) -> 91
B31: 7 | C31: 118.05 | D31: 39 | E31: 46 | G31: 0 | H31: 0 | I31: =((3*B30)+C30+(3*D30)+(10*E30)+(3*F30)+G31+H31) -> 3 | P31: 14 | Q31: 13 | R31: =((2*K30)+L30+(3*M30)+(10*N30)+(3*O30)+P31+Q31) -> 74
D32: All Playes Scoring This Week | N32: Cumulative Points
B33: Gls | C33: Ast | D33: PP | E33: SH | F33: GW | G33: OT | H33: PSG | K33: Gls | L33: Ast | M33: PP | N33: SH | O33: GW | P33: OT | Q33: PSG | R33: PTS
A34: Forwards | B34: =SUM(B5:B15) -> 18 | C34: =SUM(C5:C15) -> 17 | D34: 6 | E34: 0 | F34: 3 | G34: 0 | H34: 0 | K34: 171 | L34: 232 | M34: 43 | N34: 2 | O34: 24 | P34: 1 | Q34: 1 | R34: =(K34+L34+M34+(2*N34)+(2*O34)+P34+(4*Q34)) -> 503
A35: Defense | B35: =SUM(B19:B25) -> 3 | C35: =SUM(C19:C25) -> 11 | D35: 0 | E35: 0 | F35: 1 | G35: 1 | H35: 0 | K35: 32 | L35: 107 | M35: 8 | N35: 0 | O35: 8 | P35: 3 | Q35: 0 | R35: =(K35+L35+M35+(2*N35)+(2*O35)+P35+(4*Q35)) -> 166
A36: Total Scorers | B36: =SUM(B34:B35) -> 21 | C36: =SUM(C34:C35) -> 28 | D36: 6 | E36: 0 | F36: 4 | G36: 1 | H36: 0 | K36: =SUM(K34:K35) -> 203 | L36: 339 | M36: 51 | N36: 2 | O36: 32 | P36: 4 | Q36: 1 | R36: =(K36+L36+M36+(2*N36)+(2*O36)+P36+(4*Q36)) -> 669
B37: W | C37: OT | D37: SO | E37: Gls | F37: Ast | G37: GAA | H37: SP | K37: W | L37: OT | M37: SO | N37: Gls | O37: Ast | P37: GAA | Q37: SP | R37: PTS
A38: Goalie Totals | B38: =SUM(B28,B30) -> 3 | C38: =SUM(C28,C30) -> 0 | D38: =SUM(D28,D30) -> 0 | E38: =SUM(E28,E30) -> 0 | F38: =SUM(F28,F30) -> 0 | G38: =IF(C39=0,0,B39/(C39/60)) -> 2.603905859 | H38: =IF(E39=0,0,D39/E39) -> 0.9104477612 | K38: 31 | L38: 3 | M38: 5 | N38: 0 | O38: 1 | P38: =IF(L39=0,0,K39/(L39/60)) -> 2.853092171 | Q38: =IF(N39=0,0,M39/N39) -> 0.894218134 | R38: =((3*K38)+L38+(3*M38)+(10*N38)+(3*O38)+P39+Q39) -> 176
B39: =SUM(B29,B31) -> 13 | C39: =SUM(C29,C31) -> 299.55 | D39: =SUM(D29,D31) -> 122 | E39: =SUM(E29,E31) -> 134 | K39: 162 | L39: 3406.83 | M39: 1361 | N39: 1522 | P39: 30 | Q39: 32
K40: GA | L40: Time | M40: Saves | N40: Shots
B42: Injured Reserve | M42: This Weeks Totals
A43: Player | B43: P | C43: GP | D43: IR Weeks | E43: Pts | L43: Forwards | N43: =SUM(I5:I12) -> 46
B44: F | L44: Defense | N44: =SUM(I19:I23) -> 15
B45: D | L45: Goalie | N45: =I28 -> 14
B46: G
B47: Flex | L47: Total Points | N47: =SUM(N43:N45) -> 75
A56: Team Record | B56: W | C56: L | D56: T | E56: Pts | F56: CP | G56: BPF | H56: BFA | I56: Streak
A57: Riketorians | B57: 7 | C57: 5 | D57: 1 | E57: =2*B57+D57 -> 15 | F57: =R36+R38 -> 845 | G57: =SUM(B61,B65,B69,B73,B77,F61,F65,F69,F73,F77,J61,J65,J69,J73,J77,N61,N65,N69,N73,N77,R61,R65) -> 769 | H57: =SUM(B62,B66,B70,B74,B78,F62,F66,F70,F74,F78,J62,J66,J70,J74,J78,N62,N66,N70,N74,N78,R62,R66) -> 723 | I57: Lost 1
A60: Game 1 | B60: Score | D60: Game 6 | F60: Score | H60: Game 11 | J60: Score | L60: Game 16 | N60: Score | P60: Game 21 | R60: Score
A61: Riketorians | B61: 42 | D61: Riketorians | F61: 55 | H61: Riketorians | J61: 50 | L61: Riketorians | N61: 0 | P61: Riketorians | R61: 0
A62: District 5 | B62: 42 | D62: Shawnee Tribe | F62: 58 | H62: District 5 | J62: 80 | L62: Shawnee Tribe | N62: 0 | P62: Grumpy Old Men | R62: 0
A64: Game 2 | B64: Score | D64: Game 7 | F64: Score | H64: Game 12 | J64: Score | L64: Game 17 | N64: Score | P64: Game 22 | R64: Score
A65: Riketorians | B65: 39 | D65: Riketorians | F65: 73 | H65: Riketorians | J65: 40 | L65: Riketorians | N65: 0 | P65: Riketorians | R65: 0
A66: Fantasy Hockey Club | B66: 70 | D66: Slappers | F66: 39 | H66: Team LIRHL | J66: 37 | L66: Fantasy Hockey Club | N66: 0 | P66: Damn Yankees | R66: 0
A68: Game 3 | B68: Score | D68: Game 8 | F68: Score | H68: Game 13 | J68: Score | L68: Game 18 | N68: Score
A69: Riketorians | B69: 62 | D69: Riketorians | F69: 51 | H69: Riketorians | J69: 75 | L69: Riketorians | N69: 0
A70: Grumpy Old Men | B70: 45 | D70: Just Chillin | F70: 50 | H70: Grumpy Old Men | J70: 81 | L70: Highlanders | N70: 0
A72: Game 4 | B72: Score | D72: Game 9 | F72: Score | H72: Game 14 | J72: Score | L72: Game 19 | N72: Score
A73: Riketorians | B73: 72 | D73: Riketorians | F73: 79 | H73: Riketorians | J73: 0 | L73: Riketorians | N73: 0
A74: Team LIRHL | B74: 59 | D74: Fantasy Hockey Club | F74: 57 | H74: Damn Yankees | J74: 0 | L74: Slappers | N74: 0
A76: Game 5 | B76: Score | D76: Game 10 | F76: Score | H76: Game 15 | J76: Score | L76: Game 20 | N76: Score
A77: Riketorians | B77: 55 | D77: Riketorians | F77: 76 | H77: Riketorians | J77: 0 | L77: Riketorians | N77: 0
A78: Damn Yankees | B78: 56 | D78: Highlanders | F78: 49 | H78: Team LIRHL | J78: 0 | L78: Just Chillin | N78: 0

Sheet Just Chillin
A1: Team: Just Chillin | C1: General Manager: Mike Willoughby
D3: Scoring This Week | N3: Players Overall Scoring
A4: Forwards | B4: Gls | C4: Ast | D4: PP | E4: SH | F4: GW | G4: OT | H4: PSG | I4: PTS | K4: Gls | L4: Ast | M4: PP | N4: SH | O4: GW | P4: OT | Q4: PSG | R4: PTS
A5: Sidney Crosby | B5: 3 | C5: 4 | D5: 1 | E5: 0 | F5: 0 | G5: 0 | H5: 0 | I5: =(B5+C5+D5+(2*E5)+(2*F5)+G5+(4*H5)) -> 8 | K5: 23 | L5: 22 | M5: 9 | N5: 0 | O5: 2 | P5: 0 | Q5: 0 | R5: =(K5+L5+M5+(2*N5)+(2*O5)+P5+(4*Q5)) -> 58
A6: Bryan Rust | B6: 3 | C6: 3 | D6: 0 | E6: 0 | F6: 1 | G6: 0 | H6: 0 | I6: 8 | K6: 16 | L6: 20 | M6: 3 | N6: 0 | O6: 4 | P6: 0 | Q6: 0 | R6: 47
A7: Anthony Mantha | B7: 3 | C7: 2 | D7: 1 | E7: 0 | F7: 0 | G7: 0 | H7: 0 | I7: 6 | K7: 14 | L7: 14 | M7: 4 | N7: 0 | O7: 0 | P7: 0 | Q7: 0 | R7: 32
A8: Aliaksei Protas | B8: 2 | C8: 2 | D8: 0 | E8: 0 | F8: 1 | G8: 0 | H8: 0 | I8: 6 | K8: 16 | L8: 15 | M8: 0 | N8: 0 | O8: 3 | P8: 0 | Q8: 0 | R8: 37
A9: Mark Scheifele | B9: 2 | C9: 1 | D9: 1 | E9: 0 | F9: 0 | G9: 0 | H9: 0 | I9: 4 | K9: 20 | L9: 28 | M9: 5 | N9: 0 | O9: 2 | P9: 0 | Q9: 0 | R9: 57
A10: John Tavares | B10: 0 | C10: 4 | D10: 0 | E10: 0 | F10: 0 | G10: 0 | H10: 0 | I10: 4 | K10: 15 | L10: 22 | M10: 2 | N10: 0 | O10: 1 | P10: 1 | Q10: 0 | R10: 42
A11: Ryan Nugent-Hopkins | B11: 0 | C11: 1 | D11: 0 | E11: 0 | F11: 0 | G11: 0 | H11: 0 | I11: 1 | K11: 11 | L11: 22 | M11: 6 | N11: 0 | O11: 1 | P11: 0 | Q11: 0 | R11: 41
A12: Wyatt Johnston | B12: 0 | C12: 1 | D12: 0 | E12: 0 | F12: 0 | G12: 0 | H12: 0 | I12: 1 | K12: 20 | L12: 26 | M12: 14 | N12: 0 | O12: 3 | P12: 0 | Q12: 0 | R12: 66
A13: Anze Kopitar | B13: 0 | C13: 1 | D13: 0 | E13: 0 | F13: 0 | G13: 0 | H13: 0 | I13: 1 | K13: 6 | L13: 15 | M13: 3 | N13: 0 | O13: 1 | P13: 0 | Q13: 0 | R13: 26
A14: Patrick Kane | B14: 0 | C14: 1 | D14: 0 | E14: 0 | F14: 0 | G14: 0 | H14: 0 | I14: 1 | K14: 6 | L14: 18 | M14: 1 | N14: 0 | O14: 2 | P14: 0 | Q14: 0 | R14: 29
A15: Jack Eichel | B15: 0 | C15: 0 | D15: 0 | E15: 0 | F15: 0 | G15: 0 | H15: 0 | I15: 0 | K15: 12 | L15: 29 | M15: 0 | N15: 0 | O15: 3 | P15: 1 | Q15: 0 | R15: 48
A18: Defense | B18: Gls | C18: Ast | D18: PP | E18: SH | F18: GW | G18: OT | H18: PSG | I18: PTS | K18: Gls | L18: Ast | M18: PP | N18: SH | O18: GW | P18: OT | Q18: PSG | R18: PTS
A19: Roman Josi | B19: 2 | C19: 0 | D19: 1 | E19: 0 | F19: 0 | G19: 0 | H19: 0 | I19: =(B19+C19+D19+(2*E19)+(2*F19)+G19+(4*H19)) -> 3 | K19: 5 | L19: 13 | M19: 2 | N19: 0 | O19: 0 | P19: 0 | Q19: 0 | R19: =(K19+L19+M19+(2*N19)+(2*O19)+P19+(4*Q19)) -> 20
A20: Brock Faber | B20: 2 | C20: 1 | D20: 0 | E20: 0 | F20: 0 | G20: 0 | H20: 0 | I20: 3 | K20: 9 | L20: 14 | M20: 0 | N20: 1 | O20: 1 | P20: 0 | Q20: 0 | R20: 27
A21: Zach Werenski | B21: 0 | C21: 2 | D21: 0 | E21: 0 | F21: 0 | G21: 0 | H21: 0 | I21: 2 | K21: 14 | L21: 28 | M21: 1 | N21: 0 | O21: 0 | P21: 0 | Q21: 0 | R21: 43
A22: Noah Hanifin | B22: 0 | C22: 1 | D22: 0 | E22: 0 | F22: 0 | G22: 0 | H22: 0 | I22: 1 | K22: 2 | L22: 12 | M22: 0 | N22: 0 | O22: 0 | P22: 0 | Q22: 0 | R22: 14
A23: Morgan Rielly | B23: 0 | C23: 1 | D23: 0 | E23: 0 | F23: 0 | G23: 0 | H23: 0 | I23: 1 | K23: 5 | L23: 21 | M23: 0 | N23: 0 | O23: 2 | P23: 0 | Q23: 0 | R23: 30
A24: Cam Fowler | B24: 0 | C24: 1 | D24: 0 | E24: 0 | F24: 0 | G24: 0 | H24: 0 | I24: 1 | K24: 1 | L24: 14 | M24: 0 | N24: 0 | O24: 0 | P24: 0 | Q24: 0 | R24: 15
A25: John Carlson | B25: 0 | C25: 0 | D25: 0 | E25: 0 | F25: 0 | G25: 0 | H25: 0 | I25: 0 | K25: 8 | L25: 21 | M25: 0 | N25: 0 | O25: 0 | P25: 0 | Q25: 0 | R25: 29
A27: Goalie | B27: W | C27: OT | D27: SO | E27: Gls | F27: Ast | G27: GAA | H27: SP | I27: PTS | K27: W | L27: OT | M27: SO | N27: Gls | O27: Ast | P27: GAA | Q27: SP | R27: PTS
A28: Jesper Wallstedt | B28: 0 | C28: 2 | D28: 0 | E28: 0 | F28: 0 | G28: 3.27 | H28: 0.909 | I28: =((3*B28)+C28+(3*D28)+(10*E28)+(3*F28)+G29+H29) -> 3 | K28: 11 | L28: 4 | M28: 4 | N28: 0 | O28: 0 | P28: 2.3 | Q28: 0.928 | R28: =((3*K28)+L28+(3*M28)+(10*N28)+(3*O28)+P29+Q29) -> 101
B29: 7 | C29: 128.63 | D29: 60 | E29: 66 | G29: 0 | H29: 1 | I29: =((3*B28)+C28+(3*D28)+(10*E28)+(3*F28)+G29+H29) -> 3 | P29: 21 | Q29: 31 | R29: =((2*K28)+L28+(3*M28)+(10*N28)+(3*O28)+P29+Q29) -> 90
A30: Connor Hellebuyck | B30: 0 | C30: 0 | D30: 0 | E30: 0 | F30: 0 | G30: 2.77 | H30: 0.879 | I30: =((3*B30)+C30+(3*D30)+(10*E30)+(3*F30)+G31+H31) -> 1 | K30: 9 | L30: 3 | M30: 0 | N30: 0 | O30: 0 | P30: 2.58 | Q30: 0.905 | R30: =((3*K30)+L30+(3*M30)+(10*N30)+(3*O30)+P31+Q31) -> 66
B31: 8 | C31: 173.28 | D31: 58 | E31: 66 | G31: 1 | H31: 0 | I31: =((3*B30)+C30+(3*D30)+(10*E30)+(3*F30)+G31+H31) -> 1 | P31: 16 | Q31: 20 | R31: =((2*K30)+L30+(3*M30)+(10*N30)+(3*O30)+P31+Q31) -> 57
D32: All Playes Scoring This Week | N32: Cumulative Points
B33: Gls | C33: Ast | D33: PP | E33: SH | F33: GW | G33: OT | H33: PSG | K33: Gls | L33: Ast | M33: PP | N33: SH | O33: GW | P33: OT | Q33: PSG | R33: PTS
A34: Forwards | B34: =SUM(B5:B15) -> 13 | C34: =SUM(C5:C15) -> 20 | D34: 3 | E34: 0 | F34: 2 | G34: 0 | H34: 0 | K34: 159 | L34: 226 | M34: 46 | N34: 0 | O34: 21 | P34: 2 | Q34: 0 | R34: =(K34+L34+M34+(2*N34)+(2*O34)+P34+(4*Q34)) -> 475
A35: Defense | B35: =SUM(B19:B25) -> 4 | C35: =SUM(C19:C25) -> 6 | D35: 1 | E35: 0 | F35: 0 | G35: 0 | H35: 0 | K35: 45 | L35: 123 | M35: 3 | N35: 1 | O35: 3 | P35: 0 | Q35: 0 | R35: =(K35+L35+M35+(2*N35)+(2*O35)+P35+(4*Q35)) -> 179
A36: Total Scorers | B36: =SUM(B34:B35) -> 17 | C36: =SUM(C34:C35) -> 26 | D36: 4 | E36: 0 | F36: 2 | G36: 0 | H36: 0 | K36: =SUM(K34:K35) -> 204 | L36: 349 | M36: 49 | N36: 1 | O36: 24 | P36: 2 | Q36: 0 | R36: =(K36+L36+M36+(2*N36)+(2*O36)+P36+(4*Q36)) -> 654
B37: W | C37: OT | D37: SO | E37: Gls | F37: Ast | G37: GAA | H37: SP | K37: W | L37: OT | M37: SO | N37: Gls | O37: Ast | P37: GAA | Q37: SP | R37: PTS
A38: Goalie Totals | B38: =SUM(B28,B30) -> 0 | C38: =SUM(C28,C30) -> 2 | D38: =SUM(D28,D30) -> 0 | E38: =SUM(E28,E30) -> 0 | F38: =SUM(F28,F30) -> 0 | G38: =IF(C39=0,0,B39/(C39/60)) -> 2.981020834 | H38: =IF(E39=0,0,D39/E39) -> 0.8939393939 | K38: 19 | L38: 11 | M38: 1 | N38: 0 | O38: 1 | P38: =IF(L39=0,0,K39/(L39/60)) -> 2.908191406 | Q38: =IF(N39=0,0,M39/N39) -> 0.8950437318 | R38: =((3*K38)+L38+(3*M38)+(10*N38)+(3*O38)+P39+Q39) -> 136
B39: =SUM(B29,B31) -> 15 | C39: =SUM(C29,C31) -> 301.91 | D39: =SUM(D29,D31) -> 118 | E39: =SUM(E29,E31) -> 132 | K39: 145 | L39: 2991.55 | M39: 1228 | N39: 1372 | P39: 26 | Q39: 36
K40: GA | L40: Time | M40: Saves | N40: Shots
B42: Injured Reserve | M42: This Weeks Totals
A43: Player | B43: P | C43: GP | D43: IR Weeks | E43: Pts | L43: Forwards | N43: =SUM(I5:I12) -> 38
A44: Jack Roslovic | B44: F | C44: 3 | D44: 5 | E44: 31 | L44: Defense | N44: =SUM(I19:I23) -> 10
B45: D | L45: Goalie | N45: =I28 -> 3
B46: G
B47: Flex | L47: Total Points | N47: =SUM(N43:N45) -> 51
A48: Warning, Jack Roslovic must be returned to lineup by start of Week 14
A56: Team Record | B56: W | C56: L | D56: T | E56: Pts | F56: CP | G56: BPF | H56: BFA | I56: Streak
A57: Just Chillin | B57: 7 | C57: 5 | D57: 1 | E57: =2*B57+D57 -> 15 | F57: =R36+R38 -> 790 | G57: =SUM(B61,B65,B69,B73,B77,F61,F65,F69,F73,F77,J61,J65,J69,J73,J77,N61,N65,N69,N73,N77,R61,R65) -> 719 | H57: =SUM(B62,B66,B70,B74,B78,F62,F66,F70,F74,F78,J62,J66,J70,J74,J78,N62,N66,N70,N74,N78,R62,R66) -> 663 | I57: Lost 1
A60: Game 1 | B60: Score | D60: Game 6 | F60: Score | H60: Game 11 | J60: Score | L60: Game 16 | N60: Score | P60: Game 21 | R60: Score
A61: Just Chillin | B61: 49 | D61: Just Chillin | F61: 44 | H61: Just Chillin | J61: 47 | L61: Just Chillin | N61: 0 | P61: Just Chillin | R61: 0
A62: Slappers | B62: 38 | D62: Fantasy Hockey Club | F62: 60 | H62: Grumpy Old Men | J62: 51 | L62: Team LIRHL | N62: 0 | P62: Highlanders | R62: 0
A64: Game 2 | B64: Score | D64: Game 7 | F64: Score | H64: Game 12 | J64: Score | L64: Game 17 | N64: Score | P64: Game 22 | R64: Score
A65: Just Chillin | B65: 67 | D65: Just Chillin | F65: 54 | H65: Just Chillin | J65: 47 | L65: Just Chillin | N65: 0 | P65: Just Chillin | R65: 0
A66: Highlanders | B66: 49 | D66: Grumpy Old Men | F66: 44 | H66: Slappers | J66: 42 | L66: Damn Yankees | N66: 0 | P66: Slappers | R66: 0
A68: Game 3 | B68: Score | D68: Game 8 | F68: Score | H68: Game 13 | J68: Score | L68: Game 18 | N68: Score
A69: Just Chillin | B69: 56 | D69: Just Chillin | F69: 50 | H69: Just Chillin | J69: 51 | L69: Just Chillin | N69: 0
A70: Team LIRHL | B70: 66 | D70: Riketorians | F70: 51 | H70: Highlanders | J70: 56 | L70: Shawnee Tribe | N70: 0
A72: Game 4 | B72: Score | D72: Game 9 | F72: Score | H72: Game 14 | J72: Score | L72: Game 19 | N72: Score
A73: Just Chillin | B73: 66 | D73: Just Chillin | F73: 62 | H73: Just Chillin | J73: 0 | L73: Just Chillin | N73: 0
A74: Shawnee Tribe | B74: 48 | D74: District 5 | F74: 51 | H74: Shawnee Tribe | J74: 0 | L74: Fantasy Hockey Club | N74: 0
A76: Game 5 | B76: Score | D76: Game 10 | F76: Score | H76: Game 15 | J76: Score | L76: Game 20 | N76: Score
A77: Just Chillin | B77: 61 | D77: Just Chillin | F77: 65 | H77: Just Chillin | J77: 0 | L77: Just Chillin | N77: 0
A78: District 5 | B78: 42 | D78: Damn Yankees | F78: 65 | H78: District 5 | J78: 0 | L78: Riketorians | N78: 0

Sheet Damn Yankees
A1: Team: Damn Yankees | C1: General Manager: Ken Chmela
D3: Scoring This Week | N3: Players Overall Scoring
A4: Forwards | B4: Gls | C4: Ast | D4: PP | E4: SH | F4: GW | G4: OT | H4: PSG | I4: PTS | K4: Gls | L4: Ast | M4: PP | N4: SH | O4: GW | P4: OT | Q4: PSG | R4: PTS
A5: Nick Schmaltz | B5: 2 | C5: 2 | D5: 0 | E5: 0 | F5: 1 | G5: 0 | H5: 0 | I5: =(B5+C5+D5+(2*E5)+(2*F5)+G5+(4*H5)) -> 6 | K5: 14 | L5: 22 | M5: 3 | N5: 0 | O5: 4 | P5: 0 | Q5: 0 | R5: =(K5+L5+M5+(2*N5)+(2*O5)+P5+(4*Q5)) -> 47
A6: Troy Terry | B6: 3 | C6: 1 | D6: 0 | E6: 0 | F6: 0 | G6: 0 | H6: 0 | I6: 4 | K6: 13 | L6: 26 | M6: 0 | N6: 2 | O6: 1 | P6: 0 | Q6: 0 | R6: 45
A7: Martin Necas | B7: 1 | C7: 3 | D7: 0 | E7: 0 | F7: 0 | G7: 0 | H7: 0 | I7: 4 | K7: 19 | L7: 34 | M7: 3 | N7: 0 | O7: 0 | P7: 0 | Q7: 0 | R7: 56
A8: Jake Guentzel | B8: 0 | C8: 4 | D8: 0 | E8: 0 | F8: 0 | G8: 0 | H8: 0 | I8: 4 | K8: 18 | L8: 25 | M8: 4 | N8: 2 | O8: 3 | P8: 1 | Q8: 0 | R8: 58
A9: Alex DeBrincat | B9: 2 | C9: 0 | D9: 1 | E9: 0 | F9: 0 | G9: 0 | H9: 0 | I9: 3 | K9: 22 | L9: 20 | M9: 10 | N9: 0 | O9: 4 | P9: 1 | Q9: 0 | R9: 61
A10: Tyler Bertuzzi | B10: 1 | C10: 2 | D10: 0 | E10: 0 | F10: 0 | G10: 0 | H10: 0 | I10: 3 | K10: 19 | L10: 12 | M10: 8 | N10: 0 | O10: 1 | P10: 0 | Q10: 0 | R10: 41
A11: Lucas Raymond | B11: 0 | C11: 3 | D11: 0 | E11: 0 | F11: 0 | G11: 0 | H11: 0 | I11: 3 | K11: 11 | L11: 33 | M11: 4 | N11: 0 | O11: 3 | P11: 0 | Q11: 0 | R11: 54
A12: Zach Hyman | B12: 2 | C12: 0 | D12: 0 | E12: 0 | F12: 0 | G12: 0 | H12: 0 | I12: 2 | K12: 12 | L12: 10 | M12: 4 | N12: 0 | O12: 1 | P12: 0 | Q12: 0 | R12: 28
A13: Beckett Sennecke | B13: 2 | C13: 0 | D13: 0 | E13: 0 | F13: 0 | G13: 0 | H13: 0 | I13: 2 | K13: 13 | L13: 18 | M13: 1 | N13: 1 | O13: 0 | P13: 0 | Q13: 0 | R13: 34
A14: Alex Tuch | B14: 1 | C14: 1 | D14: 0 | E14: 0 | F14: 0 | G14: 0 | H14: 0 | I14: 2 | K14: 12 | L14: 20 | M14: 2 | N14: 1 | O14: 1 | P14: 1 | Q14: 0 | R14: 39
A15: Matt Duchene | B15: 1 | C15: 1 | D15: 0 | E15: 0 | F15: 0 | G15: 0 | H15: 0 | I15: 2 | K15: 3 | L15: 4 | M15: 1 | N15: 0 | O15: 1 | P15: 0 | Q15: 0 | R15: 10
A18: Defense | B18: Gls | C18: Ast | D18: PP | E18: SH | F18: GW | G18: OT | H18: PSG | I18: PTS | K18: Gls | L18: Ast | M18: PP | N18: SH | O18: GW | P18: OT | Q18: PSG | R18: PTS
A19: Quinn Hughes | B19: 0 | C19: 5 | D19: 0 | E19: 0 | F19: 0 | G19: 0 | H19: 0 | I19: =(B19+C19+D19+(2*E19)+(2*F19)+G19+(4*H19)) -> 5 | K19: 3 | L19: 32 | M19: 2 | N19: 0 | O19: 0 | P19: 0 | Q19: 0 | R19: =(K19+L19+M19+(2*N19)+(2*O19)+P19+(4*Q19)) -> 37
A20: Filip Hronek | B20: 1 | C20: 2 | D20: 1 | E20: 0 | F20: 0 | G20: 0 | H20: 0 | I20: 4 | K20: 3 | L20: 22 | M20: 2 | N20: 0 | O20: 0 | P20: 0 | Q20: 0 | R20: 27
A21: Artyom Levshunov | B21: 1 | C21: 1 | D21: 1 | E21: 0 | F21: 0 | G21: 0 | H21: 0 | I21: 3 | K21: 2 | L21: 17 | M21: 1 | N21: 0 | O21: 0 | P21: 0 | Q21: 0 | R21: 20
A22: Nick Blankenburg | B22: 0 | C22: 2 | D22: 0 | E22: 0 | F22: 0 | G22: 0 | H22: 0 | I22: 2 | K22: 4 | L22: 13 | M22: 3 | N22: 0 | O22: 0 | P22: 0 | Q22: 0 | R22: 20
A23: Logan Stanley | B23: 1 | C23: 0 | D23: 0 | E23: 0 | F23: 0 | G23: 0 | H23: 0 | I23: 1 | K23: 7 | L23: 6 | M23: 0 | N23: 0 | O23: 1 | P23: 0 | Q23: 0 | R23: 15
A24: Sam Malinski | B24: 0 | C24: 1 | D24: 0 | E24: 0 | F24: 0 | G24: 0 | H24: 0 | I24: 1 | K24: 3 | L24: 19 | M24: 0 | N24: 0 | O24: 1 | P24: 0 | Q24: 0 | R24: 24
A25: Colton Parayko | B25: 0 | C25: 1 | D25: 0 | E25: 0 | F25: 0 | G25: 0 | H25: 0 | I25: 1 | K25: 0 | L25: 11 | M25: 0 | N25: 0 | O25: 0 | P25: 0 | Q25: 0 | R25: 11
A27: Goalie | B27: W | C27: OT | D27: SO | E27: Gls | F27: Ast | G27: GAA | H27: SP | I27: PTS | K27: W | L27: OT | M27: SO | N27: Gls | O27: Ast | P27: GAA | Q27: SP | R27: PTS
A28: Mackenzie Blackwood | B28: 2 | C28: 0 | D28: 0 | E28: 0 | F28: 0 | G28: 1.51 | H28: 0.921 | I28: =((3*B28)+C28+(3*D28)+(10*E28)+(3*F28)+G29+H29) -> 12 | K28: 13 | L28: 1 | M28: 2 | N28: 0 | O28: 0 | P28: 2.07 | Q28: 0.924 | R28: =((3*K28)+L28+(3*M28)+(10*N28)+(3*O28)+P29+Q29) -> 91
B29: 3 | C29: 119.34 | D29: 35 | E29: 38 | G29: 3 | H29: 3 | I29: =((3*B28)+C28+(3*D28)+(10*E28)+(3*F28)+G29+H29) -> 12 | P29: 20 | Q29: 25 | R29: =((2*K28)+L28+(3*M28)+(10*N28)+(3*O28)+P29+Q29) -> 78
A30: Andrei Vasilevskiy | B30: 2 | C30: 0 | D30: 0 | E30: 0 | F30: 1 | G30: 2.93 | H30: 0.88 | I30: =((3*B30)+C30+(3*D30)+(10*E30)+(3*F30)+G31+H31) -> 10 | K30: 16 | L30: 2 | M30: 1 | N30: 0 | O30: 1 | P30: 2.36 | Q30: 0.912 | R30: =((3*K30)+L30+(3*M30)+(10*N30)+(3*O30)+P31+Q31) -> 105
B31: 6 | C31: 122.79 | D31: 44 | E31: 50 | G31: 1 | H31: 0 | I31: =((3*B30)+C30+(3*D30)+(10*E30)+(3*F30)+G31+H31) -> 10 | P31: 22 | Q31: 27 | R31: =((2*K30)+L30+(3*M30)+(10*N30)+(3*O30)+P31+Q31) -> 89
D32: All Playes Scoring This Week | N32: Cumulative Points
B33: Gls | C33: Ast | D33: PP | E33: SH | F33: GW | G33: OT | H33: PSG | K33: Gls | L33: Ast | M33: PP | N33: SH | O33: GW | P33: OT | Q33: PSG | R33: PTS
A34: Forwards | B34: =SUM(B5:B15) -> 15 | C34: =SUM(C5:C15) -> 17 | D34: 1 | E34: 0 | F34: 1 | G34: 0 | H34: 0 | K34: 159 | L34: 220 | M34: 35 | N34: 6 | O34: 22 | P34: 4 | Q34: 0 | R34: =(K34+L34+M34+(2*N34)+(2*O34)+P34+(4*Q34)) -> 474
A35: Defense | B35: =SUM(B19:B25) -> 3 | C35: =SUM(C19:C25) -> 12 | D35: 2 | E35: 0 | F35: 0 | G35: 0 | H35: 0 | K35: 14 | L35: 104 | M35: 6 | N35: 0 | O35: 0 | P35: 0 | Q35: 0 | R35: =(K35+L35+M35+(2*N35)+(2*O35)+P35+(4*Q35)) -> 124
A36: Total Scorers | B36: =SUM(B34:B35) -> 18 | C36: =SUM(C34:C35) -> 29 | D36: 3 | E36: 0 | F36: 1 | G36: 0 | H36: 0 | K36: =SUM(K34:K35) -> 173 | L36: 324 | M36: 41 | N36: 6 | O36: 22 | P36: 4 | Q36: 0 | R36: =(K36+L36+M36+(2*N36)+(2*O36)+P36+(4*Q36)) -> 598
B37: W | C37: OT | D37: SO | E37: Gls | F37: Ast | G37: GAA | H37: SP | K37: W | L37: OT | M37: SO | N37: Gls | O37: Ast | P37: GAA | Q37: SP | R37: PTS
A38: Goalie Totals | B38: =SUM(B28,B30) -> 4 | C38: =SUM(C28,C30) -> 0 | D38: =SUM(D28,D30) -> 0 | E38: =SUM(E28,E30) -> 0 | F38: =SUM(F28,F30) -> 1 | G38: =IF(C39=0,0,B39/(C39/60)) -> 2.230206914 | H38: =IF(E39=0,0,D39/E39) -> 0.8977272727 | K38: 37 | L38: 5 | M38: 3 | N38: 0 | O38: 1 | P38: =IF(L39=0,0,K39/(L39/60)) -> 2.259423511 | Q38: =IF(N39=0,0,M39/N39) -> 0.9162895928 | R38: =((3*K38)+L38+(3*M38)+(10*N38)+(3*O38)+P39+Q39) -> 243
B39: =SUM(B29,B31) -> 9 | C39: =SUM(C29,C31) -> 242.13 | D39: =SUM(D29,D31) -> 79 | E39: =SUM(E29,E31) -> 88 | K39: 112 | L39: 2974.21 | M39: 1215 | N39: 1326 | P39: 52 | Q39: 63
K40: GA | L40: Time | M40: Saves | N40: Shots
B42: Injured Reserve | M42: This Weeks Totals
A43: Player | B43: P | C43: GP | D43: IR Weeks | E43: Pts | L43: Forwards | N43: =SUM(I5:I12) -> 29
A44: Brandon Hagel | B44: F | C44: 4 | D44: 2 | E44: 48 | L44: Defense | N44: =SUM(I19:I23) -> 15
A45: Victor Hedman | B45: D | C45: 0 | D45: 3 | E45: 12 | L45: Goalie | N45: =I28 -> 12
B46: G
A47: Shane Pinto | B47: F | C47: 3 | D47: 4 | E47: 24 | L47: Total Points | N47: =SUM(N43:N45) -> 56
A48: Warning, Brandon Hagel must be returned to lineup by start of Week 15
A51: Warning, Shane Pinto must be returned to lineup by start of Week 15
A56: Team Record | B56: W | C56: L | D56: T | E56: Pts | F56: CP | G56: BPF | H56: BFA | I56: Streak
A57: Damn Yankees | B57: 6 | C57: 5 | D57: 2 | E57: =2*B57+D57 -> 14 | F57: =R36+R38 -> 841 | G57: =SUM(B61,B65,B69,B73,B77,F61,F65,F69,F73,F77,J61,J65,J69,J73,J77,N61,N65,N69,N73,N77,R61,R65) -> 714 | H57: =SUM(B62,B66,B70,B74,B78,F62,F66,F70,F74,F78,J62,J66,J70,J74,J78,N62,N66,N70,N74,N78,R62,R66) -> 720 | I57: Tied 1
A60: Game 1 | B60: Score | D60: Game 6 | F60: Score | H60: Game 11 | J60: Score | L60: Game 16 | N60: Score | P60: Game 21 | R60: Score
A61: Damn Yankees | B61: 41 | D61: Damn Yankees | F61: 50 | H61: Damn Yankees | J61: 48 | L61: Damn Yankees | N61: 0 | P61: Damn Yankees | R61: 0
A62: Team LIRHL | B62: 47 | D62: District 5 | F62: 72 | H62: Slappers | J62: 23 | L62: Highlanders | N62: 0 | P62: Team LIRHL | R62: 0
A64: Game 2 | B64: Score | D64: Game 7 | F64: Score | H64: Game 12 | J64: Score | L64: Game 17 | N64: Score | P64: Game 22 | R64: Score
A65: Damn Yankees | B65: 61 | D65: Damn Yankees | F65: 75 | H65: Damn Yankees | J65: 50 | L65: Damn Yankees | N65: 0 | P65: Damn Yankees | R65: 0
A66: Slappers | B66: 63 | D66: Highlanders | F66: 58 | H66: Fantasy Hockey Club | J66: 46 | L66: Just Chillin | N66: 0 | P66: Riketorians | R66: 0
A68: Game 3 | B68: Score | D68: Game 8 | F68: Score | H68: Game 13 | J68: Score | L68: Game 18 | N68: Score
A69: Damn Yankees | B69: 49 | D69: Damn Yankees | F69: 56 | H69: Damn Yankees | J69: 56 | L69: Damn Yankees | N69: 0
A70: Fantasy Hockey Club | B70: 63 | D70: Grumpy Old Men | F70: 55 | H70: Team LIRHL | J70: 56 | L70: Grumpy Old Men | N70: 0
A72: Game 4 | B72: Score | D72: Game 9 | F72: Score | H72: Game 14 | J72: Score | L72: Game 19 | N72: Score
A73: Damn Yankees | B73: 61 | D73: Damn Yankees | F73: 46 | H73: Damn Yankees | J73: 0 | L73: Damn Yankees | N73: 0
A74: Grumpy Old Men | B74: 49 | D74: Shawnee Tribe | F74: 68 | H74: Riketorians | J74: 0 | L74: District 5 | N74: 0
A76: Game 5 | B76: Score | D76: Game 10 | F76: Score | H76: Game 15 | J76: Score | L76: Game 20 | N76: Score
A77: Damn Yankees | B77: 56 | D77: Damn Yankees | F77: 65 | H77: Damn Yankees | J77: 0 | L77: Damn Yankees | N77: 0
A78: Riketorians | B78: 55 | D78: Just Chillin | F78: 65 | H78: Fantasy Hockey Club | J78: 0 | L78: Shawnee Tribe | N78: 0

Sheet Slappers
A1: Team: Slappers | C1: General Manager: Vince Kovacs
D3: Scoring This Week | N3: Players Overall Scoring
A4: Forwards | B4: Gls | C4: Ast | D4: PP | E4: SH | F4: GW | G4: OT | H4: PSG | I4: PTS | K4: Gls | L4: Ast | M4: PP | N4: SH | O4: GW | P4: OT | Q4: PSG | R4: PTS
A5: Auston Matthews | B5: 5 | C5: 2 | D5: 1 | E5: 0 | F5: 1 | G5: 0 | H5: 0 | I5: =(B5+C5+D5+(2*E5)+(2*F5)+G5+(4*H5)) -> 10 | K5: 20 | L5: 13 | M5: 4 | N5: 0 | O5: 3 | P5: 1 | Q5: 0 | R5: =(K5+L5+M5+(2*N5)+(2*O5)+P5+(4*Q5)) -> 44
A6: Dylan Guenther | B6: 4 | C6: 2 | D6: 0 | E6: 0 | F6: 0 | G6: 0 | H6: 0 | I6: 6 | K6: 20 | L6: 16 | M6: 4 | N6: 0 | O6: 5 | P6: 3 | Q6: 0 | R6: 53
A7: Dylan Strome | B7: 3 | C7: 2 | D7: 1 | E7: 0 | F7: 0 | G7: 0 | H7: 0 | I7: 6 | K7: 10 | L7: 23 | M7: 2 | N7: 0 | O7: 1 | P7: 0 | Q7: 0 | R7: 37
A8: Timo Meier | B8: 1 | C8: 1 | D8: 0 | E8: 0 | F8: 1 | G8: 0 | H8: 0 | I8: 4 | K8: 12 | L8: 13 | M8: 5 | N8: 0 | O8: 2 | P8: 0 | Q8: 0 | R8: 34
A9: Jack Hughes | B9: 0 | C9: 3 | D9: 0 | E9: 0 | F9: 0 | G9: 0 | H9: 0 | I9: 3 | K9: 11 | L9: 13 | M9: 1 | N9: 0 | O9: 2 | P9: 1 | Q9: 0 | R9: 30
A10: Jesper Bratt | B10: 1 | C10: 1 | D10: 0 | E10: 0 | F10: 0 | G10: 0 | H10: 0 | I10: 2 | K10: 9 | L10: 24 | M10: 3 | N10: 1 | O10: 2 | P10: 1 | Q10: 0 | R10: 43
A11: Gabriel Vilardi | B11: 1 | C11: 1 | D11: 0 | E11: 0 | F11: 0 | G11: 0 | H11: 0 | I11: 2 | K11: 17 | L11: 18 | M11: 6 | N11: 0 | O11: 2 | P11: 0 | Q11: 0 | R11: 45
A12: Arseny Gritsyuk | B12: 1 | C12: 0 | D12: 0 | E12: 0 | F12: 0 | G12: 0 | H12: 0 | I12: 1 | K12: 8 | L12: 9 | M12: 2 | N12: 0 | O12: 0 | P12: 0 | Q12: 0 | R12: 19
A13: Dawson Mercer | B13: 0 | C13: 1 | D13: 0 | E13: 0 | F13: 0 | G13: 0 | H13: 0 | I13: 1 | K13: 10 | L13: 15 | M13: 3 | N13: 2 | O13: 1 | P13: 0 | Q13: 0 | R13: 34
A14: Jordan Kyrou | B14: 0 | C14: 1 | D14: 0 | E14: 0 | F14: 0 | G14: 0 | H14: 0 | I14: 1 | K14: 8 | L14: 9 | M14: 1 | N14: 0 | O14: 0 | P14: 0 | Q14: 0 | R14: 18
A15: Logan Cooley | B15: 0 | C15: 0 | D15: 0 | E15: 0 | F15: 0 | G15: 0 | H15: 0 | I15: 0 | K15: 14 | L15: 9 | M15: 3 | N15: 1 | O15: 1 | P15: 0 | Q15: 0 | R15: 30
A18: Defense | B18: Gls | C18: Ast | D18: PP | E18: SH | F18: GW | G18: OT | H18: PSG | I18: PTS | K18: Gls | L18: Ast | M18: PP | N18: SH | O18: GW | P18: OT | Q18: PSG | R18: PTS
A19: Hampus Lindholm | B19: 1 | C19: 2 | D19: 0 | E19: 0 | F19: 1 | G19: 0 | H19: 0 | I19: =(B19+C19+D19+(2*E19)+(2*F19)+G19+(4*H19)) -> 5 | K19: 3 | L19: 11 | M19: 1 | N19: 0 | O19: 2 | P19: 0 | Q19: 0 | R19: =(K19+L19+M19+(2*N19)+(2*O19)+P19+(4*Q19)) -> 19
A20: Noah Dobson | B20: 1 | C20: 3 | D20: 0 | E20: 0 | F20: 0 | G20: 0 | H20: 0 | I20: 4 | K20: 7 | L20: 20 | M20: 0 | N20: 0 | O20: 1 | P20: 0 | Q20: 0 | R20: 29
A21: Bowen Byram | B21: 1 | C21: 1 | D21: 0 | E21: 0 | F21: 1 | G21: 0 | H21: 0 | I21: 4 | K21: 9 | L21: 11 | M21: 1 | N21: 0 | O21: 4 | P21: 1 | Q21: 0 | R21: 30
A22: Seth Jones | B22: 0 | C22: 3 | D22: 0 | E22: 0 | F22: 0 | G22: 0 | H22: 0 | I22: 3 | K22: 6 | L22: 18 | M22: 5 | N22: 0 | O22: 0 | P22: 0 | Q22: 0 | R22: 29
A23: Ivan Provorov | B23: 1 | C23: 1 | D23: 0 | E23: 0 | F23: 0 | G23: 0 | H23: 0 | I23: 2 | K23: 5 | L23: 10 | M23: 0 | N23: 0 | O23: 0 | P23: 0 | Q23: 0 | R23: 15
A24: Dougie Hamilton | B24: 1 | C24: 0 | D24: 0 | E24: 0 | F24: 0 | G24: 0 | H24: 0 | I24: 1 | K24: 5 | L24: 4 | M24: 2 | N24: 0 | O24: 1 | P24: 0 | Q24: 0 | R24: 13
A25: Dmitry Orlov | B25: 0 | C25: 1 | D25: 0 | E25: 0 | F25: 0 | G25: 0 | H25: 0 | I25: 1 | K25: 1 | L25: 19 | M25: 0 | N25: 0 | O25: 0 | P25: 0 | Q25: 0 | R25: 20
A27: Goalie | B27: W | C27: OT | D27: SO | E27: Gls | F27: Ast | G27: GAA | H27: SP | I27: PTS | K27: W | L27: OT | M27: SO | N27: Gls | O27: Ast | P27: GAA | Q27: SP | R27: PTS
A28: Spencer Knight | B28: 2 | C28: 1 | D28: 0 | E28: 0 | F28: 0 | G28: 2.97 | H28: 0.876 | I28: =((3*B28)+C28+(3*D28)+(10*E28)+(3*F28)+G29+H29) -> 8 | K28: 12 | L28: 6 | M28: 2 | N28: 0 | O28: 1 | P28: 2.6 | Q28: 0.91 | R28: =((3*K28)+L28+(3*M28)+(10*N28)+(3*O28)+P29+Q29) -> 98
B29: 11 | C29: 221.93 | D29: 78 | E29: 89 | G29: 1 | H29: 0 | I29: =((3*B28)+C28+(3*D28)+(10*E28)+(3*F28)+G29+H29) -> 8 | P29: 20 | Q29: 27 | R29: =((2*K28)+L28+(3*M28)+(10*N28)+(3*O28)+P29+Q29) -> 86
A30: Jake Oettinger | B30: 0 | C30: 0 | D30: 0 | E30: 0 | F30: 0 | G30: 4.3 | H30: 0.81 | I30: =((3*B30)+C30+(3*D30)+(10*E30)+(3*F30)+G31+H31) -> 0 | K30: 16 | L30: 3 | M30: 2 | N30: 0 | O30: 1 | P30: 2.57 | Q30: 0.907 | R30: =((3*K30)+L30+(3*M30)+(10*N30)+(3*O30)+P31+Q31) -> 109
B31: 4 | C31: 55.81 | D31: 17 | E31: 21 | G31: 0 | H31: 0 | I31: =((3*B30)+C30+(3*D30)+(10*E30)+(3*F30)+G31+H31) -> 0 | P31: 21 | Q31: 28 | R31: =((2*K30)+L30+(3*M30)+(10*N30)+(3*O30)+P31+Q31) -> 93
D32: All Playes Scoring This Week | N32: Cumulative Points
B33: Gls | C33: Ast | D33: PP | E33: SH | F33: GW | G33: OT | H33: PSG | K33: Gls | L33: Ast | M33: PP | N33: SH | O33: GW | P33: OT | Q33: PSG | R33: PTS
A34: Forwards | B34: =SUM(B5:B15) -> 16 | C34: =SUM(C5:C15) -> 14 | D34: 2 | E34: 0 | F34: 2 | G34: 0 | H34: 0 | K34: 133 | L34: 171 | M34: 31 | N34: 2 | O34: 20 | P34: 7 | Q34: 0 | R34: =(K34+L34+M34+(2*N34)+(2*O34)+P34+(4*Q34)) -> 386
A35: Defense | B35: =SUM(B19:B25) -> 5 | C35: =SUM(C19:C25) -> 11 | D35: 0 | E35: 0 | F35: 2 | G35: 0 | H35: 0 | K35: 37 | L35: 96 | M35: 7 | N35: 0 | O35: 7 | P35: 2 | Q35: 0 | R35: =(K35+L35+M35+(2*N35)+(2*O35)+P35+(4*Q35)) -> 156
A36: Total Scorers | B36: =SUM(B34:B35) -> 21 | C36: =SUM(C34:C35) -> 25 | D36: 2 | E36: 0 | F36: 4 | G36: 0 | H36: 0 | K36: =SUM(K34:K35) -> 170 | L36: 267 | M36: 38 | N36: 2 | O36: 27 | P36: 9 | Q36: 0 | R36: =(K36+L36+M36+(2*N36)+(2*O36)+P36+(4*Q36)) -> 542
B37: W | C37: OT | D37: SO | E37: Gls | F37: Ast | G37: GAA | H37: SP | K37: W | L37: OT | M37: SO | N37: Gls | O37: Ast | P37: GAA | Q37: SP | R37: PTS
A38: Goalie Totals | B38: =SUM(B28,B30) -> 2 | C38: =SUM(C28,C30) -> 1 | D38: =SUM(D28,D30) -> 0 | E38: =SUM(E28,E30) -> 0 | F38: =SUM(F28,F30) -> 0 | G38: =IF(C39=0,0,B39/(C39/60)) -> 3.2404407 | H38: =IF(E39=0,0,D39/E39) -> 0.8636363636 | K38: 27 | L38: 9 | M38: 4 | N38: 0 | O38: 2 | P38: =IF(L39=0,0,K39/(L39/60)) -> 2.657333994 | Q38: =IF(N39=0,0,M39/N39) -> 0.9053606883 | R38: =((3*K38)+L38+(3*M38)+(10*N38)+(3*O38)+P39+Q39) -> 195
B39: =SUM(B29,B31) -> 15 | C39: =SUM(C29,C31) -> 277.74 | D39: =SUM(D29,D31) -> 95 | E39: =SUM(E29,E31) -> 110 | K39: 143 | L39: 3228.8 | M39: 1368 | N39: 1511 | P39: 38 | Q39: 49
K40: GA | L40: Time | M40: Saves | N40: Shots
B42: Injured Reserve | M42: This Weeks Totals
A43: Player | B43: P | C43: GP | D43: IR Weeks | E43: Pts | L43: Forwards | N43: =SUM(I5:I12) -> 34
B44: F | L44: Defense | N44: =SUM(I19:I23) -> 18
A45: Simon Nemec | B45: D | C45: 0 | D45: 1 | E45: 24 | L45: Goalie | N45: =I28 -> 8
B46: G
B47: Flex | L47: Total Points | N47: =SUM(N43:N45) -> 60
A56: Team Record | B56: W | C56: L | D56: T | E56: Pts | F56: CP | G56: BPF | H56: BFA | I56: Streak
A57: Slappers | B57: 5 | C57: 8 | D57: 0 | E57: =2*B57+D57 -> 10 | F57: =R36+R38 -> 737 | G57: =SUM(B61,B65,B69,B73,B77,F61,F65,F69,F73,F77,J61,J65,J69,J73,J77,N61,N65,N69,N73,N77,R61,R65) -> 664 | H57: =SUM(B62,B66,B70,B74,B78,F62,F66,F70,F74,F78,J62,J66,J70,J74,J78,N62,N66,N70,N74,N78,R62,R66) -> 746 | I57: Won 1
A60: Game 1 | B60: Score | D60: Game 6 | F60: Score | H60: Game 11 | J60: Score | L60: Game 16 | N60: Score | P60: Game 21 | R60: Score
A61: Slappers | B61: 38 | D61: Slappers | F61: 63 | H61: Slappers | J61: 23 | L61: Slappers | N61: 0 | P61: Slappers | R61: 0
A62: Just Chillin | B62: 49 | D62: Team LIRHL | F62: 55 | H62: Damn Yankees | J62: 48 | L62: Grumpy Old Men | N62: 0 | P62: Fantasy Hockey Club | R62: 0
A64: Game 2 | B64: Score | D64: Game 7 | F64: Score | H64: Game 12 | J64: Score | L64: Game 17 | N64: Score | P64: Game 22 | R64: Score
A65: Slappers | B65: 63 | D65: Slappers | F65: 39 | H65: Slappers | J65: 42 | L65: Slappers | N65: 0 | P65: Slappers | R65: 0
A66: Damn Yankees | B66: 61 | D66: Riketorians | F66: 73 | H66: Just Chillin | J66: 47 | L66: Shawnee Tribe | N66: 0 | P66: Just Chillin | R66: 0
A68: Game 3 | B68: Score | D68: Game 8 | F68: Score | H68: Game 13 | J68: Score | L68: Game 18 | N68: Score
A69: Slappers | B69: 73 | D69: Slappers | F69: 56 | H69: Slappers | J69: 60 | L69: Slappers | N69: 0
A70: Shawnee Tribe | B70: 66 | D70: Shawnee Tribe | F70: 59 | H70: Fantasy Hockey Club | J70: 46 | L70: District 5 | N70: 0
A72: Game 4 | B72: Score | D72: Game 9 | F72: Score | H72: Game 14 | J72: Score | L72: Game 19 | N72: Score
A73: Slappers | B73: 61 | D73: Slappers | F73: 50 | H73: Slappers | J73: 0 | L73: Slappers | N73: 0
A74: District 5 | B74: 51 | D74: Highlanders | F74: 66 | H74: District 5 | J74: 0 | L74: Riketorians | N74: 0
A76: Game 5 | B76: Score | D76: Game 10 | F76: Score | H76: Game 15 | J76: Score | L76: Game 20 | N76: Score
A77: Slappers | B77: 50 | D77: Slappers | F77: 46 | H77: Slappers | J77: 0 | L77: Slappers | N77: 0
A78: Highlanders | B78: 59 | D78: Grumpy Old Men | F78: 66 | H78: Highlanders | J78: 0 | L78: Team LIRHL | N78: 0

Sheet Boxscores
A1: Box Scores Week 1 | G1: Box Scores Week 2
A3: Grumpy Old Men | B3: 34 | C3: 6 | D3: 19 | E3: 59 | G3: Grumpy Old Men | H3: 35 | I3: 10 | J3: 8 | K3: 53
A4: Fantasy Hockey Club | B4: 36 | C4: 7 | D4: 9 | E4: 52 | G4: Team LIRHL | H4: 33 | I4: 8 | J4: 3 | K4: 44
A6: Team LIRHL | B6: 23 | C6: 9 | D6: 15 | E6: 47 | G6: Fantasy Hockey Club | H6: 43 | I6: 16 | J6: 11 | K6: 70
A7: Damn Yankees | B7: 23 | C7: 5 | D7: 13 | E7: 41 | G7: Riketorians | H7: 27 | I7: 10 | J7: 2 | K7: 39
A9: Riketorians | B9: 22 | C9: 5 | D9: 15 | E9: 42 | G9: Damn Yankees | H9: 30 | I9: 13 | J9: 18 | K9: 61
A10: District 5 | B10: 25 | C10: 6 | D10: 11 | E10: 42 | G10: Slappers | H10: 44 | I10: 10 | J10: 9 | K10: 63
A12: Slappers | B12: 25 | C12: 7 | D12: 6 | E12: 38 | G12: District 5 | H12: 43 | I12: 13 | J12: 6 | K12: 62
A13: Just Chillin | B13: 34 | C13: 12 | D13: 3 | E13: 49 | G13: Shawnee Tribe | H13: 24 | I13: 6 | J13: 3 | K13: 33
A15: Highlanders | B15: 35 | C15: 23 | D15: 11 | E15: 69 | G15: Just Chillin | H15: 46 | I15: 8 | J15: 13 | K15: 67
A16: Shawnee Tribe | B16: 20 | C16: 9 | D16: 4 | E16: 33 | G16: Highlanders | H16: 41 | I16: 4 | J16: 4 | K16: 49
A18: Box Scores Week 3 | G18: Box Scores Week 4
A20: Grumpy Old Men | B20: 25 | C20: 19 | D20: 1 | E20: 45 | G20: Grumpy Old Men | H20: 25 | I20: 15 | J20: 9 | K20: 49
A21: Riketorians | B21: 35 | C21: 17 | D21: 10 | E21: 62 | G21: Damn Yankees | H21: 38 | I21: 6 | J21: 17 | K21: 61
A23: Fantasy Hockey Club | B23: 33 | C23: 12 | D23: 18 | E23: 63 | G23: Fantasy Hockey Club | H23: 35 | I23: 14 | J23: 6 | K23: 55
A24: Damn Yankees | B24: 38 | C24: 10 | D24: 1 | E24: 49 | G24: Highlanders | H24: 38 | I24: 10 | J24: 4 | K24: 52
A26: Team LIRHL | B26: 39 | C26: 15 | D26: 12 | E26: 66 | G26: Team LIRHL | H26: 43 | I26: 12 | J26: 4 | K26: 59
A27: Just Chillin | B27: 37 | C27: 7 | D27: 12 | E27: 56 | G27: Riketorians | H27: 53 | I27: 15 | J27: 4 | K27: 72
A29: District 5 | B29: 29 | C29: 13 | D29: 6 | E29: 48 | G29: District 5 | H29: 24 | I29: 22 | J29: 5 | K29: 51
A30: Highlanders | B30: 29 | C30: 9 | D30: 7 | E30: 45 | G30: Slappers | H30: 31 | I30: 13 | J30: 17 | K30: 61
A32: Slappers | B32: 44 | C32: 14 | D32: 15 | E32: 73 | G32: Just Chillin | H32: 43 | I32: 16 | J32: 7 | K32: 66
A33: Shawnee Tribe | B33: 43 | C33: 13 | D33: 10 | E33: 66 | G33: Shawnee Tribe | H33: 28 | I33: 18 | J33: 2 | K33: 48
A35: Box Scores Week 5 | G35: Box Scores Week 6
A37: Grumpy Old Men | B37: 31 | C37: 15 | D37: 6 | E37: 52 | G37: Grumpy Old Men | H37: 47 | I37: 23 | J37: 14 | K37: 84
A38: Shawnee Tribe | B38: 35 | C38: 11 | D38: 6 | E38: 52 | G38: Highlanders | H38: 24 | I38: 14 | J38: 9 | K38: 47
A40: Fantasy Hockey Club | B40: 27 | C40: 7 | D40: 10 | E40: 44 | G40: Fantasy Hockey Club | H40: 37 | I40: 13 | J40: 10 | K40: 60
A41: Team LIRHL | B41: 34 | C41: 12 | D41: 8 | E41: 54 | G41: Just Chillin | H41: 25 | I41: 13 | J41: 6 | K41: 44
A43: Damn Yankees | B43: 32 | C43: 11 | D43: 13 | E43: 56 | G43: Team LIRHL | H43: 34 | I43: 12 | J43: 9 | K43: 55
A44: Riketorians | B44: 32 | C44: 11 | D44: 12 | E44: 55 | G44: Slappers | H44: 31 | I44: 17 | J44: 15 | K44: 63
A46: District 5 | B46: 26 | C46: 11 | D46: 5 | E46: 42 | G46: Damn Yankees | H46: 35 | I46: 9 | J46: 6 | K46: 50
A47: Just Chillin | B47: 37 | C47: 19 | D47: 5 | E47: 61 | G47: District 5 | H47: 49 | I47: 15 | J47: 8 | K47: 72
A49: Slappers | B49: 20 | C49: 9 | D49: 21 | E49: 50 | G49: Riketorians | H49: 36 | I49: 7 | J49: 12 | K49: 55
A50: Highlanders | B50: 39 | C50: 4 | D50: 16 | E50: 59 | G50: Shawnee Tribe | H50: 37 | I50: 14 | J50: 7 | K50: 58
A52: Box Scores Week 7 | G52: Box Scores Week 8
A54: Grumpy Old Men | B54: 36 | C54: 8 | D54: 0 | E54: 44 | G54: Grumpy Old Men | H54: 33 | I54: 8 | J54: 14 | K54: 55
A55: Just Chillin | B55: 28 | C55: 15 | D55: 11 | E55: 54 | G55: Damn Yankees | H55: 27 | I55: 8 | J55: 21 | K55: 56
A57: Fantasy Hockey Club | B57: 26 | C57: 17 | D57: 3 | E57: 46 | G57: Fantasy Hockey Club | H57: 21 | I57: 25 | J57: 16 | K57: 62
A58: Shawnee Tribe | B58: 39 | C58: 24 | D58: 12 | E58: 75 | G58: Team LIRHL | H58: 46 | I58: 7 | J58: 14 | K58: 67
A60: Team LIRHL | B60: 31 | C60: 8 | D60: 10 | E60: 49 | G60: Riketorians | H60: 34 | I60: 14 | J60: 3 | K60: 51
A61: District 5 | B61: 41 | C61: 23 | D61: 16 | E61: 80 | G61: Just Chillin | H61: 28 | I61: 17 | J61: 5 | K61: 50
A63: Damn Yankees | B63: 46 | C63: 13 | D63: 16 | E63: 75 | G63: District 5 | H63: 35 | I63: 17 | J63: 9 | K63: 61
A64: Highlanders | B64: 34 | C64: 9 | D64: 15 | E64: 58 | G64: Highlanders | H64: 39 | I64: 17 | J64: 9 | K64: 65
A66: Riketorians | B66: 45 | C66: 16 | D66: 12 | E66: 73 | G66: Slappers | H66: 40 | I66: 10 | J66: 6 | K66: 56
A67: Slappers | B67: 19 | C67: 14 | D67: 6 | E67: 39 | G67: Shawnee Tribe | H67: 37 | I67: 15 | J67: 7 | K67: 59
A69: Box Scores Week 9 | G69: Box Scores Week 10
A71: Grumpy Old Men | B71: 45 | C71: 9 | D71: 15 | E71: 69 | G71: Grumpy Old Men | H71: 45 | I71: 18 | J71: 3 | K71: 66
A72: Team LIRHL | B72: 28 | C72: 4 | D72: 3 | E72: 35 | G72: Slappers | H72: 21 | I72: 12 | J72: 13 | K72: 46
A74: Fantasy Hockey Club | B74: 34 | C74: 8 | D74: 15 | E74: 57 | G74: Fantasy Hockey Club | H74: 27 | I74: 18 | J74: 13 | K74: 58
A75: Riketorians | B75: 48 | C75: 12 | D75: 19 | E75: 79 | G75: District 5 | H75: 36 | I75: 13 | J75: 12 | K75: 61
A77: Damn Yankees | B77: 34 | C77: 4 | D77: 8 | E77: 46 | G77: Team LIRHL | H77: 41 | I77: 9 | J77: 8 | K77: 58
A78: Shawnee Tribe | B78: 36 | C78: 15 | D78: 17 | E78: 68 | G78: Shawnee Tribe | H78: 45 | I78: 35 | J78: 8 | K78: 88
A80: District 5 | B80: 26 | C80: 16 | D80: 9 | E80: 51 | G80: Damn Yankees | H80: 48 | I80: 6 | J80: 11 | K80: 65
A81: Just Chillin | B81: 40 | C81: 11 | D81: 11 | E81: 62 | G81: Just Chillin | H81: 44 | I81: 11 | J81: 10 | K81: 65
A83: Slappers | B83: 19 | C83: 12 | D83: 19 | E83: 50 | G83: Riketorians | H83: 44 | I83: 16 | J83: 16 | K83: 76
A84: Highlanders | B84: 36 | C84: 10 | D84: 20 | E84: 66 | G84: Highlanders | H84: 31 | I84: 9 | J84: 9 | K84: 49
A86: Box Scores Week 11 | G86: Box Scores Week 12
A88: Grumpy Old Men | B88: 33 | C88: 10 | D88: 8 | E88: 51 | G88: Grumpy Old Men | H88: 22 | I88: 7 | J88: 9 | K88: 38
A89: Just Chillin | B89: 20 | C89: 18 | D89: 9 | E89: 47 | G89: District 5 | H89: 42 | I89: 13 | J89: 5 | K89: 60
A91: Fantasy Hockey Club | B91: 35 | C91: 9 | D91: 12 | E91: 56 | G91: Fantasy Hockey Club | H91: 29 | I91: 14 | J91: 3 | K91: 46
A92: Shawnee Tribe | B92: 47 | C92: 17 | D92: 13 | E92: 77 | G92: Damn Yankees | H92: 26 | I92: 12 | J92: 12 | K92: 50
A94: Team LIRHL | B94: 48 | C94: 12 | D94: 19 | E94: 79 | G94: Team LIRHL | H94: 30 | I94: 3 | J94: 4 | K94: 37
A95: Highlanders | B95: 41 | C95: 17 | D95: 6 | E95: 64 | G95: Riketorians | H95: 30 | I95: 6 | J95: 4 | K95: 40
A97: Damn Yankees | B97: 30 | C97: 9 | D97: 9 | E97: 48 | G97: Slappers | H97: 21 | I97: 7 | J97: 14 | K97: 42
A98: Slappers | B98: 12 | C98: 6 | D98: 5 | E98: 23 | G98: Just Chillin | H98: 31 | I98: 13 | J98: 3 | K98: 47
A100: Riketorians | B100: 25 | C100: 15 | D100: 10 | E100: 50 | G100: Highlanders | H100: 21 | I100: 8 | J100: 13 | K100: 42
A101: District 5 | B101: 45 | C101: 14 | D101: 21 | E101: 80 | G101: Shawnee Tribe | H101: 27 | I101: 17 | J101: 10 | K101: 54
A103: Box Scores Week 13 | G103: Box Scores Week 14
A105: Grumpy Old Men | B105: 51 | C105: 18 | D105: 12 | E105: 81 | G105: Grumpy Old Men | H105: 0 | I105: 0 | J105: 0 | K105: 0
A106: Riketorians | B106: 46 | C106: 15 | D106: 14 | E106: 75 | G106: Fantasy Hockey Club | H106: 0 | I106: 0 | J106: 0 | K106: 0
A108: Fantasy Hockey Club | B108: 35 | C108: 10 | D108: 1 | E108: 46 | G108: Team LIRHL | H108: 0 | I108: 0 | J108: 0 | K108: 0
A109: Slappers | B109: 34 | C109: 18 | D109: 8 | E109: 60 | G109: Highlanders | H109: 0 | I109: 0 | J109: 0 | K109: 0
A111: Team LIRHL | B111: 35 | C111: 6 | D111: 15 | E111: 56 | G111: Damn Yankees | H111: 0 | I111: 0 | J111: 0 | K111: 0
A112: Damn Yankees | B112: 29 | C112: 15 | D112: 12 | E112: 56 | G112: Riketorians | H112: 0 | I112: 0 | J112: 0 | K112: 0
A114: District 5 | B114: 41 | C114: 15 | D114: 9 | E114: 65 | G114: District 5 | H114: 0 | I114: 0 | J114: 0 | K114: 0
A115: Shawnee Tribe | B115: 36 | C115: 24 | D115: 9 | E115: 69 | G115: Slappers | H115: 0 | I115: 0 | J115: 0 | K115: 0
A117: Just Chillin | B117: 38 | C117: 10 | D117: 3 | E117: 51 | G117: Just Chillin | H117: 0 | I117: 0 | J117: 0 | K117: 0
A118: Highlanders | B118: 36 | C118: 14 | D118: 6 | E118: 56 | G118: Shawnee Tribe | H118: 0 | I118: 0 | J118: 0 | K118: 0
A120: Box Scores Week 15 | G120: Box Scores Week 16
A122: Grumpy Old Men | B122: 0 | C122: 0 | D122: 0 | E122: 0 | G122: Grumpy Old Men | H122: 0 | I122: 0 | J122: 0 | K122: 0
A123: Shawnee Tribe | B123: 0 | C123: 0 | D123: 0 | E123: 0 | G123: Slappers | H123: 0 | I123: 0 | J123: 0 | K123: 0
A125: Fantasy Hockey Club | B125: 0 | C125: 0 | D125: 0 | E125: 0 | G125: Fantasy Hockey Club | H125: 0 | I125: 0 | J125: 0 | K125: 0
A126: Damn Yankees | B126: 0 | C126: 0 | D126: 0 | E126: 0 | G126: District 5 | H126: 0 | I126: 0 | J126: 0 | K126: 0
A128: Team LIRHL | B128: 0 | C128: 0 | D128: 0 | E128: 0 | G128: Team LIRHL | H128: 0 | I128: 0 | J128: 0 | K128: 0
A129: Riketorians | B129: 0 | C129: 0 | D129: 0 | E129: 0 | G129: Just Chillin | H129: 0 | I129: 0 | J129: 0 | K129: 0
A131: District 5 | B131: 0 | C131: 0 | D131: 0 | E131: 0 | G131: Damn Yankees | H131: 0 | I131: 0 | J131: 0 | K131: 0
A132: Just Chillin | B132: 0 | C132: 0 | D132: 0 | E132: 0 | G132: Highlanders | H132: 0 | I132: 0 | J132: 0 | K132: 0
A134: Slappers | B134: 0 | C134: 0 | D134: 0 | E134: 0 | G134: Riketorians | H134: 0 | I134: 0 | J134: 0 | K134: 0
A135: Highlanders | B135: 0 | C135: 0 | D135: 0 | E135: 0 | G135: Shawnee Tribe | H135: 0 | I135: 0 | J135: 0 | K135: 0
A137: Box Scores Week 17 | G137: Box Scores Week 18
A139: Grumpy Old Men | B139: 0 | C139: 0 | D139: 0 | E139: 0 | G139: Grumpy Old Men | H139: 0 | I139: 0 | J139: 0 | K139: 0
A140: Team LIRHL | B140: 0 | C140: 0 | D140: 0 | E140: 0 | G140: Damn Yankees | H140: 0 | I140: 0 | J140: 0 | K140: 0
A142: Fantasy Hockey Club | B142: 0 | C142: 0 | D142: 0 | E142: 0 | G142: Fantasy Hockey Club | H142: 0 | I142: 0 | J142: 0 | K142: 0
A143: Riketorians | B143: 0 | C143: 0 | D143: 0 | E143: 0 | G143: Team LIRHL | H143: 0 | I143: 0 | J143: 0 | K143: 0
A145: Damn Yankees | B145: 0 | C145: 0 | D145: 0 | E145: 0 | G145: Riketorians | H145: 0 | I145: 0 | J145: 0 | K145: 0
A146: Just Chillin | B146: 0 | C146: 0 | D146: 0 | E146: 0 | G146: Highlanders | H146: 0 | I146: 0 | J146: 0 | K146: 0
A148: District 5 | B148: 0 | C148: 0 | D148: 0 | E148: 0 | G148: District 5 | H148: 0 | I148: 0 | J148: 0 | K148: 0
A149: Highlanders | B149: 0 | C149: 0 | D149: 0 | E149: 0 | G149: Slappers | H149: 0 | I149: 0 | J149: 0 | K149: 0
A151: Slappers | B151: 0 | C151: 0 | D151: 0 | E151: 0 | G151: Just Chillin | H151: 0 | I151: 0 | J151: 0 | K151: 0
A152: Shawnee Tribe | B152: 0 | C152: 0 | D152: 0 | E152: 0 | G152: Shawnee Tribe | H152: 0 | I152: 0 | J152: 0 | K152: 0
A154: Box Scores Week 19 | G154: Box Scores Week 20
A156: Grumpy Old Men | B156: 0 | C156: 0 | D156: 0 | E156: 0 | G156: Grumpy Old Men | H156: 0 | I156: 0 | J156: 0 | K156: 0
A157: Highlanders | B157: 0 | C157: 0 | D157: 0 | E157: 0 | G157: District 5 | H157: 0 | I157: 0 | J157: 0 | K157: 0
A159: Fantasy Hockey Club | B159: 0 | C159: 0 | D159: 0 | E159: 0 | G159: Fantasy Hockey Club | H159: 0 | I159: 0 | J159: 0 | K159: 0
A160: Just Chillin | B160: 0 | C160: 0 | D160: 0 | E160: 0 | G160: Highlanders | H160: 0 | I160: 0 | J160: 0 | K160: 0
A162: Team LIRHL | B162: 0 | C162: 0 | D162: 0 | E162: 0 | G162: Team LIRHL | H162: 0 | I162: 0 | J162: 0 | K162: 0
A163: Shawnee Tribe | B163: 0 | C163: 0 | D163: 0 | E163: 0 | G163: Slappers | H163: 0 | I163: 0 | J163: 0 | K163: 0
A165: Damn Yankees | B165: 0 | C165: 0 | D165: 0 | E165: 0 | G165: Damn Yankees | H165: 0 | I165: 0 | J165: 0 | K165: 0
A166: District 5 | B166: 0 | C166: 0 | D166: 0 | E166: 0 | G166: Shawnee Tribe | H166: 0 | I166: 0 | J166: 0 | K166: 0
A168: Riketorians | B168: 0 | C168: 0 | D168: 0 | E168: 0 | G168: Riketorians | H168: 0 | I168: 0 | J168: 0 | K168: 0
A169: Slappers | B169: 0 | C169: 0 | D169: 0 | E169: 0 | G169: Just Chillin | H169: 0 | I169: 0 | J169: 0 | K169: 0
A171: Box Scores Week 21 | G171: Box Scores Week 22
A173: Grumpy Old Men | B173: 0 | C173: 0 | D173: 0 | E173: 0 | G173: Grumpy Old Men | H173: 0 | I173: 0 | J173: 0 | K173: 0
A174: Riketorians | B174: 0 | C174: 0 | D174: 0 | E174: 0 | G174: Fantasy Hockey Club | H174: 0 | I174: 0 | J174: 0 | K174: 0
A176: Fantasy Hockey Club | B176: 0 | C176: 0 | D176: 0 | E176: 0 | G176: Team LIRHL | H176: 0 | I176: 0 | J176: 0 | K176: 0
A177: Slappers | B177: 0 | C177: 0 | D177: 0 | E177: 0 | G177: District 5 | H177: 0 | I177: 0 | J177: 0 | K177: 0
A179: Team LIRHL | B179: 0 | C179: 0 | D179: 0 | E179: 0 | G179: Damn Yankees | H179: 0 | I179: 0 | J179: 0 | K179: 0
A180: Damn Yankees | B180: 0 | C180: 0 | D180: 0 | E180: 0 | G180: Riketorians | H180: 0 | I180: 0 | J180: 0 | K180: 0
A182: District 5 | B182: 0 | C182: 0 | D182: 0 | E182: 0 | G182: Slappers | H182: 0 | I182: 0 | J182: 0 | K182: 0
A183: Shawnee Tribe | B183: 0 | C183: 0 | D183: 0 | E183: 0 | G183: Just Chillin | H183: 0 | I183: 0 | J183: 0 | K183: 0
A185: Just Chillin | B185: 0 | C185: 0 | D185: 0 | E185: 0 | G185: Highlanders | H185: 0 | I185: 0 | J185: 0 | K185: 0
A186: Highlanders | B186: 0 | C186: 0 | D186: 0 | E186: 0 | G186: Shawnee Tribe | H186: 0 | I186: 0 | J186: 0 | K186: 0

Sheet Weekly Calc
A1: Forwards | C1: Points | E1: Defense | G1: Points | I1: Goalie | K1: Points
A2: ='Team LIRHL'!A5 -> Nikita Kucherov | B2: (LIR) | C2: ='Team LIRHL'!I5 -> 14 | E2: ='Shawnee Tribe'!A19 -> Darren Raddysh | F2: (SHW) | G2: ='Shawnee Tribe'!I19 -> 14 | I2: ='Team LIRHL'!A28 -> Jeremy Swayman | J2: (LIR) | K2: ='Team LIRHL'!I28 -> 15
A3: =Riketorians!A5 -> Brock Nelson | B3: (RIK) | C3: =Riketorians!I5 -> 13 | E3: ='Grumpy Old Men'!A19 -> Matthew Schaefer | F3: (GOM) | G3: ='Grumpy Old Men'!I19 -> 8 | I3: =Riketorians!A28 -> Dustin Wolf | J3: (RIK) | K3: =Riketorians!I28 -> 14
A4: ='Fantasy Hockey Club'!A5 -> Sebastian Aho | B4: (FHC) | C4: ='Fantasy Hockey Club'!I5 -> 12 | E4: =Riketorians!A19 -> Kris Letang | F4: (RIK) | G4: =Riketorians!I19 -> 6 | I4: ='Damn Yankees'!A28 -> Mackenzie Blackwood | J4: (DYK) | K4: ='Damn Yankees'!I28 -> 12
A5: ='Grumpy Old Men'!A5 -> Nathan MacKinnon | B5: (GOM) | C5: ='Grumpy Old Men'!I5 -> 12 | E5: ='District 5'!A19 -> Mikhail Sergachev | F5: (DI5) | G5: ='District 5'!I19 -> 5 | I5: ='Grumpy Old Men'!A28 -> Igor Shesterkin | J5: (GOM) | K5: ='Grumpy Old Men'!I28 -> 12
A6: ='District 5'!A5 -> Steven Stamkos | B6: (DI5) | C6: ='District 5'!I5 -> 10 | E6: ='Shawnee Tribe'!A20 -> Lane Hutson | F6: (SHW) | G6: ='Shawnee Tribe'!I20 -> 5 | I6: ='Damn Yankees'!A30 -> Andrei Vasilevskiy | J6: (DYK) | K6: ='Damn Yankees'!I30 -> 10
A7: =Slappers!A5 -> Auston Matthews | B7: (SLP) | C7: =Slappers!I5 -> 10 | E7: ='Damn Yankees'!A19 -> Quinn Hughes | F7: (DYK) | G7: ='Damn Yankees'!I19 -> 5 | I7: ='Shawnee Tribe'!A28 -> Joey Daccord | J7: (SHW) | K7: ='Shawnee Tribe'!I28 -> 9
A8: ='Shawnee Tribe'!A5 -> Artemi Panarin | B8: (SHW) | C8: ='Shawnee Tribe'!I5 -> 9 | E8: =Slappers!A19 -> Hampus Lindholm | F8: (SLP) | G8: =Slappers!I19 -> 5 | I8: ='District 5'!A28 -> Filip Gustavsson | J8: (DI5) | K8: ='District 5'!I28 -> 9
A9: ='Grumpy Old Men'!A6 -> Mika Zibanejad | B9: (GOM) | C9: ='Grumpy Old Men'!I6 -> 9 | E9: ='District 5'!A20 -> Cale Makar | F9: (DI5) | G9: ='District 5'!I20 -> 4 | I9: =Slappers!A28 -> Spencer Knight | J9: (SLP) | K9: =Slappers!I28 -> 8
A10: =Riketorians!A6 -> Tom Wilson | B10: (RIK) | C10: =Riketorians!I6 -> 9 | E10: =Highlanders!A19 -> Aaron Ekblad | F10: (HGL) | G10: =Highlanders!I19 -> 4 | I10: ='Grumpy Old Men'!A30 -> Joseph Woll | J10: (GOM) | K10: ='Grumpy Old Men'!I30 -> 7
A11: ='Just Chillin'!A5 -> Sidney Crosby | B11: (JCH) | C11: ='Just Chillin'!I5 -> 8 | E11: ='Damn Yankees'!A20 -> Filip Hronek | F11: (DYK) | G11: ='Damn Yankees'!I20 -> 4 | I11: =Highlanders!A28 -> David Rittich | J11: (HGL) | K11: =Highlanders!I28 -> 6
A12: ='Just Chillin'!A6 -> Bryan Rust | B12: (JCH) | C12: ='Just Chillin'!I6 -> 8 | E12: =Highlanders!A20 -> Luke Hughes | F12: (HGL) | G12: =Highlanders!I20 -> 4 | I12: ='District 5'!A30 -> Juuse Saros | J12: (DI5) | K12: ='District 5'!I30 -> 6
A13: ='Grumpy Old Men'!A7 -> Nikolaj Ehlers | B13: (GOM) | C13: ='Grumpy Old Men'!I7 -> 8 | E13: ='Grumpy Old Men'!A20 -> Thomas Chabot | F13: (GOM) | G13: ='Grumpy Old Men'!I20 -> 4 | I13: ='Shawnee Tribe'!A30 -> Karel Vejmelka | J13: (SHW) | K13: ='Shawnee Tribe'!I30 -> 3
A14: ='District 5'!A6 -> Sam Reinhart | B14: (DI5) | C14: ='District 5'!I6 -> 7 | E14: =Slappers!A20 -> Noah Dobson | F14: (SLP) | G14: =Slappers!I20 -> 4 | I14: =Riketorians!A30 -> Sergei Bobrovsky | J14: (RIK) | K14: =Riketorians!I30 -> 3
A15: =Highlanders!A5 -> Brayden Point | B15: (HGL) | C15: =Highlanders!I5 -> 7 | E15: ='Team LIRHL'!A19 -> Alexander Nikishin | F15: (LIR) | G15: ='Team LIRHL'!I19 -> 4 | I15: ='Just Chillin'!A28 -> Jesper Wallstedt | J15: (JCH) | K15: ='Just Chillin'!I28 -> 3
A16: =Highlanders!A6 -> Nick Suzuki | B16: (HGL) | C16: =Highlanders!I6 -> 7 | E16: =Riketorians!A20 -> Erik Karlsson | F16: (RIK) | G16: =Riketorians!I20 -> 4 | I16: =Highlanders!A30 -> Scott Wedgewood | J16: (HGL) | K16: =Highlanders!I30 -> 3
A17: ='Damn Yankees'!A5 -> Nick Schmaltz | B17: (DYK) | C17: ='Damn Yankees'!I5 -> 6 | E17: =Slappers!A21 -> Bowen Byram | F17: (SLP) | G17: =Slappers!I21 -> 4 | I17: ='Fantasy Hockey Club'!A28 -> Logan Thompson | J17: (FHC) | K17: ='Fantasy Hockey Club'!I28 -> 1
A18: ='Just Chillin'!A7 -> Anthony Mantha | B18: (JCH) | C18: ='Just Chillin'!I7 -> 6 | E18: ='Just Chillin'!A19 -> Roman Josi | F18: (JCH) | G18: ='Just Chillin'!I19 -> 3 | I18: ='Just Chillin'!A30 -> Connor Hellebuyck | J18: (JCH) | K18: ='Just Chillin'!I30 -> 1
A19: ='Shawnee Tribe'!A6 -> Macklin Celebrini | B19: (SHW) | C19: ='Shawnee Tribe'!I6 -> 6 | E19: ='Fantasy Hockey Club'!A19 -> KAndre Miller | F19: (FHC) | G19: ='Fantasy Hockey Club'!I19 -> 3 | I19: ='Fantasy Hockey Club'!A30 -> Akira Schmid | J19: (FHC) | K19: ='Fantasy Hockey Club'!I30 -> 1
A20: =Riketorians!A7 -> David Pastrnak | B20: (RIK) | C20: =Riketorians!I7 -> 6 | E20: ='Just Chillin'!A20 -> Brock Faber | F20: (JCH) | G20: ='Just Chillin'!I20 -> 3 | I20: =Slappers!A30 -> Jake Oettinger | J20: (SLP) | K20: =Slappers!I30 -> 0
A21: ='Just Chillin'!A8 -> Aliaksei Protas | B21: (JCH) | C21: ='Just Chillin'!I8 -> 6 | E21: ='District 5'!A21 -> Rasmus Andersson | F21: (DI5) | G21: ='District 5'!I21 -> 3 | I21: ='Team LIRHL'!A30 -> Linus Ullmark | J21: (LIR) | K21: ='Team LIRHL'!I30 -> 0
A22: =Highlanders!A7 -> Kirill Marchenko | B22: (HGL) | C22: =Highlanders!I7 -> 6 | E22: ='Damn Yankees'!A21 -> Artyom Levshunov | F22: (DYK) | G22: ='Damn Yankees'!I21 -> 3
A23: =Slappers!A6 -> Dylan Guenther | B23: (SLP) | C23: =Slappers!I6 -> 6 | E23: =Highlanders!A21 -> Sean Durzi | F23: (HGL) | G23: =Highlanders!I21 -> 3
A24: =Slappers!A7 -> Dylan Strome | B24: (SLP) | C24: =Slappers!I7 -> 6 | E24: =Riketorians!A21 -> Jake Sanderson | F24: (RIK) | G24: =Riketorians!I21 -> 3
A25: ='Grumpy Old Men'!A8 -> Joel Eriksson Ek | B25: (GOM) | C25: ='Grumpy Old Men'!I8 -> 6 | E25: ='Grumpy Old Men'!A21 -> MacKenzie Weegar | F25: (GOM) | G25: ='Grumpy Old Men'!I21 -> 3
A26: ='Team LIRHL'!A6 -> Kevin Fiala | B26: (LIR) | C26: ='Team LIRHL'!I6 -> 5 | E26: =Slappers!A22 -> Seth Jones | F26: (SLP) | G26: =Slappers!I22 -> 3
A27: ='District 5'!A7 -> Brad Marchand | B27: (DI5) | C27: ='District 5'!I7 -> 5 | E27: ='Fantasy Hockey Club'!A20 -> Oliver Ekman-Larsson | F27: (FHC) | G27: ='Fantasy Hockey Club'!I20 -> 2
A28: ='District 5'!A8 -> Owen Tippett | B28: (DI5) | C28: ='District 5'!I8 -> 5 | E28: ='Shawnee Tribe'!A21 -> Evan Bouchard | F28: (SHW) | G28: ='Shawnee Tribe'!I21 -> 2
A29: ='Shawnee Tribe'!A7 -> Ivan Demidov | B29: (SHW) | C29: ='Shawnee Tribe'!I7 -> 5 | E29: ='Fantasy Hockey Club'!A21 -> Vladislav Gavrikov | F29: (FHC) | G29: ='Fantasy Hockey Club'!I21 -> 2
A30: =Highlanders!A8 -> Jackson Blake | B30: (HGL) | C30: =Highlanders!I8 -> 5 | E30: ='Just Chillin'!A21 -> Zach Werenski | F30: (JCH) | G30: ='Just Chillin'!I21 -> 2
A31: ='Grumpy Old Men'!A9 -> Clayton Keller | B31: (GOM) | C31: ='Grumpy Old Men'!I9 -> 5 | E31: ='Shawnee Tribe'!A22 -> Travis Sanheim | F31: (SHW) | G31: ='Shawnee Tribe'!I22 -> 2
A32: ='Team LIRHL'!A7 -> Nico Hischier | B32: (LIR) | C32: ='Team LIRHL'!I7 -> 4 | E32: ='Damn Yankees'!A22 -> Nick Blankenburg | F32: (DYK) | G32: ='Damn Yankees'!I22 -> 2
A33: ='Fantasy Hockey Club'!A6 -> Cole Caufield | B33: (FHC) | C33: ='Fantasy Hockey Club'!I6 -> 4 | E33: ='District 5'!A22 -> Moritz Seider | F33: (DI5) | G33: ='District 5'!I22 -> 2
A34: ='Damn Yankees'!A6 -> Troy Terry | B34: (DYK) | C34: ='Damn Yankees'!I6 -> 4 | E34: =Highlanders!A22 -> Charlie McAvoy | F34: (HGL) | G34: =Highlanders!I22 -> 2
A35: ='Damn Yankees'!A7 -> Martin Necas | B35: (DYK) | C35: ='Damn Yankees'!I7 -> 4 | E35: ='Grumpy Old Men'!A22 -> Josh Morrissey | F35: (GOM) | G35: ='Grumpy Old Men'!I22 -> 2
A36: ='District 5'!A9 -> Matthew Knies | B36: (DI5) | C36: ='District 5'!I9 -> 4 | E36: ='Fantasy Hockey Club'!A22 -> Jakob Chychrun | F36: (FHC) | G36: ='Fantasy Hockey Club'!I22 -> 2
A37: ='Fantasy Hockey Club'!A7 -> Elias Lindholm | B37: (FHC) | C37: ='Fantasy Hockey Club'!I7 -> 4 | E37: =Slappers!A23 -> Ivan Provorov | F37: (SLP) | G37: =Slappers!I23 -> 2
A38: =Riketorians!A8 -> Andrei Svechnikov | B38: (RIK) | C38: =Riketorians!I8 -> 4 | E38: ='Just Chillin'!A22 -> Noah Hanifin | F38: (JCH) | G38: ='Just Chillin'!I22 -> 1
A39: =Riketorians!A9 -> Drake Batherson | B39: (RIK) | C39: =Riketorians!I9 -> 4 | E39: ='Team LIRHL'!A20 -> Zeev Buium | F39: (LIR) | G39: ='Team LIRHL'!I20 -> 1
A40: ='District 5'!A10 -> Mason McTavish | B40: (DI5) | C40: ='District 5'!I10 -> 4 | E40: ='Team LIRHL'!A21 -> Brent Burns | F40: (LIR) | G40: ='Team LIRHL'!I21 -> 1
A41: ='Shawnee Tribe'!A8 -> Connor McDavid | B41: (SHW) | C41: ='Shawnee Tribe'!I8 -> 4 | E41: =Highlanders!A23 -> Jackson LaCombe | F41: (HGL) | G41: =Highlanders!I23 -> 1
A42: ='Fantasy Hockey Club'!A8 -> Pavel Dorofeyev | B42: (FHC) | C42: ='Fantasy Hockey Club'!I8 -> 4 | E42: ='Shawnee Tribe'!A23 -> Vince Dunn | F42: (SHW) | G42: ='Shawnee Tribe'!I23 -> 1
A43: ='Damn Yankees'!A8 -> Jake Guentzel | B43: (DYK) | C43: ='Damn Yankees'!I8 -> 4 | E43: =Riketorians!A22 -> Justin Faulk | F43: (RIK) | G43: =Riketorians!I22 -> 1
A44: =Riketorians!A10 -> Vincent Trocheck | B44: (RIK) | C44: =Riketorians!I10 -> 4 | E44: ='Grumpy Old Men'!A23 -> Miro Heiskanen | F44: (GOM) | G44: ='Grumpy Old Men'!I23 -> 1
A45: ='Just Chillin'!A9 -> Mark Scheifele | B45: (JCH) | C45: ='Just Chillin'!I9 -> 4 | E45: ='Just Chillin'!A23 -> Morgan Rielly | F45: (JCH) | G45: ='Just Chillin'!I23 -> 1
A46: ='Just Chillin'!A10 -> John Tavares | B46: (JCH) | C46: ='Just Chillin'!I10 -> 4 | E46: ='Fantasy Hockey Club'!A23 -> Brandt Clarke | F46: (FHC) | G46: ='Fantasy Hockey Club'!I23 -> 1
A47: =Slappers!A8 -> Timo Meier | B47: (SLP) | C47: =Slappers!I8 -> 4 | E47: ='Just Chillin'!A24 -> Cam Fowler | F47: (JCH) | G47: ='Just Chillin'!I24 -> 1
A48: =Highlanders!A9 -> Kirill Kaprizov | B48: (HGL) | C48: =Highlanders!I9 -> 4 | E48: =Riketorians!A23 -> Devon Toews | F48: (RIK) | G48: =Riketorians!I23 -> 1
A49: ='Fantasy Hockey Club'!A9 -> Marcus Johansson | B49: (FHC) | C49: ='Fantasy Hockey Club'!I9 -> 4 | E49: ='Damn Yankees'!A23 -> Logan Stanley | F49: (DYK) | G49: ='Damn Yankees'!I23 -> 1
A50: ='Grumpy Old Men'!A10 -> Mark Stone | B50: (GOM) | C50: ='Grumpy Old Men'!I10 -> 4 | E50: ='District 5'!A23 -> Jamie Drysdale | F50: (DI5) | G50: ='District 5'!I23 -> 1
A51: ='Grumpy Old Men'!A11 -> Matt Coronato | B51: (GOM) | C51: ='Grumpy Old Men'!I11 -> 4 | E51: =Riketorians!A24 -> Mike Matheson | F51: (RIK) | G51: =Riketorians!I24 -> 1
A52: ='Team LIRHL'!A8 -> Dylan Larkin | B52: (LIR) | C52: ='Team LIRHL'!I8 -> 3 | E52: ='Grumpy Old Men'!A24 -> Darnell Nurse | F52: (GOM) | G52: ='Grumpy Old Men'!I24 -> 1
A53: ='Shawnee Tribe'!A9 -> Gabriel Landeskog | B53: (SHW) | C53: ='Shawnee Tribe'!I9 -> 3 | E53: =Slappers!A24 -> Dougie Hamilton | F53: (SLP) | G53: =Slappers!I24 -> 1
A54: =Riketorians!A11 -> Travis Konecny | B54: (RIK) | C54: =Riketorians!I11 -> 3 | E54: =Slappers!A25 -> Dmitry Orlov | F54: (SLP) | G54: =Slappers!I25 -> 1
A55: ='District 5'!A11 -> Matt Boldy | B55: (DI5) | C55: ='District 5'!I11 -> 3 | E55: ='Damn Yankees'!A24 -> Sam Malinski | F55: (DYK) | G55: ='Damn Yankees'!I24 -> 1
A56: ='District 5'!A12 -> Tage Thompson | B56: (DI5) | C56: ='District 5'!I12 -> 3 | E56: =Riketorians!A25 -> Neal Pionk | F56: (RIK) | G56: =Riketorians!I25 -> 1
A57: =Slappers!A9 -> Jack Hughes | B57: (SLP) | C57: =Slappers!I9 -> 3 | E57: ='Damn Yankees'!A25 -> Colton Parayko | F57: (DYK) | G57: ='Damn Yankees'!I25 -> 1
A58: ='Team LIRHL'!A9 -> Tim Stützle | B58: (LIR) | C58: ='Team LIRHL'!I9 -> 3 | E58: =Highlanders!A24 -> Drew Doughty | F58: (HGL) | G58: =Highlanders!I24 -> 0
A59: ='Shawnee Tribe'!A10 -> Robert Thomas | B59: (SHW) | C59: ='Shawnee Tribe'!I10 -> 3 | E59: ='Team LIRHL'!A22 -> Jacob Trouba | F59: (LIR) | G59: ='Team LIRHL'!I22 -> 0
A60: ='Damn Yankees'!A9 -> Alex DeBrincat | B60: (DYK) | C60: ='Damn Yankees'!I9 -> 3 | E60: ='Shawnee Tribe'!A24 -> Axel Sandin-Pellikka | F60: (SHW) | G60: ='Shawnee Tribe'!I24 -> 0
A61: ='Shawnee Tribe'!A11 -> Matvei Michkov | B61: (SHW) | C61: ='Shawnee Tribe'!I11 -> 3 | E61: ='Team LIRHL'!A23 -> Elias Pettersson D | F61: (LIR) | G61: ='Team LIRHL'!I23 -> 0
A62: =Riketorians!A12 -> Kyle Connor | B62: (RIK) | C62: =Riketorians!I12 -> 3 | E62: ='Fantasy Hockey Club'!A24 -> Shayne Gostisbehere | F62: (FHC) | G62: ='Fantasy Hockey Club'!I24 -> 0
A63: ='Fantasy Hockey Club'!A10 -> Artturi Lehkonen | B63: (FHC) | C63: ='Fantasy Hockey Club'!I10 -> 3 | E63: ='Team LIRHL'!A24 -> Gustav Forsling | F63: (LIR) | G63: ='Team LIRHL'!I24 -> 0
A64: ='District 5'!A13 -> Josh Doan | B64: (DI5) | C64: ='District 5'!I13 -> 3 | E64: ='Shawnee Tribe'!A25 -> John Klingberg | F64: (SHW) | G64: ='Shawnee Tribe'!I25 -> 0
A65: ='Damn Yankees'!A10 -> Tyler Bertuzzi | B65: (DYK) | C65: ='Damn Yankees'!I10 -> 3 | E65: ='District 5'!A24 -> Brandon Montour | F65: (DI5) | G65: ='District 5'!I24 -> 0
A66: =Highlanders!A10 -> JJ Peterka | B66: (HGL) | C66: =Highlanders!I10 -> 3 | E66: ='District 5'!A25 -> Sam Rinzel | F66: (DI5) | G66: ='District 5'!I25 -> 0
A67: ='Shawnee Tribe'!A12 -> Mathew Barzal | B67: (SHW) | C67: ='Shawnee Tribe'!I12 -> 3 | E67: ='Grumpy Old Men'!A25 -> Artem Zub | F67: (GOM) | G67: ='Grumpy Old Men'!I25 -> 0
A68: ='Damn Yankees'!A11 -> Lucas Raymond | B68: (DYK) | C68: ='Damn Yankees'!I11 -> 3 | E68: ='Team LIRHL'!A25 -> Jake Walman | F68: (LIR) | G68: ='Team LIRHL'!I25 -> 0
A69: ='Grumpy Old Men'!A12 -> Jason Robertson | B69: (GOM) | C69: ='Grumpy Old Men'!I12 -> 3 | E69: ='Fantasy Hockey Club'!A25 -> Rasmus Dahlin | F69: (FHC) | G69: ='Fantasy Hockey Club'!I25 -> 0
A70: ='Grumpy Old Men'!A13 -> Sam Bennett | B70: (GOM) | C70: ='Grumpy Old Men'!I13 -> 3 | E70: =Highlanders!A25 -> Thomas Harley | F70: (HGL) | G70: =Highlanders!I25 -> 0
A71: ='Team LIRHL'!A10 -> Mikko Rantanen | B71: (LIR) | C71: ='Team LIRHL'!I10 -> 2 | E71: ='Just Chillin'!A25 -> John Carlson | F71: (JCH) | G71: ='Just Chillin'!I25 -> 0
A72: ='Team LIRHL'!A11 -> Adrian Kempe | B72: (LIR) | C72: ='Team LIRHL'!I11 -> 2
A73: ='Team LIRHL'!A12 -> Filip Forsberg | B73: (LIR) | C73: ='Team LIRHL'!I12 -> 2
A74: =Slappers!A10 -> Jesper Bratt | B74: (SLP) | C74: =Slappers!I10 -> 2
A75: =Slappers!A11 -> Gabriel Vilardi | B75: (SLP) | C75: =Slappers!I11 -> 2
A76: =Highlanders!A11 -> Trevor Zegras | B76: (HGL) | C76: =Highlanders!I11 -> 2
A77: ='Damn Yankees'!A12 -> Zach Hyman | B77: (DYK) | C77: ='Damn Yankees'!I12 -> 2
A78: =Highlanders!A12 -> Adam Fantilli | B78: (HGL) | C78: =Highlanders!I12 -> 2
A79: ='Fantasy Hockey Club'!A11 -> Anthony Cirelli | B79: (FHC) | C79: ='Fantasy Hockey Club'!I11 -> 2
A80: ='Fantasy Hockey Club'!A12 -> Kiefer Sherwood | B80: (FHC) | C80: ='Fantasy Hockey Club'!I12 -> 2
A81: ='Team LIRHL'!A13 -> Brady Tkachuk | B81: (LIR) | C81: ='Team LIRHL'!I13 -> 2
A82: ='Damn Yankees'!A13 -> Beckett Sennecke | B82: (DYK) | C82: ='Damn Yankees'!I13 -> 2
A83: ='Damn Yankees'!A14 -> Alex Tuch | B83: (DYK) | C83: ='Damn Yankees'!I14 -> 2
A84: ='Shawnee Tribe'!A13 -> Rickard Rakell | B84: (SHW) | C84: ='Shawnee Tribe'!I13 -> 2
A85: ='Grumpy Old Men'!A14 -> Emil Heineman | B85: (GOM) | C85: ='Grumpy Old Men'!I14 -> 2
A86: ='Shawnee Tribe'!A14 -> Cutter Gauthier | B86: (SHW) | C86: ='Shawnee Tribe'!I14 -> 2
A87: ='Damn Yankees'!A15 -> Matt Duchene | B87: (DYK) | C87: ='Damn Yankees'!I15 -> 2
A88: ='Just Chillin'!A11 -> Ryan Nugent-Hopkins | B88: (JCH) | C88: ='Just Chillin'!I11 -> 1
A89: ='Just Chillin'!A12 -> Wyatt Johnston | B89: (JCH) | C89: ='Just Chillin'!I12 -> 1
A90: =Highlanders!A13 -> Mitch Marner | B90: (HGL) | C90: =Highlanders!I13 -> 1
A91: ='Fantasy Hockey Club'!A13 -> Leon Draisaitl | B91: (FHC) | C91: ='Fantasy Hockey Club'!I13 -> 1
A92: ='Just Chillin'!A13 -> Anze Kopitar | B92: (JCH) | C92: ='Just Chillin'!I13 -> 1
A93: ='Team LIRHL'!A14 -> Nazem Kadri | B93: (LIR) | C93: ='Team LIRHL'!I14 -> 1
A94: ='District 5'!A14 -> Tomas Hertl | B94: (DI5) | C94: ='District 5'!I14 -> 1
A95: =Highlanders!A14 -> Morgan Geekie | B95: (HGL) | C95: =Highlanders!I14 -> 1
A96: =Riketorians!A13 -> Alex Ovechkin | B96: (RIK) | C96: =Riketorians!I13 -> 1
A97: ='Fantasy Hockey Club'!A14 -> Dylan Cozens | B97: (FHC) | C97: ='Fantasy Hockey Club'!I14 -> 1
A98: ='Just Chillin'!A14 -> Patrick Kane | B98: (JCH) | C98: ='Just Chillin'!I14 -> 1
A99: =Slappers!A12 -> Arseny Gritsyuk | B99: (SLP) | C99: =Slappers!I12 -> 1
A100: =Slappers!A13 -> Dawson Mercer | B100: (SLP) | C100: =Slappers!I13 -> 1
A101: =Highlanders!A15 -> Leo Carlsson | B101: (HGL) | C101: =Highlanders!I15 -> 1
A102: =Slappers!A14 -> Jordan Kyrou | B102: (SLP) | C102: =Slappers!I14 -> 1
A103: ='Team LIRHL'!A15 -> Roope Hintz | B103: (LIR) | C103: ='Team LIRHL'!I15 -> 0
A104: ='Grumpy Old Men'!A15 -> Chris Kreider | B104: (GOM) | C104: ='Grumpy Old Men'!I15 -> 0
A105: ='Just Chillin'!A15 -> Jack Eichel | B105: (JCH) | C105: ='Just Chillin'!I15 -> 0
A106: =Riketorians!A14 -> Carter Verhaeghe | B106: (RIK) | C106: =Riketorians!I14 -> 0
A107: =Riketorians!A15 -> Connor Bedard | B107: (RIK) | C107: =Riketorians!I15 -> 0
A108: ='District 5'!A15 -> William Nylander | B108: (DI5) | C108: ='District 5'!I15 -> 0
A109: ='Shawnee Tribe'!A15 -> J.T. Miller | B109: (SHW) | C109: ='Shawnee Tribe'!I15 -> 0
A110: =Slappers!A15 -> Logan Cooley | B110: (SLP) | C110: =Slappers!I15 -> 0
A111: ='Fantasy Hockey Club'!A15 -> Pavel Zacha | B111: (FHC) | C111: ='Fantasy Hockey Club'!I15 -> 0

Sheet Total Calc
A1: Forwards | C1: Points | E1: Defense | G1: Points | I1: Goalie | K1: Points
A2: ='Grumpy Old Men'!A5 -> Nathan MacKinnon | B2: (GOM) | C2: ='Grumpy Old Men'!R5 -> 92 | E2: ='District 5'!A20 -> Cale Makar | F2: (DI5) | G2: ='District 5'!R20 -> 55 | I2: =Highlanders!A30 -> Scott Wedgewood | J2: (HGL) | K2: =Highlanders!R30 -> 120
A3: ='Shawnee Tribe'!A8 -> Connor McDavid | B3: (SHW) | C3: ='Shawnee Tribe'!R8 -> 83 | E3: ='Shawnee Tribe'!A19 -> Darren Raddysh | F3: (SHW) | G3: ='Shawnee Tribe'!R19 -> 47 | I3: ='Fantasy Hockey Club'!A28 -> Logan Thompson | J3: (FHC) | K3: ='Fantasy Hockey Club'!R28 -> 117
A4: ='Shawnee Tribe'!A6 -> Macklin Celebrini | B4: (SHW) | C4: ='Shawnee Tribe'!R6 -> 77 | E4: ='Shawnee Tribe'!A21 -> Evan Bouchard | F4: (SHW) | G4: ='Shawnee Tribe'!R21 -> 46 | I4: =Slappers!A30 -> Jake Oettinger | J4: (SLP) | K4: =Slappers!R30 -> 109
A5: ='Fantasy Hockey Club'!A13 -> Leon Draisaitl | B5: (FHC) | C5: ='Fantasy Hockey Club'!R13 -> 75 | E5: ='Fantasy Hockey Club'!A22 -> Jakob Chychrun | F5: (FHC) | G5: ='Fantasy Hockey Club'!R22 -> 45 | I5: ='Grumpy Old Men'!A28 -> Igor Shesterkin | J5: (GOM) | K5: ='Grumpy Old Men'!R28 -> 106
A6: ='Team LIRHL'!A5 -> Nikita Kucherov | B6: (LIR) | C6: ='Team LIRHL'!R5 -> 73 | E6: ='Shawnee Tribe'!A20 -> Lane Hutson | F6: (SHW) | G6: ='Shawnee Tribe'!R20 -> 43 | I6: ='Damn Yankees'!A30 -> Andrei Vasilevskiy | J6: (DYK) | K6: ='Damn Yankees'!R30 -> 105
A7: ='District 5'!A6 -> Sam Reinhart | B7: (DI5) | C7: ='District 5'!R6 -> 68 | E7: ='Just Chillin'!A21 -> Zach Werenski | F7: (JCH) | G7: ='Just Chillin'!R21 -> 43 | I7: ='Just Chillin'!A28 -> Jesper Wallstedt | J7: (JCH) | K7: ='Just Chillin'!R28 -> 101
A8: ='Just Chillin'!A12 -> Wyatt Johnston | B8: (JCH) | C8: ='Just Chillin'!R12 -> 66 | E8: ='Grumpy Old Men'!A19 -> Matthew Schaefer | F8: (GOM) | G8: ='Grumpy Old Men'!R19 -> 42 | I8: =Slappers!A28 -> Spencer Knight | J8: (SLP) | K8: =Slappers!R28 -> 98
A9: ='District 5'!A11 -> Matt Boldy | B9: (DI5) | C9: ='District 5'!R11 -> 65 | E9: ='Grumpy Old Men'!A23 -> Miro Heiskanen | F9: (GOM) | G9: ='Grumpy Old Men'!R23 -> 42 | I9: ='District 5'!A28 -> Filip Gustavsson | J9: (DI5) | K9: ='District 5'!R28 -> 98
A10: =Highlanders!A9 -> Kirill Kaprizov | B10: (HGL) | C10: =Highlanders!R9 -> 64 | E10: ='Damn Yankees'!A19 -> Quinn Hughes | F10: (DYK) | G10: ='Damn Yankees'!R19 -> 37 | I10: ='Shawnee Tribe'!A28 -> Joey Daccord | J10: (SHW) | K10: ='Shawnee Tribe'!R28 -> 94
A11: ='Grumpy Old Men'!A12 -> Jason Robertson | B11: (GOM) | C11: ='Grumpy Old Men'!R12 -> 63 | E11: ='District 5'!A22 -> Moritz Seider | F11: (DI5) | G11: ='District 5'!R22 -> 35 | I11: =Highlanders!A28 -> David Rittich | J11: (HGL) | K11: =Highlanders!R28 -> 93
A12: ='Team LIRHL'!A10 -> Mikko Rantanen | B12: (LIR) | C12: ='Team LIRHL'!R10 -> 62 | E12: =Riketorians!A21 -> Jake Sanderson | F12: (RIK) | G12: =Riketorians!R21 -> 33 | I12: ='Team LIRHL'!A28 -> Jeremy Swayman | J12: (LIR) | K12: ='Team LIRHL'!R28 -> 92
A13: =Riketorians!A12 -> Kyle Connor | B13: (RIK) | C13: =Riketorians!R12 -> 61 | E13: ='Fantasy Hockey Club'!A24 -> Shayne Gostisbehere | F13: (FHC) | G13: ='Fantasy Hockey Club'!R24 -> 33 | I13: ='Damn Yankees'!A28 -> Mackenzie Blackwood | J13: (DYK) | K13: ='Damn Yankees'!R28 -> 91
A14: ='Damn Yankees'!A9 -> Alex DeBrincat | B14: (DYK) | C14: ='Damn Yankees'!R9 -> 61 | E14: ='Grumpy Old Men'!A22 -> Josh Morrissey | F14: (GOM) | G14: ='Grumpy Old Men'!R22 -> 33 | I14: =Riketorians!A30 -> Sergei Bobrovsky | J14: (RIK) | K14: =Riketorians!R30 -> 91
A15: ='Damn Yankees'!A8 -> Jake Guentzel | B15: (DYK) | C15: ='Damn Yankees'!R8 -> 58 | E15: ='District 5'!A19 -> Mikhail Sergachev | F15: (DI5) | G15: ='District 5'!R19 -> 32 | I15: ='Shawnee Tribe'!A30 -> Karel Vejmelka | J15: (SHW) | K15: ='Shawnee Tribe'!R30 -> 87
A16: ='Just Chillin'!A5 -> Sidney Crosby | B16: (JCH) | C16: ='Just Chillin'!R5 -> 58 | E16: =Riketorians!A20 -> Erik Karlsson | F16: (RIK) | G16: =Riketorians!R20 -> 32 | I16: =Riketorians!A28 -> Dustin Wolf | J16: (RIK) | K16: =Riketorians!R28 -> 85
A17: =Riketorians!A7 -> David Pastrnak | B17: (RIK) | C17: =Riketorians!R7 -> 58 | E17: =Highlanders!A45 -> Adam Fox | F17: (HGL) | G17: =Highlanders!E45 -> 32 | I17: =Highlanders!A46 -> Ilya Sorokin | J17: (HGL) | K17: =Highlanders!E46 -> 82
A18: ='Team LIRHL'!A9 -> Tim Stützle | B18: (LIR) | C18: ='Team LIRHL'!R9 -> 58 | E18: ='District 5'!A21 -> Rasmus Andersson | F18: (DI5) | G18: ='District 5'!R21 -> 30 | I18: ='District 5'!A30 -> Juuse Saros | J18: (DI5) | K18: ='District 5'!R30 -> 81
A19: ='Just Chillin'!A9 -> Mark Scheifele | B19: (JCH) | C19: ='Just Chillin'!R9 -> 57 | E19: ='Just Chillin'!A23 -> Morgan Rielly | F19: (JCH) | G19: ='Just Chillin'!R23 -> 30 | I19: ='Team LIRHL'!A30 -> Linus Ullmark | J19: (LIR) | K19: ='Team LIRHL'!R30 -> 79
A20: ='Fantasy Hockey Club'!A6 -> Cole Caufield | B20: (FHC) | C20: ='Fantasy Hockey Club'!R6 -> 57 | E20: =Slappers!A21 -> Bowen Byram | F20: (SLP) | G20: =Slappers!R21 -> 30 | I20: ='Fantasy Hockey Club'!A30 -> Akira Schmid | J20: (FHC) | K20: ='Fantasy Hockey Club'!R30 -> 75
A21: =Highlanders!A14 -> Morgan Geekie | B21: (HGL) | C21: =Highlanders!R14 -> 57 | E21: ='Fantasy Hockey Club'!A25 -> Rasmus Dahlin | F21: (FHC) | G21: ='Fantasy Hockey Club'!R25 -> 30 | I21: ='Just Chillin'!A30 -> Connor Hellebuyck | J21: (JCH) | K21: ='Just Chillin'!R30 -> 66
A22: =Highlanders!A6 -> Nick Suzuki | B22: (HGL) | C22: =Highlanders!R6 -> 56 | E22: ='Just Chillin'!A25 -> John Carlson | F22: (JCH) | G22: ='Just Chillin'!R25 -> 29 | I22: ='Grumpy Old Men'!A30 -> Joseph Woll | J22: (GOM) | K22: ='Grumpy Old Men'!R30 -> 51
A23: ='Team LIRHL'!A8 -> Dylan Larkin | B23: (LIR) | C23: ='Team LIRHL'!R8 -> 56 | E23: =Slappers!A20 -> Noah Dobson | F23: (SLP) | G23: =Slappers!R20 -> 29 | I23: ='Grumpy Old Men'!A46 -> Anthony Stolarz | J23: (GOM) | K23: ='Grumpy Old Men'!E46 -> 24
A24: =Highlanders!A15 -> Leo Carlsson | B24: (HGL) | C24: =Highlanders!R15 -> 56 | E24: =Slappers!A22 -> Seth Jones | F24: (SLP) | G24: =Slappers!R22 -> 29 | I24: ='Fantasy Hockey Club'!A46 -> Adin Hill | J24: (FHC) | K24: ='Fantasy Hockey Club'!E46 -> 9
A25: ='Damn Yankees'!A7 -> Martin Necas | B25: (DYK) | C25: ='Damn Yankees'!R7 -> 56 | E25: =Riketorians!A22 -> Justin Faulk | F25: (RIK) | G25: =Riketorians!R22 -> 29
A26: ='Shawnee Tribe'!A5 -> Artemi Panarin | B26: (SHW) | C26: ='Shawnee Tribe'!R5 -> 55 | E26: =Riketorians!A19 -> Kris Letang | F26: (RIK) | G26: =Riketorians!R19 -> 28
A27: =Riketorians!A15 -> Connor Bedard | B27: (RIK) | C27: =Riketorians!R15 -> 55 | E27: ='Just Chillin'!A20 -> Brock Faber | F27: (JCH) | G27: ='Just Chillin'!R20 -> 27
A28: ='District 5'!A7 -> Brad Marchand | B28: (DI5) | C28: ='District 5'!R7 -> 55 | E28: ='Damn Yankees'!A20 -> Filip Hronek | F28: (DYK) | G28: ='Damn Yankees'!R20 -> 27
A29: ='Damn Yankees'!A11 -> Lucas Raymond | B29: (DYK) | C29: ='Damn Yankees'!R11 -> 54 | E29: =Highlanders!A23 -> Jackson LaCombe | F29: (HGL) | G29: =Highlanders!R23 -> 26
A30: ='Fantasy Hockey Club'!A5 -> Sebastian Aho | B30: (FHC) | C30: ='Fantasy Hockey Club'!R5 -> 53 | E30: ='Team LIRHL'!A21 -> Brent Burns | F30: (LIR) | G30: ='Team LIRHL'!R21 -> 26
A31: =Riketorians!A6 -> Tom Wilson | B31: (RIK) | C31: =Riketorians!R6 -> 53 | E31: ='Fantasy Hockey Club'!A20 -> Oliver Ekman-Larsson | F31: (FHC) | G31: ='Fantasy Hockey Club'!R20 -> 25
A32: =Slappers!A6 -> Dylan Guenther | B32: (SLP) | C32: =Slappers!R6 -> 53 | E32: ='Shawnee Tribe'!A45 -> Shea Theodore | F32: (SHW) | G32: ='Shawnee Tribe'!E45 -> 25
A33: ='Grumpy Old Men'!A6 -> Mika Zibanejad | B33: (GOM) | C33: ='Grumpy Old Men'!R6 -> 51 | E33: ='Shawnee Tribe'!A25 -> John Klingberg | F33: (SHW) | G33: ='Shawnee Tribe'!R25 -> 25
A34: =Riketorians!A9 -> Drake Batherson | B34: (RIK) | C34: =Riketorians!R9 -> 50 | E34: ='Shawnee Tribe'!A23 -> Vince Dunn | F34: (SHW) | G34: ='Shawnee Tribe'!R23 -> 24
A35: ='District 5'!A15 -> William Nylander | B35: (DI5) | C35: ='District 5'!R15 -> 50 | E35: ='Fantasy Hockey Club'!A23 -> Brandt Clarke | F35: (FHC) | G35: ='Fantasy Hockey Club'!R23 -> 24
A36: ='District 5'!A5 -> Steven Stamkos | B36: (DI5) | C36: ='District 5'!R5 -> 49 | E36: ='Damn Yankees'!A24 -> Sam Malinski | F36: (DYK) | G36: ='Damn Yankees'!R24 -> 24
A37: ='Shawnee Tribe'!A14 -> Cutter Gauthier | B37: (SHW) | C37: ='Shawnee Tribe'!R14 -> 49 | E37: =Slappers!A45 -> Simon Nemec | F37: (SLP) | G37: =Slappers!E45 -> 24
A38: =Riketorians!A5 -> Brock Nelson | B38: (RIK) | C38: =Riketorians!R5 -> 48 | E38: ='Team LIRHL'!A20 -> Zeev Buium | F38: (LIR) | G38: ='Team LIRHL'!R20 -> 23
A39: =Highlanders!A11 -> Trevor Zegras | B39: (HGL) | C39: =Highlanders!R11 -> 48 | E39: =Highlanders!A20 -> Luke Hughes | F39: (HGL) | G39: =Highlanders!R20 -> 23
A40: ='Just Chillin'!A15 -> Jack Eichel | B40: (JCH) | C40: ='Just Chillin'!R15 -> 48 | E40: ='Shawnee Tribe'!A22 -> Travis Sanheim | F40: (SHW) | G40: ='Shawnee Tribe'!R22 -> 22
A41: ='Damn Yankees'!A44 -> Brandon Hagel | B41: (DYK) | C41: ='Damn Yankees'!E44 -> 48 | E41: =Riketorians!A24 -> Mike Matheson | F41: (RIK) | G41: =Riketorians!R24 -> 21
A42: ='Fantasy Hockey Club'!A44 -> Bo Horvat | B42: (FHC) | C42: ='Fantasy Hockey Club'!E44 -> 47 | E42: =Highlanders!A22 -> Charlie McAvoy | F42: (HGL) | G42: =Highlanders!R22 -> 21
A43: ='Just Chillin'!A6 -> Bryan Rust | B43: (JCH) | C43: ='Just Chillin'!R6 -> 47 | E43: ='District 5'!A23 -> Jamie Drysdale | F43: (DI5) | G43: ='District 5'!R23 -> 20
A44: ='Damn Yankees'!A5 -> Nick Schmaltz | B44: (DYK) | C44: ='Damn Yankees'!R5 -> 47 | E44: ='Team LIRHL'!A22 -> Jacob Trouba | F44: (LIR) | G44: ='Team LIRHL'!R22 -> 20
A45: ='Team LIRHL'!A11 -> Adrian Kempe | B45: (LIR) | C45: ='Team LIRHL'!R11 -> 47 | E45: ='Damn Yankees'!A21 -> Artyom Levshunov | F45: (DYK) | G45: ='Damn Yankees'!R21 -> 20
A46: ='Damn Yankees'!A6 -> Troy Terry | B46: (DYK) | C46: ='Damn Yankees'!R6 -> 45 | E46: ='District 5'!A24 -> Brandon Montour | F46: (DI5) | G46: ='District 5'!R24 -> 20
A47: ='Grumpy Old Men'!A9 -> Clayton Keller | B47: (GOM) | C47: ='Grumpy Old Men'!R9 -> 45 | E47: ='Damn Yankees'!A22 -> Nick Blankenburg | F47: (DYK) | G47: ='Damn Yankees'!R22 -> 20
A48: =Slappers!A11 -> Gabriel Vilardi | B48: (SLP) | C48: =Slappers!R11 -> 45 | E48: ='Just Chillin'!A19 -> Roman Josi | F48: (JCH) | G48: ='Just Chillin'!R19 -> 20
A49: ='Fantasy Hockey Club'!A9 -> Marcus Johansson | B49: (FHC) | C49: ='Fantasy Hockey Club'!R9 -> 44 | E49: =Highlanders!A19 -> Aaron Ekblad | F49: (HGL) | G49: =Highlanders!R19 -> 20
A50: =Slappers!A5 -> Auston Matthews | B50: (SLP) | C50: =Slappers!R5 -> 44 | E50: =Slappers!A25 -> Dmitry Orlov | F50: (SLP) | G50: =Slappers!R25 -> 20
A51: =Highlanders!A47 -> Seth Jarvis | B51: (HGL) | C51: =Highlanders!E47 -> 44 | E51: =Slappers!A19 -> Hampus Lindholm | F51: (SLP) | G51: =Slappers!R19 -> 19
A52: =Slappers!A10 -> Jesper Bratt | B52: (SLP) | C52: =Slappers!R10 -> 43 | E52: ='Fantasy Hockey Club'!A21 -> Vladislav Gavrikov | F52: (FHC) | G52: ='Fantasy Hockey Club'!R21 -> 19
A53: ='District 5'!A9 -> Matthew Knies | B53: (DI5) | C53: ='District 5'!R9 -> 42 | E53: ='Grumpy Old Men'!A20 -> Thomas Chabot | F53: (GOM) | G53: ='Grumpy Old Men'!R20 -> 17
A54: =Highlanders!A7 -> Kirill Marchenko | B54: (HGL) | C54: =Highlanders!R7 -> 42 | E54: ='Fantasy Hockey Club'!A19 -> KAndre Miller | F54: (FHC) | G54: ='Fantasy Hockey Club'!R19 -> 17
A55: ='District 5'!A12 -> Tage Thompson | B55: (DI5) | C55: ='District 5'!R12 -> 42 | E55: ='Team LIRHL'!A19 -> Alexander Nikishin | F55: (LIR) | G55: ='Team LIRHL'!R19 -> 17
A56: =Riketorians!A13 -> Alex Ovechkin | B56: (RIK) | C56: =Riketorians!R13 -> 42 | E56: =Highlanders!A25 -> Thomas Harley | F56: (HGL) | G56: =Highlanders!R25 -> 16
A57: =Highlanders!A13 -> Mitch Marner | B57: (HGL) | C57: =Highlanders!R13 -> 42 | E57: ='Team LIRHL'!A25 -> Jake Walman | F57: (LIR) | G57: ='Team LIRHL'!R25 -> 16
A58: ='Just Chillin'!A10 -> John Tavares | B58: (JCH) | C58: ='Just Chillin'!R10 -> 42 | E58: ='Grumpy Old Men'!A24 -> Darnell Nurse | F58: (GOM) | G58: ='Grumpy Old Men'!R24 -> 15
A59: ='Shawnee Tribe'!A7 -> Ivan Demidov | B59: (SHW) | C59: ='Shawnee Tribe'!R7 -> 41 | E59: ='Shawnee Tribe'!A24 -> Axel Sandin-Pellikka | F59: (SHW) | G59: ='Shawnee Tribe'!R24 -> 15
A60: ='Damn Yankees'!A10 -> Tyler Bertuzzi | B60: (DYK) | C60: ='Damn Yankees'!R10 -> 41 | E60: ='Damn Yankees'!A23 -> Logan Stanley | F60: (DYK) | G60: ='Damn Yankees'!R23 -> 15
A61: ='Just Chillin'!A11 -> Ryan Nugent-Hopkins | B61: (JCH) | C61: ='Just Chillin'!R11 -> 41 | E61: =Slappers!A23 -> Ivan Provorov | F61: (SLP) | G61: =Slappers!R23 -> 15
A62: ='Grumpy Old Men'!A7 -> Nikolaj Ehlers | B62: (GOM) | C62: ='Grumpy Old Men'!R7 -> 41 | E62: ='Just Chillin'!A24 -> Cam Fowler | F62: (JCH) | G62: ='Just Chillin'!R24 -> 15
A63: ='Fantasy Hockey Club'!A8 -> Pavel Dorofeyev | B63: (FHC) | C63: ='Fantasy Hockey Club'!R8 -> 41 | E63: ='Grumpy Old Men'!A21 -> MacKenzie Weegar | F63: (GOM) | G63: ='Grumpy Old Men'!R21 -> 15
A64: ='District 5'!A14 -> Tomas Hertl | B64: (DI5) | C64: ='District 5'!R14 -> 41 | E64: ='Just Chillin'!A22 -> Noah Hanifin | F64: (JCH) | G64: ='Just Chillin'!R22 -> 14
A65: ='Grumpy Old Men'!A10 -> Mark Stone | B65: (GOM) | C65: ='Grumpy Old Men'!R10 -> 40 | E65: ='Team LIRHL'!A24 -> Gustav Forsling | F65: (LIR) | G65: ='Team LIRHL'!R24 -> 14
A66: ='Grumpy Old Men'!A13 -> Sam Bennett | B66: (GOM) | C66: ='Grumpy Old Men'!R13 -> 40 | E66: =Slappers!A24 -> Dougie Hamilton | F66: (SLP) | G66: =Slappers!R24 -> 13
A67: ='Grumpy Old Men'!A8 -> Joel Eriksson Ek | B67: (GOM) | C67: ='Grumpy Old Men'!R8 -> 39 | E67: =Riketorians!A23 -> Devon Toews | F67: (RIK) | G67: =Riketorians!R23 -> 13
A68: ='Shawnee Tribe'!A44 -> Will Smith | B68: (SHW) | C68: ='Shawnee Tribe'!E44 -> 39 | E68: =Highlanders!A24 -> Drew Doughty | F68: (HGL) | G68: =Highlanders!R24 -> 13
A69: =Riketorians!A11 -> Travis Konecny | B69: (RIK) | C69: =Riketorians!R11 -> 39 | E69: ='Damn Yankees'!A45 -> Victor Hedman | F69: (DYK) | G69: ='Damn Yankees'!E45 -> 12
A70: ='Team LIRHL'!A15 -> Roope Hintz | B70: (LIR) | C70: ='Team LIRHL'!R15 -> 39 | E70: ='Grumpy Old Men'!A25 -> Artem Zub | F70: (GOM) | G70: ='Grumpy Old Men'!R25 -> 12
A71: ='Damn Yankees'!A14 -> Alex Tuch | B71: (DYK) | C71: ='Damn Yankees'!R14 -> 39 | E71: =Highlanders!A21 -> Sean Durzi | F71: (HGL) | G71: =Highlanders!R21 -> 11
A72: ='Team LIRHL'!A7 -> Nico Hischier | B72: (LIR) | C72: ='Team LIRHL'!R7 -> 38 | E72: ='Damn Yankees'!A25 -> Colton Parayko | F72: (DYK) | G72: ='Damn Yankees'!R25 -> 11
A73: ='Just Chillin'!A8 -> Aliaksei Protas | B73: (JCH) | C73: ='Just Chillin'!R8 -> 37 | E73: =Riketorians!A25 -> Neal Pionk | F73: (RIK) | G73: =Riketorians!R25 -> 10
A74: =Riketorians!A8 -> Andrei Svechnikov | B74: (RIK) | C74: =Riketorians!R8 -> 37 | E74: ='District 5'!A25 -> Sam Rinzel | F74: (DI5) | G74: ='District 5'!R25 -> 8
A75: ='Shawnee Tribe'!A10 -> Robert Thomas | B75: (SHW) | C75: ='Shawnee Tribe'!R10 -> 37 | E75: ='Team LIRHL'!A23 -> Elias Pettersson D | F75: (LIR) | G75: ='Team LIRHL'!R23 -> 6
A76: =Slappers!A7 -> Dylan Strome | B76: (SLP) | C76: =Slappers!R7 -> 37
A77: ='Team LIRHL'!A6 -> Kevin Fiala | B77: (LIR) | C77: ='Team LIRHL'!R6 -> 36
A78: ='Team LIRHL'!A14 -> Nazem Kadri | B78: (LIR) | C78: ='Team LIRHL'!R14 -> 36
A79: ='Fantasy Hockey Club'!A14 -> Dylan Cozens | B79: (FHC) | C79: ='Fantasy Hockey Club'!R14 -> 36
A80: ='Shawnee Tribe'!A12 -> Mathew Barzal | B80: (SHW) | C80: ='Shawnee Tribe'!R12 -> 36
A81: =Highlanders!A10 -> JJ Peterka | B81: (HGL) | C81: =Highlanders!R10 -> 35
A82: ='District 5'!A10 -> Mason McTavish | B82: (DI5) | C82: ='District 5'!R10 -> 34
A83: =Highlanders!A12 -> Adam Fantilli | B83: (HGL) | C83: =Highlanders!R12 -> 34
A84: =Riketorians!A14 -> Carter Verhaeghe | B84: (RIK) | C84: =Riketorians!R14 -> 34
A85: ='Damn Yankees'!A13 -> Beckett Sennecke | B85: (DYK) | C85: ='Damn Yankees'!R13 -> 34
A86: ='Fantasy Hockey Club'!A10 -> Artturi Lehkonen | B86: (FHC) | C86: ='Fantasy Hockey Club'!R10 -> 34
A87: ='Team LIRHL'!A12 -> Filip Forsberg | B87: (LIR) | C87: ='Team LIRHL'!R12 -> 34
A88: ='Fantasy Hockey Club'!A12 -> Kiefer Sherwood | B88: (FHC) | C88: ='Fantasy Hockey Club'!R12 -> 34
A89: ='Shawnee Tribe'!A15 -> J.T. Miller | B89: (SHW) | C89: ='Shawnee Tribe'!R15 -> 34
A90: =Slappers!A13 -> Dawson Mercer | B90: (SLP) | C90: =Slappers!R13 -> 34
A91: =Slappers!A8 -> Timo Meier | B91: (SLP) | C91: =Slappers!R8 -> 34
A92: ='Fantasy Hockey Club'!A47 -> Evgeni Malkin | B92: (FHC) | C92: ='Fantasy Hockey Club'!E47 -> 33
A93: ='Fantasy Hockey Club'!A7 -> Elias Lindholm | B93: (FHC) | C93: ='Fantasy Hockey Club'!R7 -> 33
A94: ='Grumpy Old Men'!A11 -> Matt Coronato | B94: (GOM) | C94: ='Grumpy Old Men'!R11 -> 33
A95: ='District 5'!A13 -> Josh Doan | B95: (DI5) | C95: ='District 5'!R13 -> 33
A96: ='Fantasy Hockey Club'!A15 -> Pavel Zacha | B96: (FHC) | C96: ='Fantasy Hockey Club'!R15 -> 33
A97: ='Just Chillin'!A7 -> Anthony Mantha | B97: (JCH) | C97: ='Just Chillin'!R7 -> 32
A98: =Highlanders!A8 -> Jackson Blake | B98: (HGL) | C98: =Highlanders!R8 -> 31
A99: ='Fantasy Hockey Club'!A11 -> Anthony Cirelli | B99: (FHC) | C99: ='Fantasy Hockey Club'!R11 -> 31
A100: ='Just Chillin'!A44 -> Jack Roslovic | B100: (JCH) | C100: ='Just Chillin'!E44 -> 31
A101: =Slappers!A9 -> Jack Hughes | B101: (SLP) | C101: =Slappers!R9 -> 30
A102: ='Grumpy Old Men'!A15 -> Chris Kreider | B102: (GOM) | C102: ='Grumpy Old Men'!R15 -> 30
A103: =Slappers!A15 -> Logan Cooley | B103: (SLP) | C103: =Slappers!R15 -> 30
A104: ='Just Chillin'!A14 -> Patrick Kane | B104: (JCH) | C104: ='Just Chillin'!R14 -> 29
A105: ='Shawnee Tribe'!A47 -> Elias Pettersson | B105: (SHW) | C105: ='Shawnee Tribe'!E47 -> 29
A106: =Highlanders!A5 -> Brayden Point | B106: (HGL) | C106: =Highlanders!R5 -> 28
A107: ='District 5'!A8 -> Owen Tippett | B107: (DI5) | C107: ='District 5'!R8 -> 28
A108: ='Damn Yankees'!A12 -> Zach Hyman | B108: (DYK) | C108: ='Damn Yankees'!R12 -> 28
A109: ='Just Chillin'!A13 -> Anze Kopitar | B109: (JCH) | C109: ='Just Chillin'!R13 -> 26
A110: =Riketorians!A10 -> Vincent Trocheck | B110: (RIK) | C110: =Riketorians!R10 -> 26
A111: ='Team LIRHL'!A13 -> Brady Tkachuk | B111: (LIR) | C111: ='Team LIRHL'!R13 -> 25
A112: ='Shawnee Tribe'!A9 -> Gabriel Landeskog | B112: (SHW) | C112: ='Shawnee Tribe'!R9 -> 25
A113: ='Shawnee Tribe'!A11 -> Matvei Michkov | B113: (SHW) | C113: ='Shawnee Tribe'!R11 -> 24
A114: ='Damn Yankees'!A47 -> Shane Pinto | B114: (DYK) | C114: ='Damn Yankees'!E47 -> 24
A115: ='Grumpy Old Men'!A14 -> Emil Heineman | B115: (GOM) | C115: ='Grumpy Old Men'!R14 -> 22
A116: =Slappers!A12 -> Arseny Gritsyuk | B116: (SLP) | C116: =Slappers!R12 -> 19
A117: =Slappers!A14 -> Jordan Kyrou | B117: (SLP) | C117: =Slappers!R14 -> 18
A118: ='Shawnee Tribe'!A13 -> Rickard Rakell | B118: (SHW) | C118: ='Shawnee Tribe'!R13 -> 16
A119: ='Damn Yankees'!A15 -> Matt Duchene | B119: (DYK) | C119: ='Damn Yankees'!R15 -> 10
A120: ='District 5'!A44 -> Patrik Laine | B120: (D5) | C120: ='District 5'!E44 -> 1
A121: ='Grumpy Old Men'!A44 -> Aleksander Barkov | B121: (GOM) | C121: ='Grumpy Old Men'!E44 -> 0
A122: =Highlanders!A44 -> Matthew Tkachuk | B122: (HGL) | C122: =Highlanders!E44 -> 0
